Col. Code,Agency,Check No.,Payee,Month,Day,Year,Purpose,Source,Amount
48,J.F. Drake State,14704,JULIUS T TATE,Nov,14,2008,Other Contractual Services,NAT'L SCIENCE FOUNDATION,$364.00
48,J.F. Drake State,90009900,LYSA AUGUSTIN,Nov,14,2008,Instructional Salaries - Regul,UNRESTRICTED,"$1,226.50"
48,J.F. Drake State,90009901,DORIS I BOWMAN,Nov,14,2008,Other Contractual Services,NAT'L SCIENCE FOUNDATION,$486.50
48,J.F. Drake State,90009902,JESSE COOK,Nov,14,2008,Other Contractual Services,NAT'L SCIENCE FOUNDATION,$375.80
48,J.F. Drake State,90009903,KENNETH DOUGLAS HAYNES,Nov,14,2008,Other Contractual Services,NAT'L SCIENCE FOUNDATION,$455.00
48,J.F. Drake State,90009904,KARL W HENRY SR,Nov,14,2008,Other Contractual Services,NAT'L SCIENCE FOUNDATION,"$1,083.38"
48,J.F. Drake State,90009905,JACQUELINE M SHIVERS,Nov,14,2008,Instructional Salaries - Tempo,UNRESTRICTED,"$1,712.50"
48,J.F. Drake State,90009906,ELIZABETH A TUGGLE,Nov,14,2008,Instructional Salaries - Regul,UNRESTRICTED,$949.00
48,J.F. Drake State,10028890,AMERICAN TECH. PUBLISHERS,Nov,13,2008,Purchases for Resale,UNRESTRICTED,$921.29
48,J.F. Drake State,10028891,"BURMAX, INC.",Nov,13,2008,Purchases for Resale,UNRESTRICTED,$514.66
48,J.F. Drake State,10028893,CTB/MCGRAW-HILL,Nov,13,2008,Purchases for Resale,UNRESTRICTED,$54.89
48,J.F. Drake State,10028894,EVOLVE REACH,Nov,13,2008,Purchases for Resale,AUXILIARY,"$2,352.00"
48,J.F. Drake State,10028895,FEDEX,Nov,13,2008,Postage,UNRESTRICTED,$186.12
48,J.F. Drake State,10028896,GRAINGER,Nov,13,2008,Purchases for Resale,UNRESTRICTED,$366.48
48,J.F. Drake State,10028897,"J & S PRINTING, INC.",Nov,13,2008,Advertising and Promotions,UNRESTRICTED,$787.45
48,J.F. Drake State,10028898,"MCGRAW-HILL, INC",Nov,13,2008,Purchases for Resale,UNRESTRICTED,"$5,084.16"
48,J.F. Drake State,10028899,MEADOWS MEDICAL SUPPLY IN,Nov,13,2008,Purchases for Resale,UNRESTRICTED,"$6,336.25"
48,J.F. Drake State,10028900,SAM'S CLUB/WALMART,Nov,13,2008,Materials and Supplies,UNRESTRICTED,$133.06
48,J.F. Drake State,10028901,SUCCESS MARKETING,Nov,13,2008,Advertising and Promotions,UNRESTRICTED,"$1,475.00"
48,J.F. Drake State,10028902,TECHNICAL TRAINING AIDS,Nov,13,2008,Materials and Supplies,UNRESTRICTED,$100.00
48,J.F. Drake State,10028903,UPS,Nov,13,2008,Freight,UNRESTRICTED,$13.07
48,J.F. Drake State,20036598,ACA REGISTRATION,Nov,13,2008,In-State Travel,TITLE III CARRYOVER,"$2,145.00"
48,J.F. Drake State,20036599,ALA BUSINESS FURNISHINGS,Nov,13,2008,Materials and Supplies,,"$1,900.00"
48,J.F. Drake State,20036600,CDW-G,Nov,13,2008,Materials and Supplies,TITLE III CARRYOVER,"$1,074.59"
48,J.F. Drake State,20036601,BRENDA H. FRIEND,Nov,13,2008,Out-of-State Travel,TITLE III CARRYOVER,$394.22
48,J.F. Drake State,20036602,HAWORTH,Nov,13,2008,Materials and Supplies,,"$6,742.12"
48,J.F. Drake State,20036603,"MCLAUGHLIN, SCOTTY",Nov,13,2008,Out-of-State Travel,TITLE III CARRYOVER,$942.11
48,J.F. Drake State,20036604,DANA MOORE,Nov,13,2008,Out-of-State Travel,TITLE III CARRYOVER,"$1,376.76"
48,J.F. Drake State,20036605,"OFFICE DEPOT, INC.",Nov,13,2008,Materials and Supplies,TITLE III CARRYOVER,"$2,630.09"
48,J.F. Drake State,20036606,"OFFICE DEPOT, INC.",Nov,13,2008,Materials and Supplies,TITLE III CARRYOVER,$469.42
48,J.F. Drake State,20036607,"SHOTTS, LESLEY",Nov,13,2008,In-State Travel,TITLE III CARRYOVER,$453.15
48,J.F. Drake State,10028870,AACC,Nov,7,2008,Memberships,UNRESTRICTED,"$1,765.00"
48,J.F. Drake State,10028871,"ALLIANT DATA SYSTEM,INC",Nov,7,2008,Other Contractual Services,UNRESTRICTED,"$13,230.00"
48,J.F. Drake State,10028872,CDW-G,Nov,7,2008,Materials and Supplies,UNRESTRICTED,"$1,070.76"
48,J.F. Drake State,10028872,CDW-G,Nov,7,2008,Computer Software,UNRESTRICTED,$274.78
48,J.F. Drake State,10028873,CHEVRON CARD SERVICES,Nov,7,2008,Gasoline and Oil - Motor Vehic,UNRESTRICTED,$542.09
48,J.F. Drake State,10028874,COLONIAL GRAPHICS GROUP,Nov,7,2008,Materials and Supplies,UNRESTRICTED,$444.00
48,J.F. Drake State,10028875,DISPLAY SALES,Nov,7,2008,Materials and Supplies,UNRESTRICTED,$406.00
48,J.F. Drake State,10028876,"DYNAMIC SECURITY, INC.",Nov,7,2008,Other Contractual Services,UNRESTRICTED,"$4,324.32"
48,J.F. Drake State,10028877,"HUGHES, PATRICIA",Nov,7,2008,Employee Taxable Per Diem,UNRESTRICTED,$11.25
48,J.F. Drake State,10028878,GLIDDEN PROFESSIONAL PAI,Nov,7,2008,Materials and Supplies,UNRESTRICTED,"$3,267.58"
48,J.F. Drake State,10028879,"IMDIVERSITY, INC",Nov,7,2008,Memberships,UNRESTRICTED,$133.34
48,J.F. Drake State,10028880,LOWE'S,Nov,7,2008,Materials and Supplies,UNRESTRICTED,"$1,952.74"
48,J.F. Drake State,10028882,PARTY CITY,Nov,7,2008,Advertising and Promotions,UNRESTRICTED,$162.02
48,J.F. Drake State,10028883,PURCHASE POWER,Nov,7,2008,Communications,UNRESTRICTED,$834.95
48,J.F. Drake State,10028884,SAFETY KLEEN CORPORATION,Nov,7,2008,Other Contractual Services,UNRESTRICTED,$182.90
48,J.F. Drake State,10028885,SAM'S CLUB/WALMART,Nov,7,2008,Advertising and Promotions,UNRESTRICTED,$802.66
48,J.F. Drake State,10028885,SAM'S CLUB/WALMART,Nov,7,2008,Materials and Supplies,UNRESTRICTED,$203.67
48,J.F. Drake State,10028886,SEXTON WELDING SUPPLY,Nov,7,2008,Other Contractual Services,UNRESTRICTED,"$2,186.58"
48,J.F. Drake State,10028888,VERIZON WIRELESS,Nov,7,2008,Communications,UNRESTRICTED,"$1,012.99"
48,J.F. Drake State,20036589,AMERICAN EXPRESS,Nov,7,2008,Out-of-State Travel,TITLE III CARRYOVER,$261.00
48,J.F. Drake State,20036590,BAKER & TAYLOR BOOKS,Nov,7,2008,Books,TITLE III CARRYOVER,"$1,527.11"
48,J.F. Drake State,20036591,BUSINESS SYSTEMS & CONSUL,Nov,7,2008,Materials and Supplies,,"$7,560.55"
48,J.F. Drake State,20036593,"MCALPINE, HELEN",Nov,7,2008,Out-of-State Travel,TITLE III CARRYOVER,$118.26
48,J.F. Drake State,20036593,"MCALPINE, HELEN",Nov,7,2008,Employee Taxable Per Diem,TITLE III CARRYOVER,$11.25
48,J.F. Drake State,20036594,MIKE HOLT ENTERPRISES,Nov,7,2008,Books,,"$2,110.51"
48,J.F. Drake State,20036595,"OFFICE DEPOT, INC.",Nov,7,2008,Materials and Supplies,TITLE III CARRYOVER,"$1,552.99"
48,J.F. Drake State,20036596,"SCHOOLCRAFT, INC.",Nov,7,2008,Materials and Supplies,TITLE III CARRYOVER,$176.71
48,J.F. Drake State,10028862,AL.COM,Nov,6,2008,Advertising and Promotions,UNRESTRICTED,"$1,500.00"
48,J.F. Drake State,10028863,"BURKETT SCHOOL SUPPLY,LLC",Nov,6,2008,Materials and Supplies,UNRESTRICTED,$368.00
48,J.F. Drake State,10028864,THE LAMAR COMPANIES,Nov,6,2008,Advertising and Promotions,UNRESTRICTED,$840.00
48,J.F. Drake State,10028865,THE INTEGRITY GROUP,Nov,6,2008,Other Contractual Services,UNRESTRICTED,$135.00
48,J.F. Drake State,10028866,XEROX CORPORATION,Nov,6,2008,Other Contractual Services,,$146.17
48,J.F. Drake State,20036583,ALA VETERANS AFFAIRS ASSO,Nov,6,2008,Materials and Supplies,TITLE III CARRYOVER,$125.00
48,J.F. Drake State,20036584,JMS METAL SERVICES,Nov,6,2008,Materials and Supplies,,$295.00
48,J.F. Drake State,20036585,"MCALPINE, HELEN",Nov,6,2008,Out-of-State Travel,TITLE III CARRYOVER,$16.00
48,J.F. Drake State,20036586,"OFFICE DEPOT, INC.",Nov,6,2008,Materials and Supplies,TITLE III CARRYOVER,$879.13
48,J.F. Drake State,20036587,SACS/COC ANNUAL MEETING,Nov,6,2008,Out-of-State Travel,TITLE III CARRYOVER,$455.00
48,J.F. Drake State,10028810,ACCA REGISTRATION,Oct,31,2008,Memberships,UNRESTRICTED,"$1,000.00"
48,J.F. Drake State,10028811,AL LABOR LAW POSTER,Oct,31,2008,Materials and Supplies,UNRESTRICTED,$67.25
48,J.F. Drake State,10028812,BROOKS LOCK & KEY,Oct,31,2008,Materials and Supplies,UNRESTRICTED,$65.50
48,J.F. Drake State,10028813,CENGAGE LEARNING,Oct,31,2008,Purchases for Resale,UNRESTRICTED,"$2,034.79"
48,J.F. Drake State,10028814,CENGAGE LEARNING,Oct,31,2008,Purchases for Resale,UNRESTRICTED,"$3,051.95"
48,J.F. Drake State,10028815,CENTRAL PAPER COMPANY,Oct,31,2008,Materials and Supplies,UNRESTRICTED,$886.20
48,J.F. Drake State,10028816,COUNCIL ON OCCUP. EDUC.,Oct,31,2008,In-State Travel,UNRESTRICTED,$525.00
48,J.F. Drake State,10028817,FEDEX,Oct,31,2008,Postage,UNRESTRICTED,$145.31
48,J.F. Drake State,10028817,FEDEX,Oct,31,2008,Communications,UNRESTRICTED,$24.21
48,J.F. Drake State,10028818,GRAINGER,Oct,31,2008,Materials and Supplies,UNRESTRICTED,$15.51
48,J.F. Drake State,10028819,HUNTSVILLE TIMES,Oct,31,2008,Advertising and Promotions,UNRESTRICTED,$199.86
48,J.F. Drake State,10028820,HUNTSVILLE HELIUM,Oct,31,2008,Advertising and Promotions,UNRESTRICTED,$450.00
48,J.F. Drake State,10028821,KELSEY ELECTRIC,Oct,31,2008,Maintenance and Repairs,UNRESTRICTED,$103.49
48,J.F. Drake State,10028823,"MCALPINE, HELEN",Oct,31,2008,Employee Taxable Per Diem,UNRESTRICTED,$33.75
48,J.F. Drake State,10028823,"MCALPINE, HELEN",Oct,31,2008,In-State Travel,UNRESTRICTED,$225.00
48,J.F. Drake State,10028824,MID CITY SUPPLY CO,Oct,31,2008,Materials and Supplies,UNRESTRICTED,"$2,192.15"
48,J.F. Drake State,10028826,OAKSTONE PUB,Oct,31,2008,"Printing, Reproduction and Bin",UNRESTRICTED,$385.32
48,J.F. Drake State,10028827,PEARSON EDUCATION CTR,Oct,31,2008,Purchases for Resale,UNRESTRICTED,"$1,075.26"
48,J.F. Drake State,10028828,"QUALITY COUNTS, INC",Oct,31,2008,Purchases for Resale,AUXILIARY,"$1,437.00"
48,J.F. Drake State,10028829,ROTO-ROOTER PLUMBERS,Oct,31,2008,Materials and Supplies,UNRESTRICTED,$109.00
48,J.F. Drake State,10028830,SAM'S CLUB/WALMART,Oct,31,2008,Materials and Supplies,UNRESTRICTED,$168.72
48,J.F. Drake State,10028831,SERVICE CLEANERS AND LAUN,Oct,31,2008,Materials and Supplies,UNRESTRICTED,$231.75
48,J.F. Drake State,10028833,TENNESSEE VALLEY SIGNS,Oct,31,2008,Materials and Supplies,UNRESTRICTED,$679.50
48,J.F. Drake State,10028834,US SPACE & ROCKET CENTER,Oct,31,2008,Advertising and Promotions,UNRESTRICTED,"$1,500.00"
48,J.F. Drake State,10028835,"JOHN WILEY & SONS, INC.",Oct,31,2008,Purchases for Resale,UNRESTRICTED,"$2,454.89"
48,J.F. Drake State,14692,DANIEL BROWN,Oct,31,2008,Instructional Salaries - Tempo,UNRESTRICTED,$337.50
48,J.F. Drake State,14693,JOHN W HARRIS,Oct,31,2008,Other Contractual Services,TITLE III CARRYOVER,"$1,420.00"
48,J.F. Drake State,14694,TOBY R HOLLOWAY,Oct,31,2008,Instructional Salaries - Tempo,UNRESTRICTED,$975.94
48,J.F. Drake State,14695,NICHOLAS PAUL KSEPKA,Oct,31,2008,Hourly Wages,UNRESTRICTED,"$1,447.50"
48,J.F. Drake State,14696,SIRLINDA M LATTIMORE,Oct,31,2008,Instructional Salaries - Tempo,UNRESTRICTED,$281.25
48,J.F. Drake State,14697,JAMES ANTHONY PLENTY,Oct,31,2008,Instructional Salaries - Tempo,UNRESTRICTED,$281.25
48,J.F. Drake State,14698,LORAINE RAGIN,Oct,31,2008,Instructional Salaries - Tempo,UNRESTRICTED,"$1,979.06"
48,J.F. Drake State,14699,MIRIE WESTBROOK III,Oct,31,2008,Instructional Salaries - Tempo,UNRESTRICTED,$675.00
48,J.F. Drake State,14700,BONITA YOUNG,Oct,31,2008,Instructional Salaries - Regul,UNRESTRICTED,"$4,230.88"
48,J.F. Drake State,90009772,JADA M BARRETT,Oct,31,2008,Instructional Salaries - Tempo,UNRESTRICTED,$337.50
48,J.F. Drake State,90009773,BEN BATTLE,Oct,31,2008,Instructional Salaries - Regul,UNRESTRICTED,"$5,706.33"
48,J.F. Drake State,90009775,HAROLD E BATTS,Oct,31,2008,Other Professional Salaries -,UNRESTRICTED,"$8,503.50"
48,J.F. Drake State,90009777,DALE W BAXTER,Oct,31,2008,Other Professional Salaries -,UNRESTRICTED,"$7,193.75"
48,J.F. Drake State,90009778,ANGELA NICOLE BELL,Oct,31,2008,Instructional Salaries - Regul,UNRESTRICTED,"$4,675.56"
48,J.F. Drake State,90009778,ANGELA NICOLE BELL,Oct,31,2008,Instructional Salaries - Tempo,UNRESTRICTED,$337.50
48,J.F. Drake State,90009779,DORIS I BOWMAN,Oct,31,2008,Other Contractual Services,NAT'L SCIENCE FOUNDATION,$145.80
48,J.F. Drake State,90009780,NINA BULLOCK,Oct,31,2008,Instructional Salaries - Regul,UNRESTRICTED,"$4,713.33"
48,J.F. Drake State,90009781,KHALILAH BURTON,Oct,31,2008,Instructional Salaries - Regul,UNRESTRICTED,"$4,675.63"
48,J.F. Drake State,90009781,KHALILAH BURTON,Oct,31,2008,Instructional Salaries - Tempo,UNRESTRICTED,$562.50
48,J.F. Drake State,90009782,NECHA L BURTON,Oct,31,2008,Support Personnel Salaries - S,UNRESTRICTED,"$2,365.88"
48,J.F. Drake State,90009782,NECHA L BURTON,Oct,31,2008,Support Personnel Salaries - S,TITLE III CARRYOVER,$788.63
48,J.F. Drake State,90009784,TROY M CAMPBELL,Oct,31,2008,Instructional Salaries - Tempo,UNRESTRICTED,$562.50
48,J.F. Drake State,90009785,TINA COTHREN,Oct,31,2008,Instructional Salaries - Tempo,UNRESTRICTED,$749.00
48,J.F. Drake State,90009786,MICHELLE R CUNNINGHAM,Oct,31,2008,Instructional Salaries - Regul,UNRESTRICTED,"$3,617.83"
48,J.F. Drake State,90009786,MICHELLE R CUNNINGHAM,Oct,31,2008,Instructional Salaries - Tempo,UNRESTRICTED,$337.50
48,J.F. Drake State,90009786,MICHELLE R CUNNINGHAM,Oct,31,2008,Instructional Salaries - Regul,NAT'L SCIENCE FOUNDATION,"$1,205.94"
48,J.F. Drake State,90009787,CHRISTINE H DAVIS,Oct,31,2008,Instructional Salaries - Regul,UNRESTRICTED,"$5,306.33"
48,J.F. Drake State,90009787,CHRISTINE H DAVIS,Oct,31,2008,Instructional Salaries - Tempo,UNRESTRICTED,$675.00
48,J.F. Drake State,90009788,MATTIE D DAVIS,Oct,31,2008,Instructional Salaries - Regul,UNRESTRICTED,"$3,729.00"
48,J.F. Drake State,90009788,MATTIE D DAVIS,Oct,31,2008,Instructional Salaries - Regul,NAT'L SCIENCE FOUNDATION,"$1,243.00"
48,J.F. Drake State,90009789,MARTY J EATON,Oct,31,2008,Other Professional Salaries -,,"$1,595.00"
48,J.F. Drake State,90009790,MARY D FISHER,Oct,31,2008,Instructional Salaries - Tempo,UNRESTRICTED,$337.50
48,J.F. Drake State,90009791,BERNELL S FONTENOT,Oct,31,2008,Support Personnel Salaries - S,UNRESTRICTED,"$3,973.25"
48,J.F. Drake State,90009792,EDWIN T FORBES,Oct,31,2008,Instructional Salaries - Regul,UNRESTRICTED,"$3,840.25"
48,J.F. Drake State,90009793,MIRIAM B FRANK,Oct,31,2008,Instructional Salaries - Regul,UNRESTRICTED,"$4,840.92"
48,J.F. Drake State,90009794,MATTIE B FREEMAN,Oct,31,2008,Instructional Salaries - Tempo,UNRESTRICTED,"$1,444.50"
48,J.F. Drake State,90009795,BRENDA H FRIEND,Oct,31,2008,Other Professional Salaries -,TITLE III CARRYOVER,"$7,905.25"
48,J.F. Drake State,90009796,KIM GALKOWSKI,Oct,31,2008,Support Personnel Salaries - S,UNRESTRICTED,"$3,972.50"
48,J.F. Drake State,90009797,BONNIE GARRETT,Oct,31,2008,Instructional Salaries - Tempo,UNRESTRICTED,"$1,076.25"
48,J.F. Drake State,90009798,DAMEON L HAGLER,Oct,31,2008,Other Contractual Services,NAT'L SCIENCE FOUNDATION,"$1,120.00"
48,J.F. Drake State,90009799,MANELZA CRAWFORD HAMBRICK,Oct,31,2008,Support Personnel Salaries - S,UNRESTRICTED,"$2,336.50"
48,J.F. Drake State,90009800,ALIREZA HASSANZADEH,Oct,31,2008,Other Contractual Services,NAT'L SCIENCE FOUNDATION,"$1,360.00"
48,J.F. Drake State,90009801,KENNETH DOUGLAS HAYNES,Oct,31,2008,Other Contractual Services,NAT'L SCIENCE FOUNDATION,$142.50
48,J.F. Drake State,90009802,CAROLYN HENDERSON,Oct,31,2008,Instructional Salaries - Regul,UNRESTRICTED,"$5,120.34"
48,J.F. Drake State,90009802,CAROLYN HENDERSON,Oct,31,2008,Instructional Salaries - Tempo,UNRESTRICTED,$337.50
48,J.F. Drake State,90009803,DEXTER R HENRY,Oct,31,2008,Instructional Salaries - Regul,UNRESTRICTED,"$6,120.44"
48,J.F. Drake State,90009803,DEXTER R HENRY,Oct,31,2008,Instructional Salaries - Tempo,UNRESTRICTED,$562.50
48,J.F. Drake State,90009804,KARL W HENRY SR,Oct,31,2008,Instructional Salaries - Regul,UNRESTRICTED,"$6,713.44"
48,J.F. Drake State,90009804,KARL W HENRY SR,Oct,31,2008,Instructional Salaries - Tempo,UNRESTRICTED,$454.19
48,J.F. Drake State,90009805,ELBREY WARREN HERRING,Oct,31,2008,Instructional Salaries - Tempo,UNRESTRICTED,$675.00
48,J.F. Drake State,90009806,DORIS HINTON,Oct,31,2008,Instructional Salaries - Regul,UNRESTRICTED,"$4,861.56"
48,J.F. Drake State,90009807,PATRICIA HUGHES,Oct,31,2008,Administrative Salaries- Sched,UNRESTRICTED,"$7,747.64"
48,J.F. Drake State,90009809,JAN J HYMAN,Oct,31,2008,Support Personnel Salaries - S,UNRESTRICTED,"$2,187.58"
48,J.F. Drake State,90009811,DEMARIS JENKINS,Oct,31,2008,Instructional Salaries - Tempo,UNRESTRICTED,$337.50
48,J.F. Drake State,90009812,DONYALE D JONES,Oct,31,2008,Support Personnel Salaries - S,TITLE III CARRYOVER,"$3,303.42"
48,J.F. Drake State,90009813,RUTH D JONES,Oct,31,2008,Instructional Salaries - Tempo,UNRESTRICTED,$562.50
48,J.F. Drake State,90009814,FELICIA KAIGLER,Oct,31,2008,Instructional Salaries - Tempo,UNRESTRICTED,"$1,170.00"
48,J.F. Drake State,90009815,ANNIE R KNIGHT,Oct,31,2008,Instructional Salaries - Tempo,UNRESTRICTED,$337.50
48,J.F. Drake State,90009816,SUSAN KREULEN,Oct,31,2008,Instructional Salaries - Regul,UNRESTRICTED,"$2,750.00"
48,J.F. Drake State,90009817,HONG THUYDUC LAM,Oct,31,2008,Instructional Salaries - Regul,UNRESTRICTED,"$5,527.33"
48,J.F. Drake State,90009818,JOYCE P LAMAR,Oct,31,2008,Support Personnel Salaries - S,UNRESTRICTED,"$1,683.00"
48,J.F. Drake State,90009819,JOAN C LEATHERWOOD,Oct,31,2008,Instructional Salaries - Tempo,READY TO WORK,"$2,400.00"
48,J.F. Drake State,90009820,JOEL M LINER,Oct,31,2008,Instructional Salaries - Tempo,UNRESTRICTED,$975.94
48,J.F. Drake State,90009821,STACY L LUNDY,Oct,31,2008,Support Personnel Salaries - S,UNRESTRICTED,$504.80
48,J.F. Drake State,90009821,STACY L LUNDY,Oct,31,2008,Support Personnel Salaries - S,NAT'L SCIENCE FOUNDATION,$504.80
48,J.F. Drake State,90009822,DANIEL K MARCUM,Oct,31,2008,Support Personnel Salaries - S,UNRESTRICTED,"$2,485.17"
48,J.F. Drake State,90009823,MICHEAL V MAXTON,Oct,31,2008,Instructional Salaries - Tempo,UNRESTRICTED,$337.50
48,J.F. Drake State,90009824,HELEN T MCALPINE,Oct,31,2008,Administrative Salaries- Sched,UNRESTRICTED,"$14,266.45"
48,J.F. Drake State,90009824,HELEN T MCALPINE,Oct,31,2008,President's Expense Allowance,UNRESTRICTED,$200.00
48,J.F. Drake State,90009824,HELEN T MCALPINE,Oct,31,2008,Housing Allowance,UNRESTRICTED,"$1,000.00"
48,J.F. Drake State,90009825,JERRY L MCCAULLEY,Oct,31,2008,Instructional Salaries - Tempo,UNRESTRICTED,$975.94
48,J.F. Drake State,90009826,BRENDA MCCRAY,Oct,31,2008,Other Professional Salaries -,UNRESTRICTED,"$4,000.00"
48,J.F. Drake State,90009827,BOBBY F MCDONALD,Oct,31,2008,Instructional Salaries - Tempo,UNRESTRICTED,$337.50
48,J.F. Drake State,90009828,NITA S. MCGILL,Oct,31,2008,Instructional Salaries - Tempo,UNRESTRICTED,$963.00
48,J.F. Drake State,90009829,SCOTTY MCLAUGHLIN,Oct,31,2008,Instructional Salaries - Regul,UNRESTRICTED,"$7,016.44"
48,J.F. Drake State,90009829,SCOTTY MCLAUGHLIN,Oct,31,2008,Instructional Salaries - Tempo,UNRESTRICTED,$112.50
48,J.F. Drake State,90009830,PAMELA F MCTILLER,Oct,31,2008,Instructional Salaries - Tempo,UNRESTRICTED,$337.50
48,J.F. Drake State,90009831,DEBORAH A MILLING,Oct,31,2008,Instructional Salaries - Regul,UNRESTRICTED,"$4,590.33"
48,J.F. Drake State,90009832,SAMMY J MILTON,Oct,31,2008,Support Personnel Salaries - S,UNRESTRICTED,"$3,452.83"
48,J.F. Drake State,90009833,PREMA A MONTEIRO,Oct,31,2008,Instructional Salaries - Tempo,UNRESTRICTED,$337.50
48,J.F. Drake State,90009833,PREMA A MONTEIRO,Oct,31,2008,Instructional Salaries - Regul,,"$4,527.33"
48,J.F. Drake State,90009834,DANA MOORE,Oct,31,2008,Other Professional Salaries -,,"$8,503.50"
48,J.F. Drake State,90009835,MARY JO MORAN,Oct,31,2008,Instructional Salaries - Tempo,UNRESTRICTED,"$1,444.50"
48,J.F. Drake State,90009836,BRUCE D MORRISON,Oct,31,2008,Support Personnel Salaries - S,UNRESTRICTED,"$4,047.25"
48,J.F. Drake State,90009837,KATHRYN B NEAL,Oct,31,2008,Other Professional Salaries -,UNRESTRICTED,"$7,905.25"
48,J.F. Drake State,90009839,KAREN NEIR,Oct,31,2008,Instructional Salaries - Tempo,UNRESTRICTED,"$1,310.75"
48,J.F. Drake State,90009840,JENNIFER O'LINGER,Oct,31,2008,Support Personnel Salaries - S,UNRESTRICTED,"$3,079.83"
48,J.F. Drake State,90009841,DONALD ORR,Oct,31,2008,Support Personnel Salaries - S,UNRESTRICTED,"$3,601.25"
48,J.F. Drake State,90009842,WILLIE C PATTON,Oct,31,2008,Instructional Salaries - Tempo,UNRESTRICTED,"$1,076.25"
48,J.F. Drake State,90009843,JAMES W PLEASURE,Oct,31,2008,Instructional Salaries - Tempo,UNRESTRICTED,"$1,076.25"
48,J.F. Drake State,90009844,GWENDOLYN D POPE,Oct,31,2008,Instructional Salaries - Regul,UNRESTRICTED,"$5,540.58"
48,J.F. Drake State,90009844,GWENDOLYN D POPE,Oct,31,2008,Instructional Salaries - Tempo,UNRESTRICTED,$675.00
48,J.F. Drake State,90009845,KARRIE PRATT,Oct,31,2008,Instructional Salaries - Tempo,UNRESTRICTED,"$1,217.13"
48,J.F. Drake State,90009846,FREDRICK O PRUITT,Oct,31,2008,Instructional Salaries - Regul,UNRESTRICTED,"$4,675.56"
48,J.F. Drake State,90009846,FREDRICK O PRUITT,Oct,31,2008,Instructional Salaries - Tempo,UNRESTRICTED,$975.94
48,J.F. Drake State,90009847,MICHAEL RADDEN,Oct,31,2008,Instructional Salaries - Tempo,UNRESTRICTED,$337.50
48,J.F. Drake State,90009848,WELDON RAGLAND,Oct,31,2008,Instructional Salaries - Tempo,UNRESTRICTED,$675.00
48,J.F. Drake State,90009849,ALICE G RAYMOND,Oct,31,2008,Instructional Salaries - Regul,UNRESTRICTED,"$6,520.44"
48,J.F. Drake State,90009850,JOYCE L RENTZ,Oct,31,2008,Instructional Salaries - Tempo,UNRESTRICTED,$337.50
48,J.F. Drake State,90009850,JOYCE L RENTZ,Oct,31,2008,Instructional Salaries - Regul,UNRESTRICTED,"$6,706.33"
48,J.F. Drake State,90009851,JOHN REUTTER III,Oct,31,2008,Administrative Salaries- Sched,UNRESTRICTED,"$8,205.34"
48,J.F. Drake State,90009852,MARTHA J ROBERTS,Oct,31,2008,Support Personnel Salaries - S,UNRESTRICTED,"$4,940.33"
48,J.F. Drake State,90009853,CHRISTINA R SCISSUM,Oct,31,2008,Other Professional Salaries -,TITLE III CARRYOVER,"$4,012.50"
48,J.F. Drake State,90009854,LESLEY SHOTTS,Oct,31,2008,Instructional Salaries - Tempo,UNRESTRICTED,$187.50
48,J.F. Drake State,90009854,LESLEY SHOTTS,Oct,31,2008,Other Professional Salaries -,UNRESTRICTED,"$4,044.75"
48,J.F. Drake State,90009855,ANGELA P SIMMONS,Oct,31,2008,Instructional Salaries - Tempo,UNRESTRICTED,$862.69
48,J.F. Drake State,90009856,COLLIS H SIMS III,Oct,31,2008,Instructional Salaries - Regul,UNRESTRICTED,"$4,565.11"
48,J.F. Drake State,90009856,COLLIS H SIMS III,Oct,31,2008,Instructional Salaries - Tempo,UNRESTRICTED,"$1,076.25"
48,J.F. Drake State,90009857,PATRICIA GORDON SIMS,Oct,31,2008,Administrative Salaries- Sched,TITLE III CARRYOVER,"$8,372.01"
48,J.F. Drake State,90009858,RYAN E SMITH,Oct,31,2008,Other Contractual Services,TITLE III CARRYOVER,"$1,060.00"
48,J.F. Drake State,90009859,DELORIS A SMOTHERS,Oct,31,2008,Instructional Salaries - Regul,UNRESTRICTED,"$6,713.44"
48,J.F. Drake State,90009859,DELORIS A SMOTHERS,Oct,31,2008,Instructional Salaries - Tempo,UNRESTRICTED,$675.00
48,J.F. Drake State,90009860,VERLINDSEY B STEWART,Oct,31,2008,Instructional Salaries - Regul,UNRESTRICTED,"$6,616.44"
48,J.F. Drake State,90009861,MONICA SUDEALL-HAWKINS,Oct,31,2008,Instructional Salaries - Tempo,UNRESTRICTED,$900.00
48,J.F. Drake State,90009861,MONICA SUDEALL-HAWKINS,Oct,31,2008,Other Professional Salaries -,UNRESTRICTED,"$4,993.33"
48,J.F. Drake State,90009862,RICHARD M SWAIM,Oct,31,2008,Instructional Salaries - Tempo,UNRESTRICTED,$562.50
48,J.F. Drake State,90009863,DAVID ADAM TESTERMAN,Oct,31,2008,Other Contractual Services,NAT'L SCIENCE FOUNDATION,$414.00
48,J.F. Drake State,90009864,KOBIN DELL THACKER,Oct,31,2008,Instructional Salaries - Regul,UNRESTRICTED,"$5,823.89"
48,J.F. Drake State,90009865,JOY D TORNQUIST,Oct,31,2008,Instructional Salaries - Tempo,UNRESTRICTED,"$1,952.75"
48,J.F. Drake State,90009866,JOYLYN ERNA TROTMAN,Oct,31,2008,Other Professional Salaries -,UNRESTRICTED,"$4,465.83"
48,J.F. Drake State,90009867,GILBERT T TURLEY,Oct,31,2008,Other Professional Salaries -,UNRESTRICTED,"$6,450.08"
48,J.F. Drake State,90009868,LETITIA E WALKER,Oct,31,2008,Support Personnel Salaries - S,UNRESTRICTED,"$3,080.50"
48,J.F. Drake State,90009869,THEO NATHAN WALSTON,Oct,31,2008,Other Contractual Services,NAT'L SCIENCE FOUNDATION,"$1,209.00"
48,J.F. Drake State,90009870,RUSTIN D WEBSTER,Oct,31,2008,Instructional Salaries - Tempo,UNRESTRICTED,$562.50
48,J.F. Drake State,90009871,YVONNE M WHITE,Oct,31,2008,Support Personnel Salaries - S,UNRESTRICTED,"$1,142.02"
48,J.F. Drake State,90009871,YVONNE M WHITE,Oct,31,2008,Support Personnel Salaries - S,TITLE III CARRYOVER,"$3,426.06"
48,J.F. Drake State,90009874,SHERYL A WIESCHHAUS,Oct,31,2008,Instructional Salaries - Tempo,UNRESTRICTED,$562.50
48,J.F. Drake State,90009875,SANOYIA L WILLIAMS,Oct,31,2008,Instructional Salaries - Tempo,UNRESTRICTED,$675.00
48,J.F. Drake State,90009876,DAWN WILLIAMSON-ASHLEY,Oct,31,2008,Instructional Salaries - Tempo,UNRESTRICTED,$281.25
48,J.F. Drake State,90009877,GEORGE R WINN,Oct,31,2008,Instructional Salaries - Regul,UNRESTRICTED,"$5,379.13"
48,J.F. Drake State,90009878,ANDRAIN YELDELL,Oct,31,2008,Instructional Salaries - Tempo,UNRESTRICTED,$187.50
48,J.F. Drake State,20036567,ALCA,Oct,29,2008,In-State Travel,TITLE III CARRYOVER,$85.00
48,J.F. Drake State,20036568,CONVERGED RESOURCE INTEG,Oct,29,2008,Service Contracts on Equipment,TITLE III CARRYOVER,$98.50
48,J.F. Drake State,74180000,CHASE,Oct,23,2008,Materials and Supplies,UNRESTRICTED,$103.78
48,J.F. Drake State,74180000,CHASE,Oct,23,2008,Out-of-State Travel,UNRESTRICTED,"$1,339.68"
48,J.F. Drake State,74180000,CHASE,Oct,23,2008,Advertising and Promotions,UNRESTRICTED,$31.32
48,J.F. Drake State,20036157,"ALLIANT DATA SYSTEM,INC",Oct,23,2008,Other Contractual Services,TITLE III CARRYOVER,"$2,599.70"
48,J.F. Drake State,20036158,DRAKE STATE UNRESTRICTED,Oct,23,2008,In-State Travel,TITLE III CARRYOVER,"$1,048.91"
48,J.F. Drake State,20036159,KIM GALKOWSKI,Oct,23,2008,In-State Travel,TITLE III CARRYOVER,$11.25
48,J.F. Drake State,20036160,"HUGHES, PATRICIA",Oct,23,2008,Out-of-State Travel,TITLE III CARRYOVER,$105.00
48,J.F. Drake State,20036161,"NEAL, KATHRYN B.",Oct,23,2008,In-State Travel,TITLE III CARRYOVER,$139.82
48,J.F. Drake State,20036161,"NEAL, KATHRYN B.",Oct,23,2008,Employee Taxable Per Diem,TITLE III CARRYOVER,$11.25
48,J.F. Drake State,20036162,DELORIS SMOTHERS,Oct,23,2008,In-State Travel,TITLE III CARRYOVER,$211.23
48,J.F. Drake State,10028793,"DYNAMIC SECURITY, INC.",Oct,23,2008,Other Contractual Services,UNRESTRICTED,"$2,162.16"
48,J.F. Drake State,10028794,HUNTSVILLE TIMES,Oct,23,2008,Advertising and Promotions,UNRESTRICTED,$176.22
48,J.F. Drake State,10028795,LEAGUE INNOVATION,Oct,23,2008,Memberships,UNRESTRICTED,$825.00
48,J.F. Drake State,10028796,"MCALPINE, HELEN",Oct,23,2008,Institutional Allowance,UNRESTRICTED,$195.51
48,J.F. Drake State,10028797,"MCGRIFF, SEIBELS & WILLIA",Oct,23,2008,Insurance and Bonding,UNRESTRICTED,$362.67
48,J.F. Drake State,10028798,"QUALITY COUNTS, INC",Oct,23,2008,Purchases for Resale,AUXILIARY,$933.00
48,J.F. Drake State,10028799,RANEY TRUSS,Oct,23,2008,Alterations,PSCA FUNDS,"$11,900.00"
48,J.F. Drake State,10028800,UPS,Oct,23,2008,Freight,UNRESTRICTED,$192.16
48,J.F. Drake State,20036148,CALHOUN COMMUNITY COLLEGE,Oct,21,2008,State-Funded Professional Deve,,"$3,900.67"
48,J.F. Drake State,20036148,CALHOUN COMMUNITY COLLEGE,Oct,21,2008,Other Contractual Services,,"$18,261.00"
48,J.F. Drake State,20036149,"CUSTOM PLUS, INC",Oct,21,2008,Materials and Supplies,,"$3,350.00"
48,J.F. Drake State,20036151,ELLIS MFG CO. INC,Oct,21,2008,Materials and Supplies,,$398.00
48,J.F. Drake State,20036152,HAWORTH,Oct,21,2008,Materials and Supplies,,"$4,137.42"
48,J.F. Drake State,20036153,HAWORTH,Oct,21,2008,Materials and Supplies,,"$4,426.80"
48,J.F. Drake State,20036154,"HENRY, KARL W. SR.",Oct,21,2008,Out-of-State Travel,NAT'L SCIENCE FOUNDATION,$77.00
48,J.F. Drake State,20036155,DONYALE JONES,Oct,21,2008,In-State Travel,TITLE III CARRYOVER,$289.85
48,J.F. Drake State,10028759,AEW,Oct,21,2008,Advertising and Promotions,UNRESTRICTED,$160.00
48,J.F. Drake State,10028760,ROBBIE LEE AKINS,Oct,21,2008,Other Contractual Services,PLANT FUNDS,"$1,057.50"
48,J.F. Drake State,10028761,BETTER BUSINESS BUREAU,Oct,21,2008,Memberships,UNRESTRICTED,$410.00
48,J.F. Drake State,10028762,CENGAGE LEARNING,Oct,21,2008,Purchases for Resale,UNRESTRICTED,"$22,649.72"
48,J.F. Drake State,10028763,CHEVRON CARD SERVICES,Oct,21,2008,Gasoline and Oil - Motor Vehic,UNRESTRICTED,$630.30
48,J.F. Drake State,10028764,CONCEPTS INC.,Oct,21,2008,Advertising and Promotions,UNRESTRICTED,$639.32
48,J.F. Drake State,10028765,"DELL MARKETING, L.P.",Oct,21,2008,Materials and Supplies,UNRESTRICTED,"$23,910.00"
48,J.F. Drake State,10028766,DERICK HENRY,Oct,21,2008,Other Contractual Services,UNRESTRICTED,$840.00
48,J.F. Drake State,10028767,"DYNAMIC SECURITY, INC.",Oct,21,2008,Other Contractual Services,UNRESTRICTED,"$4,324.32"
48,J.F. Drake State,10028768,ETOWAH BUILDERS,Oct,21,2008,Alterations,PSCA FUNDS,"$14,844.55"
48,J.F. Drake State,10028769,FEDEX,Oct,21,2008,Postage,UNRESTRICTED,$61.80
48,J.F. Drake State,10028770,WILLIAM HAMPTON,Oct,21,2008,Other Contractual Services,UNRESTRICTED,$960.00
48,J.F. Drake State,10028772,HIGHLANDS OCCUPATIONAL ME,Oct,21,2008,Purchases for Resale,AUXILIARY,"$1,680.00"
48,J.F. Drake State,10028773,KOORSEN PROTECTION SERVIC,Oct,21,2008,Other Contractual Services,UNRESTRICTED,$300.00
48,J.F. Drake State,10028774,KUDZU PRODUCTION,Oct,21,2008,Advertising and Promotions,UNRESTRICTED,$85.00
48,J.F. Drake State,10028775,LEADERSHIP AL,Oct,21,2008,Memberships,UNRESTRICTED,$150.00
48,J.F. Drake State,10028776,LEDFORDS LANDSCAPING,Oct,21,2008,Other Contractual Services,UNRESTRICTED,"$2,225.00"
48,J.F. Drake State,10028777,LOWE'S,Oct,21,2008,Maintenance and Repairs,UNRESTRICTED,$60.00
48,J.F. Drake State,10028777,LOWE'S,Oct,21,2008,Materials and Supplies,UNRESTRICTED,$23.80
48,J.F. Drake State,10028778,PEARSON EDUCATION CTR,Oct,21,2008,Purchases for Resale,UNRESTRICTED,"$16,204.48"
48,J.F. Drake State,10028779,"QUALITY COUNTS, INC",Oct,21,2008,Purchases for Resale,AUXILIARY,$399.00
48,J.F. Drake State,10028781,SERVPRO OF N.HUNTSVILLE,Oct,21,2008,Other Contractual Services,UNRESTRICTED,"$12,000.00"
48,J.F. Drake State,10028782,SKT ARCHITECTS,Oct,21,2008,Other Contractual Services,PLANT FUNDS,"$10,335.37"
48,J.F. Drake State,10028783,SOUTHERNLINC WIRELESS,Oct,21,2008,Communications,UNRESTRICTED,$69.96
48,J.F. Drake State,10028785,VERIZON WIRELESS,Oct,21,2008,Communications,UNRESTRICTED,"$1,105.30"
48,J.F. Drake State,10028786,WASTE MANAGEMENT OF NORTH,Oct,21,2008,Other Contractual Services,UNRESTRICTED,$750.53
48,J.F. Drake State,10028787,XEROX CORPORATION,Oct,21,2008,Other Contractual Services,,$143.86
48,J.F. Drake State,47040000,CHASE,Oct,17,2008,Materials and Supplies,UNRESTRICTED,"$1,263.56"
48,J.F. Drake State,47040000,CHASE,Oct,17,2008,Purchases for Resale,UNRESTRICTED,$289.34
48,J.F. Drake State,73980000,AT&T,Oct,17,2008,Communications,UNRESTRICTED,$75.12
48,J.F. Drake State,73990000,AT&T,Oct,17,2008,Communications,UNRESTRICTED,$48.37
48,J.F. Drake State,74000000,AT&T,Oct,17,2008,Communications,UNRESTRICTED,$133.62
48,J.F. Drake State,74010000,AT&T,Oct,17,2008,Communications,UNRESTRICTED,$392.20
48,J.F. Drake State,74020000,AT&T,Oct,17,2008,Communications,UNRESTRICTED,"$2,853.25"
48,J.F. Drake State,74030000,AT&T,Oct,17,2008,Communications,UNRESTRICTED,$143.27
48,J.F. Drake State,74060000,COMCAST,Oct,17,2008,Communications,UNRESTRICTED,$56.76
48,J.F. Drake State,74070000,COOK'S PEST CONTROL,Oct,17,2008,Other Contractual Services,UNRESTRICTED,$67.00
48,J.F. Drake State,74080000,COOK'S PEST CONTROL,Oct,17,2008,Other Contractual Services,UNRESTRICTED,$249.00
48,J.F. Drake State,74090000,HUNTSVILLE UTILITIES,Oct,17,2008,Water and Sewer,UNRESTRICTED,$18.72
48,J.F. Drake State,74100000,HUNTSVILLE UTILITIES,Oct,17,2008,Water and Sewer,UNRESTRICTED,$400.32
48,J.F. Drake State,74110000,HUNTSVILLE UTILITIES,Oct,17,2008,Electricity,UNRESTRICTED,"$1,090.45"
48,J.F. Drake State,74110000,HUNTSVILLE UTILITIES,Oct,17,2008,Gas and Heating Fuel,UNRESTRICTED,$4.00
48,J.F. Drake State,74120000,HUNTSVILLE UTILITIES,Oct,17,2008,Water and Sewer,UNRESTRICTED,$222.35
48,J.F. Drake State,74130000,HUNTSVILLE UTILITIES,Oct,17,2008,Gas and Heating Fuel,UNRESTRICTED,$674.18
48,J.F. Drake State,74140000,HUNTSVILLE UTILITIES,Oct,17,2008,Electricity,UNRESTRICTED,"$10,725.38"
48,J.F. Drake State,74140000,HUNTSVILLE UTILITIES,Oct,17,2008,Water and Sewer,UNRESTRICTED,$87.13
48,J.F. Drake State,74150000,HUNTSVILLE UTILITIES,Oct,17,2008,Water and Sewer,UNRESTRICTED,$3.99
48,J.F. Drake State,74160000,WOW! BUSINESS,Oct,17,2008,Communications,UNRESTRICTED,$102.82
48,J.F. Drake State,74170000,PITNEY BOWES,Oct,17,2008,Postage,UNRESTRICTED,$700.00
48,J.F. Drake State,20036130,AMERICAN EXPRESS,Oct,15,2008,Out-of-State Travel,TITLE III CARRYOVER,$795.50
48,J.F. Drake State,20036131,CENTER FOR ED AND EMPLOY,Oct,15,2008,Books,TITLE III CARRYOVER,$154.95
48,J.F. Drake State,20036132,CHARLOTTE MARRIOTT EXEC.,Oct,15,2008,Out-of-State Travel,TITLE III CARRYOVER,$343.44
48,J.F. Drake State,20036133,"FONTENOT, BERNELL S.",Oct,15,2008,In-State Travel,TITLE III CARRYOVER,$12.46
48,J.F. Drake State,20036134,KIM GALKOWSKI,Oct,15,2008,Employee Taxable Per Diem,TITLE III CARRYOVER,$11.25
48,J.F. Drake State,20036134,KIM GALKOWSKI,Oct,15,2008,In-State Travel,TITLE III CARRYOVER,$359.68
48,J.F. Drake State,20036135,HBCU LIBRARY ALLIANCE,Oct,15,2008,Books,TITLE III CARRYOVER,$250.00
48,J.F. Drake State,20036136,HIGH POINT FURNITURE,Oct,15,2008,Materials and Supplies,,"$3,566.00"
48,J.F. Drake State,20036137,HIGH POINT FURNITURE,Oct,15,2008,Materials and Supplies,,"$3,077.76"
48,J.F. Drake State,20036138,INDIANA FURNITURE,Oct,15,2008,Materials and Supplies,,"$3,749.87"
48,J.F. Drake State,20036139,OFS/FIRST OFFICE,Oct,15,2008,Materials and Supplies,,"$1,320.76"
48,J.F. Drake State,20036140,PITNEY BOWES/REPAIRS,Oct,15,2008,Materials and Supplies,TITLE III CARRYOVER,$438.06
48,J.F. Drake State,20036141,SERVICE STEEL INCORP,Oct,15,2008,Materials and Supplies,,"$1,044.00"
48,J.F. Drake State,20036142,"SUDEALL, MONICA",Oct,15,2008,In-State Travel,TITLE III CARRYOVER,$122.85
48,J.F. Drake State,20036142,"SUDEALL, MONICA",Oct,15,2008,Employee Taxable Per Diem,TITLE III CARRYOVER,$11.25
48,J.F. Drake State,20036143,THE HON CO,Oct,15,2008,Materials and Supplies,,"$4,128.50"
48,J.F. Drake State,20036144,THE HON CO,Oct,15,2008,Materials and Supplies,,"$3,508.50"
48,J.F. Drake State,20036145,THE HON CO,Oct,15,2008,Materials and Supplies,,"$4,995.36"
48,J.F. Drake State,20036146,4IMPRINT,Oct,15,2008,Advertising and Promotions,READY TO WORK,"$3,089.96"
48,J.F. Drake State,10028746,ACT,Oct,14,2008,Materials and Supplies,UNRESTRICTED,$995.00
48,J.F. Drake State,10028747,"BURMAX, INC.",Oct,14,2008,Purchases for Resale,UNRESTRICTED,"$13,277.80"
48,J.F. Drake State,10028748,CM&F GROUP,Oct,14,2008,Purchases for Resale,AUXILIARY,"$1,008.00"
48,J.F. Drake State,10028749,GRAINGER,Oct,14,2008,Materials and Supplies,UNRESTRICTED,$567.46
48,J.F. Drake State,10028751,THE LAMAR COMPANIES,Oct,14,2008,Advertising and Promotions,UNRESTRICTED,"$1,300.00"
48,J.F. Drake State,10028752,"LANIER,FORD,SHAVER &",Oct,14,2008,Legal Services,UNRESTRICTED,$385.00
48,J.F. Drake State,10028754,BRENDA MCCRAY,Oct,14,2008,Employee Taxable Per Diem,UNRESTRICTED,$11.25
48,J.F. Drake State,10028755,PEARSON EDUCATION CTR,Oct,14,2008,Purchases for Resale,UNRESTRICTED,"$2,612.41"
48,J.F. Drake State,10028756,STATE DIV OF RISK MGT.,Oct,14,2008,Insurance and Bonding,UNRESTRICTED,"$19,417.00"
48,J.F. Drake State,10028757,4IMPRINT,Oct,14,2008,Advertising and Promotions,UNRESTRICTED,$353.92
48,J.F. Drake State,90009764,DALE W BAXTER,Oct,14,2008,Support Personnel Salaries - S,UNRESTRICTED,"$5,041.84"
48,J.F. Drake State,90009765,SAMMY J MILTON,Oct,14,2008,Support Personnel Salaries - S,UNRESTRICTED,"$1,752.96"
48,J.F. Drake State,90009766,DONALD ORR,Oct,14,2008,Support Personnel Salaries - S,UNRESTRICTED,"$3,200.12"
48,J.F. Drake State,10028724,ROBBIE LEE AKINS,Oct,10,2008,Other Contractual Services,UNRESTRICTED,$232.50
48,J.F. Drake State,10028725,DERICK HENRY,Oct,10,2008,Other Contractual Services,UNRESTRICTED,$420.00
48,J.F. Drake State,10028726,WILLIAM HAMPTON,Oct,10,2008,Other Contractual Services,UNRESTRICTED,$720.00
48,J.F. Drake State,90009768,LYSA AUGUSTIN,Oct,10,2008,Instructional Salaries - Regul,UNRESTRICTED,$572.00
48,J.F. Drake State,90009769,JACQUELINE M SHIVERS,Oct,10,2008,Instructional Salaries - Tempo,UNRESTRICTED,"$1,500.00"
48,J.F. Drake State,90009770,ELIZABETH A TUGGLE,Oct,10,2008,Instructional Salaries - Regul,UNRESTRICTED,$910.00
48,J.F. Drake State,10028716,ROBBIE LEE AKINS,Oct,9,2008,Other Contractual Services,UNRESTRICTED,"$1,050.00"
48,J.F. Drake State,10028717,CONDITIONED AIR SOLUTIONS,Oct,9,2008,Maintenance and Repairs,UNRESTRICTED,"$1,806.00"
48,J.F. Drake State,10028718,DERICK HENRY,Oct,9,2008,Other Contractual Services,UNRESTRICTED,$828.00
48,J.F. Drake State,10028719,"DYNAMIC SECURITY, INC.",Oct,9,2008,Other Contractual Services,UNRESTRICTED,"$2,162.16"
48,J.F. Drake State,10028720,FEDEX,Oct,9,2008,Postage,UNRESTRICTED,$35.37
48,J.F. Drake State,10028721,WILLIAM HAMPTON,Oct,9,2008,Other Contractual Services,UNRESTRICTED,$840.00
48,J.F. Drake State,10028722,MAGNA PUBLICATIONS,Oct,9,2008,Subscriptions,UNRESTRICTED,$208.00
48,J.F. Drake State,20036124,ALA COLL SYS FOUNDATION,Oct,9,2008,State-Funded Professional Deve,TITLE III CARRYOVER,$500.00
48,J.F. Drake State,20036125,CPCC FOUNDATION,Oct,9,2008,Out-of-State Travel,TITLE III CARRYOVER,$425.00
48,J.F. Drake State,20036127,"SIMS, PATRICIA G.",Oct,9,2008,In-State Travel,TITLE III CARRYOVER,$150.00
48,J.F. Drake State,20036128,THE WESTIN PEACHTREE PLAZ,Oct,9,2008,Other Contractual Services,NAT'L SCIENCE FOUNDATION,"$3,477.60"
48,J.F. Drake State,73950000,CHASE,Oct,6,2008,Institutional Allowance,UNRESTRICTED,$233.67
48,J.F. Drake State,73950000,CHASE,Oct,6,2008,Materials and Supplies,,$942.27
48,J.F. Drake State,73960000,CHASE,Oct,6,2008,Institutional Use,UNRESTRICTED,$929.22
48,J.F. Drake State,73960000,CHASE,Oct,6,2008,Materials and Supplies,UNRESTRICTED,$165.80
48,J.F. Drake State,73960000,CHASE,Oct,6,2008,Advertising and Promotions,UNRESTRICTED,$99.19
48,J.F. Drake State,10028837,ROBBIE LEE AKINS,Oct,5,2008,Other Contractual Services,PLANT FUNDS,"$1,170.00"
48,J.F. Drake State,10028838,DERICK HENRY,Oct,5,2008,Other Contractual Services,UNRESTRICTED,$840.00
48,J.F. Drake State,10028839,WILLIAM HAMPTON,Oct,5,2008,Other Contractual Services,UNRESTRICTED,$960.00
48,J.F. Drake State,90009752,CHRISTOPHER TURNER,Oct,2,2008,Support Personnel Salaries - S,NAT'L SCIENCE FOUNDATION,$728.00
48,J.F. Drake State,73760000,AT&T,Oct,1,2008,Communications,UNRESTRICTED,$48.25
48,J.F. Drake State,73770000,AT&T,Oct,1,2008,Communications,UNRESTRICTED,$80.13
48,J.F. Drake State,73780000,AT&T,Oct,1,2008,Communications,UNRESTRICTED,$392.20
48,J.F. Drake State,73790000,AT&T,Oct,1,2008,Communications,UNRESTRICTED,$133.50
48,J.F. Drake State,73800000,AT&T,Oct,1,2008,Communications,UNRESTRICTED,"$2,827.40"
48,J.F. Drake State,73810000,AT&T,Oct,1,2008,Communications,UNRESTRICTED,$144.46
48,J.F. Drake State,73830000,COMCAST,Oct,1,2008,Communications,UNRESTRICTED,$56.76
48,J.F. Drake State,73840000,COOK'S PEST CONTROL,Oct,1,2008,Other Contractual Services,UNRESTRICTED,$67.00
48,J.F. Drake State,73850000,COOK'S PEST CONTROL,Oct,1,2008,Other Contractual Services,UNRESTRICTED,$249.00
48,J.F. Drake State,73860000,HUNTSVILLE UTILITIES,Oct,1,2008,Water and Sewer,UNRESTRICTED,$18.72
48,J.F. Drake State,73870000,HUNTSVILLE UTILITIES,Oct,1,2008,Water and Sewer,UNRESTRICTED,$219.06
48,J.F. Drake State,73880000,HUNTSVILLE UTILITIES,Oct,1,2008,Electricity,UNRESTRICTED,"$1,423.58"
48,J.F. Drake State,73880000,HUNTSVILLE UTILITIES,Oct,1,2008,Gas and Heating Fuel,UNRESTRICTED,$4.00
48,J.F. Drake State,73890000,HUNTSVILLE UTILITIES,Oct,1,2008,Water and Sewer,UNRESTRICTED,$199.76
48,J.F. Drake State,73900000,HUNTSVILLE UTILITIES,Oct,1,2008,Water and Sewer,UNRESTRICTED,$3.81
48,J.F. Drake State,73910000,HUNTSVILLE UTILITIES,Oct,1,2008,Gas and Heating Fuel,UNRESTRICTED,$691.74
48,J.F. Drake State,73920000,HUNTSVILLE UTILITIES,Oct,1,2008,Electricity,UNRESTRICTED,"$11,476.29"
48,J.F. Drake State,73920000,HUNTSVILLE UTILITIES,Oct,1,2008,Water and Sewer,UNRESTRICTED,$98.90
48,J.F. Drake State,73930000,WOW! BUSINESS,Oct,1,2008,Communications,UNRESTRICTED,$102.82
48,J.F. Drake State,73940000,PITNEY BOWES,Oct,1,2008,Postage,UNRESTRICTED,$700.00
48,J.F. Drake State,10028624,AIRGAS SOUTH,Sep,30,2008,Purchases for Resale,UNRESTRICTED,"$2,543.40"
48,J.F. Drake State,10028625,ALA. SUPERCOMPUTER FUND,Sep,30,2008,Service Contracts on Equipment,UNRESTRICTED,"$6,689.00"
48,J.F. Drake State,10028626,CENGAGE LEARNING,Sep,30,2008,Purchases for Resale,UNRESTRICTED,$792.33
48,J.F. Drake State,10028627,CHEVRON CARD SERVICES,Sep,30,2008,Gasoline and Oil - Motor Vehic,UNRESTRICTED,$555.25
48,J.F. Drake State,10028628,CM&F GROUP,Sep,30,2008,Other Contractual Services,UNRESTRICTED,$100.00
48,J.F. Drake State,10028629,"DATA SUPPLIES, INC.",Sep,30,2008,Materials and Supplies,UNRESTRICTED,$340.68
48,J.F. Drake State,10028630,PETTY CASH,Sep,30,2008,Materials and Supplies,UNRESTRICTED,$212.99
48,J.F. Drake State,10028630,PETTY CASH,Sep,30,2008,Purchases for Resale,UNRESTRICTED,$28.56
48,J.F. Drake State,10028630,PETTY CASH,Sep,30,2008,Maintenance and Repairs,PLANT FUNDS,$14.72
48,J.F. Drake State,10028631,FEDEX,Sep,30,2008,Communications,UNRESTRICTED,$61.80
48,J.F. Drake State,10028631,FEDEX,Sep,30,2008,Postage,UNRESTRICTED,$116.55
48,J.F. Drake State,10028632,GRAINGER,Sep,30,2008,Purchases for Resale,UNRESTRICTED,"$1,592.80"
48,J.F. Drake State,10028633,GLIDDEN PROFESSIONAL PAI,Sep,30,2008,Maintenance and Repairs,PLANT FUNDS,$109.00
48,J.F. Drake State,10028634,J. A. MAJORS COMPANY,Sep,30,2008,Purchases for Resale,UNRESTRICTED,"$9,611.27"
48,J.F. Drake State,10028635,JOE EAST HEATING/AIR COND,Sep,30,2008,Materials and Supplies,PLANT FUNDS,"$8,184.00"
48,J.F. Drake State,10028636,"LANIER,FORD,SHAVER &",Sep,30,2008,Legal Services,UNRESTRICTED,"$1,200.00"
48,J.F. Drake State,10028637,LOWE'S,Sep,30,2008,Materials and Supplies,UNRESTRICTED,$442.52
48,J.F. Drake State,10028638,LST-LEARNING SYS TECH,Sep,30,2008,Materials and Supplies,UNRESTRICTED,"$16,617.00"
48,J.F. Drake State,10028639,"MCALPINE, HELEN",Sep,30,2008,Institutional Allowance,UNRESTRICTED,$96.82
48,J.F. Drake State,10028640,MCGRAW HILL EDUCATION,Sep,30,2008,Purchases for Resale,UNRESTRICTED,"$4,258.81"
48,J.F. Drake State,10028641,PITNEY BOWES,Sep,30,2008,Other Contractual Services,UNRESTRICTED,$657.00
48,J.F. Drake State,10028642,LOLITA MARCIA RENTIE,Sep,30,2008,Other Contractual Services,UNRESTRICTED,$414.00
48,J.F. Drake State,10028643,SAFETY KLEEN CORPORATION,Sep,30,2008,Materials and Supplies,UNRESTRICTED,$353.94
48,J.F. Drake State,10028644,SAM'S CLUB/WALMART,Sep,30,2008,Materials and Supplies,UNRESTRICTED,$34.90
48,J.F. Drake State,10028645,TARCOG,Sep,30,2008,Other Professional Fees,UNRESTRICTED,"$1,400.00"
48,J.F. Drake State,20036047,AAAS,Sep,30,2008,Out-of-State Travel,NAT'L SCIENCE FOUNDATION,"$1,300.00"
48,J.F. Drake State,20036048,AMERICAN EXPRESS,Sep,30,2008,Out-of-State Travel,TITLE III CARRYOVER,"$1,142.00"
48,J.F. Drake State,20036049,BAKER & TAYLOR BOOKS,Sep,30,2008,Materials and Supplies,,$21.62
48,J.F. Drake State,20036050,CONVERGED RESOURCE INTEG,Sep,30,2008,Service Contracts on Equipment,TITLE III CARRYOVER,$216.70
48,J.F. Drake State,20036051,KIM GALKOWSKI,Sep,30,2008,Employee Taxable Per Diem,TITLE III CARRYOVER,$11.25
48,J.F. Drake State,20036052,HBCU LIBRARY ALLIANCE,Sep,30,2008,Out-of-State Travel,TITLE III CARRYOVER,$125.00
48,J.F. Drake State,20036053,K-LOG,Sep,30,2008,Materials and Supplies,,"$3,138.40"
48,J.F. Drake State,20036054,DR. MOHAMMED R. KARIM,Sep,30,2008,Other Contractual Services,NAT'L SCIENCE FOUNDATION,"$1,300.00"
48,J.F. Drake State,20036056,TEST EQUIPMENT DEPOT,Sep,30,2008,Materials and Supplies,,"$10,475.20"
48,J.F. Drake State,10028649,"BURMAX, INC.",Sep,30,2008,Purchases for Resale,UNRESTRICTED,"$2,520.26"
48,J.F. Drake State,10028650,CENGAGE LEARNING,Sep,30,2008,Purchases for Resale,UNRESTRICTED,"$4,886.12"
48,J.F. Drake State,10028651,WILLIAM HAMPTON,Sep,30,2008,Other Contractual Services,UNRESTRICTED,$960.00
48,J.F. Drake State,10028652,HUNTSVILLE TIMES,Sep,30,2008,Advertising and Promotions,UNRESTRICTED,$166.77
48,J.F. Drake State,10028653,LOWE'S,Sep,30,2008,Maintenance and Repairs,UNRESTRICTED,$443.14
48,J.F. Drake State,10028654,MCGRAW HILL EDUCATION,Sep,30,2008,Purchases for Resale,UNRESTRICTED,"$1,138.11"
48,J.F. Drake State,10028655,MID CITY SUPPLY CO,Sep,30,2008,Materials and Supplies,UNRESTRICTED,"$1,656.71"
48,J.F. Drake State,10028656,SCHINDLER ELEVATOR CORP,Sep,30,2008,Materials and Supplies,UNRESTRICTED,$855.78
48,J.F. Drake State,10028657,UNIFORM CORNER,Sep,30,2008,Materials and Supplies,UNRESTRICTED,$193.75
48,J.F. Drake State,10028658,WILSON LUMBER COMPANY,Sep,30,2008,Materials and Supplies,PLANT FUNDS,$245.10
48,J.F. Drake State,14661,DANIEL BROWN,Sep,30,2008,Instructional Salaries - Tempo,UNRESTRICTED,$337.50
48,J.F. Drake State,14662,TOBY R HOLLOWAY,Sep,30,2008,Instructional Salaries - Tempo,UNRESTRICTED,$975.94
48,J.F. Drake State,14663,NICHOLAS PAUL KSEPKA,Sep,30,2008,Hourly Wages,UNRESTRICTED,"$1,695.00"
48,J.F. Drake State,14664,SIRLINDA M LATTIMORE,Sep,30,2008,Instructional Salaries - Tempo,UNRESTRICTED,$281.25
48,J.F. Drake State,14665,JOAN C LEATHERWOOD,Sep,30,2008,Instructional Salaries - Tempo,READY TO WORK,"$2,580.00"
48,J.F. Drake State,14666,JAMES ANTHONY PLENTY,Sep,30,2008,Instructional Salaries - Tempo,UNRESTRICTED,$281.25
48,J.F. Drake State,14667,LORAINE RAGIN,Sep,30,2008,Instructional Salaries - Tempo,UNRESTRICTED,"$1,979.06"
48,J.F. Drake State,14668,MIRIE WESTBROOK III,Sep,30,2008,Instructional Salaries - Tempo,UNRESTRICTED,$675.00
48,J.F. Drake State,14669,BONITA YOUNG,Sep,30,2008,Instructional Salaries - Regul,UNRESTRICTED,"$4,230.88"
48,J.F. Drake State,90009643,JADA M BARRETT,Sep,30,2008,Instructional Salaries - Tempo,UNRESTRICTED,$337.50
48,J.F. Drake State,90009644,BEN BATTLE,Sep,30,2008,Instructional Salaries - Regul,UNRESTRICTED,"$5,706.33"
48,J.F. Drake State,90009646,HAROLD E BATTS,Sep,30,2008,Other Professional Salaries -,UNRESTRICTED,"$8,503.50"
48,J.F. Drake State,90009648,DALE W BAXTER,Sep,30,2008,Other Professional Salaries -,UNRESTRICTED,"$7,193.75"
48,J.F. Drake State,90009649,ANGELA NICOLE BELL,Sep,30,2008,Instructional Salaries - Regul,UNRESTRICTED,"$4,675.56"
48,J.F. Drake State,90009649,ANGELA NICOLE BELL,Sep,30,2008,Instructional Salaries - Tempo,UNRESTRICTED,$337.50
48,J.F. Drake State,90009650,NINA BULLOCK,Sep,30,2008,Instructional Salaries - Regul,UNRESTRICTED,"$4,713.33"
48,J.F. Drake State,90009651,LINDA BURRUSS,Sep,30,2008,Other Contractual Services,NAT'L SCIENCE FOUNDATION,$650.00
48,J.F. Drake State,90009652,KHALILAH BURTON,Sep,30,2008,Instructional Salaries - Regul,UNRESTRICTED,"$4,675.63"
48,J.F. Drake State,90009652,KHALILAH BURTON,Sep,30,2008,Instructional Salaries - Tempo,UNRESTRICTED,$562.50
48,J.F. Drake State,90009653,NECHA L BURTON,Sep,30,2008,Support Personnel Salaries - S,UNRESTRICTED,"$2,365.88"
48,J.F. Drake State,90009653,NECHA L BURTON,Sep,30,2008,Support Personnel Salaries - S,TITLE III CARRYOVER,$788.63
48,J.F. Drake State,90009655,TROY M CAMPBELL,Sep,30,2008,Instructional Salaries - Tempo,UNRESTRICTED,$562.50
48,J.F. Drake State,90009656,TINA COTHREN,Sep,30,2008,Instructional Salaries - Tempo,UNRESTRICTED,$428.00
48,J.F. Drake State,90009657,MICHELLE R CUNNINGHAM,Sep,30,2008,Instructional Salaries - Regul,UNRESTRICTED,"$3,617.83"
48,J.F. Drake State,90009657,MICHELLE R CUNNINGHAM,Sep,30,2008,Instructional Salaries - Tempo,UNRESTRICTED,$337.50
48,J.F. Drake State,90009657,MICHELLE R CUNNINGHAM,Sep,30,2008,Instructional Salaries - Regul,NAT'L SCIENCE FOUNDATION,"$1,205.94"
48,J.F. Drake State,90009658,CHRISTINE H DAVIS,Sep,30,2008,Instructional Salaries - Regul,UNRESTRICTED,"$5,306.33"
48,J.F. Drake State,90009658,CHRISTINE H DAVIS,Sep,30,2008,Instructional Salaries - Tempo,UNRESTRICTED,$675.00
48,J.F. Drake State,90009659,MATTIE D DAVIS,Sep,30,2008,Instructional Salaries - Regul,UNRESTRICTED,"$3,729.00"
48,J.F. Drake State,90009659,MATTIE D DAVIS,Sep,30,2008,Instructional Salaries - Regul,NAT'L SCIENCE FOUNDATION,"$1,243.00"
48,J.F. Drake State,90009660,MARTY J EATON,Sep,30,2008,Other Professional Salaries -,,"$1,595.00"
48,J.F. Drake State,90009661,MARY D FISHER,Sep,30,2008,Instructional Salaries - Tempo,UNRESTRICTED,$337.50
48,J.F. Drake State,90009662,BERNELL S FONTENOT,Sep,30,2008,Support Personnel Salaries - S,UNRESTRICTED,"$3,973.25"
48,J.F. Drake State,90009663,EDWIN T FORBES,Sep,30,2008,Instructional Salaries - Regul,UNRESTRICTED,"$3,840.25"
48,J.F. Drake State,90009664,MIRIAM B FRANK,Sep,30,2008,Instructional Salaries - Regul,UNRESTRICTED,"$4,840.92"
48,J.F. Drake State,90009665,MATTIE B FREEMAN,Sep,30,2008,Instructional Salaries - Tempo,UNRESTRICTED,"$1,043.25"
48,J.F. Drake State,90009666,BRENDA H FRIEND,Sep,30,2008,Other Professional Salaries -,TITLE III CARRYOVER,"$7,905.25"
48,J.F. Drake State,90009667,KIM GALKOWSKI,Sep,30,2008,Support Personnel Salaries - S,UNRESTRICTED,"$3,972.50"
48,J.F. Drake State,90009668,BONNIE GARRETT,Sep,30,2008,Instructional Salaries - Tempo,UNRESTRICTED,"$1,076.25"
48,J.F. Drake State,90009669,MANELZA CRAWFORD HAMBRICK,Sep,30,2008,Support Personnel Salaries - S,UNRESTRICTED,"$2,336.50"
48,J.F. Drake State,90009670,CAROLYN HENDERSON,Sep,30,2008,Instructional Salaries - Regul,UNRESTRICTED,"$5,120.34"
48,J.F. Drake State,90009670,CAROLYN HENDERSON,Sep,30,2008,Instructional Salaries - Tempo,UNRESTRICTED,$337.50
48,J.F. Drake State,90009671,DEXTER R HENRY,Sep,30,2008,Instructional Salaries - Regul,UNRESTRICTED,"$6,120.44"
48,J.F. Drake State,90009671,DEXTER R HENRY,Sep,30,2008,Instructional Salaries - Tempo,UNRESTRICTED,$562.50
48,J.F. Drake State,90009672,KARL W HENRY SR,Sep,30,2008,Instructional Salaries - Regul,UNRESTRICTED,"$7,113.44"
48,J.F. Drake State,90009673,ELBREY WARREN HERRING,Sep,30,2008,Instructional Salaries - Tempo,UNRESTRICTED,$675.00
48,J.F. Drake State,90009674,DORIS HINTON,Sep,30,2008,Instructional Salaries - Regul,UNRESTRICTED,"$4,861.56"
48,J.F. Drake State,90009675,PATRICIA HUGHES,Sep,30,2008,Administrative Salaries- Sched,UNRESTRICTED,"$7,668.78"
48,J.F. Drake State,90009677,JAN J HYMAN,Sep,30,2008,Support Personnel Salaries - S,UNRESTRICTED,"$2,187.58"
48,J.F. Drake State,90009679,DEMARIS JENKINS,Sep,30,2008,Instructional Salaries - Tempo,UNRESTRICTED,$337.50
48,J.F. Drake State,90009680,DONYALE D JONES,Sep,30,2008,Support Personnel Salaries - S,TITLE III CARRYOVER,"$3,303.42"
48,J.F. Drake State,90009681,RUTH D JONES,Sep,30,2008,Instructional Salaries - Tempo,UNRESTRICTED,$562.50
48,J.F. Drake State,90009681,RUTH D JONES,Sep,30,2008,Other Contractual Services,NAT'L SCIENCE FOUNDATION,$650.00
48,J.F. Drake State,90009682,ANNIE R KNIGHT,Sep,30,2008,Instructional Salaries - Tempo,UNRESTRICTED,$337.50
48,J.F. Drake State,90009683,SUSAN KREULEN,Sep,30,2008,Instructional Salaries - Regul,UNRESTRICTED,"$2,750.00"
48,J.F. Drake State,90009684,HONG THUYDUC LAM,Sep,30,2008,Instructional Salaries - Regul,UNRESTRICTED,"$5,527.33"
48,J.F. Drake State,90009685,JOYCE P LAMAR,Sep,30,2008,Support Personnel Salaries - S,UNRESTRICTED,"$1,721.25"
48,J.F. Drake State,90009686,JOEL M LINER,Sep,30,2008,Instructional Salaries - Tempo,UNRESTRICTED,$975.94
48,J.F. Drake State,90009687,STACY L LUNDY,Sep,30,2008,Support Personnel Salaries - S,UNRESTRICTED,"$1,093.67"
48,J.F. Drake State,90009687,STACY L LUNDY,Sep,30,2008,Support Personnel Salaries - S,NAT'L SCIENCE FOUNDATION,"$1,093.67"
48,J.F. Drake State,90009688,DANIEL K MARCUM,Sep,30,2008,Support Personnel Salaries - S,UNRESTRICTED,"$2,485.17"
48,J.F. Drake State,90009689,MICHEAL V MAXTON,Sep,30,2008,Instructional Salaries - Tempo,UNRESTRICTED,$337.50
48,J.F. Drake State,90009690,HELEN T MCALPINE,Sep,30,2008,Administrative Salaries- Sched,UNRESTRICTED,"$14,266.45"
48,J.F. Drake State,90009690,HELEN T MCALPINE,Sep,30,2008,President's Expense Allowance,UNRESTRICTED,$200.00
48,J.F. Drake State,90009690,HELEN T MCALPINE,Sep,30,2008,Housing Allowance,UNRESTRICTED,"$1,000.00"
48,J.F. Drake State,90009691,JERRY L MCCAULLEY,Sep,30,2008,Instructional Salaries - Tempo,UNRESTRICTED,$975.94
48,J.F. Drake State,90009692,BRENDA MCCRAY,Sep,30,2008,Other Professional Salaries -,UNRESTRICTED,"$4,000.00"
48,J.F. Drake State,90009693,BOBBY F MCDONALD,Sep,30,2008,Instructional Salaries - Tempo,UNRESTRICTED,$337.50
48,J.F. Drake State,90009694,NITA S. MCGILL,Sep,30,2008,Instructional Salaries - Tempo,UNRESTRICTED,"$1,845.75"
48,J.F. Drake State,90009695,SCOTTY MCLAUGHLIN,Sep,30,2008,Instructional Salaries - Regul,UNRESTRICTED,"$7,016.44"
48,J.F. Drake State,90009695,SCOTTY MCLAUGHLIN,Sep,30,2008,Instructional Salaries - Tempo,UNRESTRICTED,$112.50
48,J.F. Drake State,90009696,PAMELA F MCTILLER,Sep,30,2008,Instructional Salaries - Tempo,UNRESTRICTED,$337.50
48,J.F. Drake State,90009697,DEBORAH A MILLING,Sep,30,2008,Instructional Salaries - Regul,UNRESTRICTED,"$4,590.33"
48,J.F. Drake State,90009698,SAMMY J MILTON,Sep,30,2008,Support Personnel Salaries - S,UNRESTRICTED,"$3,452.83"
48,J.F. Drake State,90009699,PREMA A MONTEIRO,Sep,30,2008,Instructional Salaries - Tempo,UNRESTRICTED,$337.50
48,J.F. Drake State,90009699,PREMA A MONTEIRO,Sep,30,2008,Instructional Salaries - Regul,,"$4,527.33"
48,J.F. Drake State,90009700,DANA MOORE,Sep,30,2008,Other Professional Salaries -,,"$8,503.50"
48,J.F. Drake State,90009701,MARY JO MORAN,Sep,30,2008,Instructional Salaries - Tempo,UNRESTRICTED,$976.38
48,J.F. Drake State,90009702,BRUCE D MORRISON,Sep,30,2008,Support Personnel Salaries - S,UNRESTRICTED,"$4,047.25"
48,J.F. Drake State,90009703,KATHRYN B NEAL,Sep,30,2008,Other Professional Salaries -,UNRESTRICTED,"$7,905.25"
48,J.F. Drake State,90009705,KAREN NEIR,Sep,30,2008,Instructional Salaries - Tempo,UNRESTRICTED,"$1,926.00"
48,J.F. Drake State,90009706,JENNIFER O'LINGER,Sep,30,2008,Support Personnel Salaries - S,UNRESTRICTED,"$3,079.83"
48,J.F. Drake State,90009707,DONALD ORR,Sep,30,2008,Support Personnel Salaries - S,UNRESTRICTED,"$3,601.25"
48,J.F. Drake State,90009708,WILLIE C PATTON,Sep,30,2008,Instructional Salaries - Tempo,UNRESTRICTED,"$1,076.25"
48,J.F. Drake State,90009709,JAMES W PLEASURE,Sep,30,2008,Instructional Salaries - Tempo,UNRESTRICTED,"$1,076.25"
48,J.F. Drake State,90009710,GWENDOLYN D POPE,Sep,30,2008,Instructional Salaries - Regul,UNRESTRICTED,"$5,540.58"
48,J.F. Drake State,90009710,GWENDOLYN D POPE,Sep,30,2008,Instructional Salaries - Tempo,UNRESTRICTED,$675.00
48,J.F. Drake State,90009711,KARRIE PRATT,Sep,30,2008,Instructional Salaries - Tempo,UNRESTRICTED,$655.38
48,J.F. Drake State,90009712,FREDRICK O PRUITT,Sep,30,2008,Instructional Salaries - Regul,UNRESTRICTED,"$4,675.56"
48,J.F. Drake State,90009712,FREDRICK O PRUITT,Sep,30,2008,Instructional Salaries - Tempo,UNRESTRICTED,$975.94
48,J.F. Drake State,90009713,MICHAEL RADDEN,Sep,30,2008,Instructional Salaries - Tempo,UNRESTRICTED,$337.50
48,J.F. Drake State,90009714,WELDON RAGLAND,Sep,30,2008,Instructional Salaries - Tempo,UNRESTRICTED,$675.00
48,J.F. Drake State,90009715,ALICE G RAYMOND,Sep,30,2008,Instructional Salaries - Regul,UNRESTRICTED,"$6,520.44"
48,J.F. Drake State,90009716,JOYCE L RENTZ,Sep,30,2008,Instructional Salaries - Tempo,UNRESTRICTED,$337.50
48,J.F. Drake State,90009716,JOYCE L RENTZ,Sep,30,2008,Instructional Salaries - Regul,UNRESTRICTED,"$6,706.33"
48,J.F. Drake State,90009717,JOHN REUTTER III,Sep,30,2008,Administrative Salaries- Sched,UNRESTRICTED,"$8,205.34"
48,J.F. Drake State,90009718,MARTHA J ROBERTS,Sep,30,2008,Support Personnel Salaries - S,UNRESTRICTED,"$4,940.33"
48,J.F. Drake State,90009719,CHRISTINA R SCISSUM,Sep,30,2008,Other Professional Salaries -,TITLE III CARRYOVER,"$4,012.50"
48,J.F. Drake State,90009720,LESLEY SHOTTS,Sep,30,2008,Instructional Salaries - Tempo,UNRESTRICTED,$187.50
48,J.F. Drake State,90009720,LESLEY SHOTTS,Sep,30,2008,Other Professional Salaries -,UNRESTRICTED,"$4,044.75"
48,J.F. Drake State,90009721,COLLIS H SIMS III,Sep,30,2008,Instructional Salaries - Regul,UNRESTRICTED,"$4,565.11"
48,J.F. Drake State,90009721,COLLIS H SIMS III,Sep,30,2008,Instructional Salaries - Tempo,UNRESTRICTED,"$1,076.25"
48,J.F. Drake State,90009722,PATRICIA GORDON SIMS,Sep,30,2008,Administrative Salaries- Sched,TITLE III CARRYOVER,"$8,372.01"
48,J.F. Drake State,90009723,DELORIS A SMOTHERS,Sep,30,2008,Instructional Salaries - Regul,UNRESTRICTED,"$6,713.44"
48,J.F. Drake State,90009723,DELORIS A SMOTHERS,Sep,30,2008,Instructional Salaries - Tempo,UNRESTRICTED,$675.00
48,J.F. Drake State,90009724,VERLINDSEY B STEWART,Sep,30,2008,Instructional Salaries - Regul,UNRESTRICTED,"$6,616.44"
48,J.F. Drake State,90009725,MONICA SUDEALL-HAWKINS,Sep,30,2008,Other Professional Salaries -,UNRESTRICTED,"$4,993.33"
48,J.F. Drake State,90009726,RICHARD M SWAIM,Sep,30,2008,Instructional Salaries - Tempo,UNRESTRICTED,$562.50
48,J.F. Drake State,90009727,KOBIN DELL THACKER,Sep,30,2008,Instructional Salaries - Regul,UNRESTRICTED,"$5,823.89"
48,J.F. Drake State,90009728,JOY D TORNQUIST,Sep,30,2008,Instructional Salaries - Tempo,UNRESTRICTED,"$1,203.75"
48,J.F. Drake State,90009729,JOYLYN ERNA TROTMAN,Sep,30,2008,Other Professional Salaries -,UNRESTRICTED,"$4,465.83"
48,J.F. Drake State,90009730,GILBERT T TURLEY,Sep,30,2008,Other Professional Salaries -,UNRESTRICTED,"$6,450.08"
48,J.F. Drake State,90009731,LETITIA E WALKER,Sep,30,2008,Support Personnel Salaries - S,UNRESTRICTED,"$3,080.50"
48,J.F. Drake State,90009732,THEO NATHAN WALSTON,Sep,30,2008,Hourly Wages,UNRESTRICTED,"$1,732.50"
48,J.F. Drake State,90009733,RUSTIN D WEBSTER,Sep,30,2008,Instructional Salaries - Tempo,UNRESTRICTED,$562.50
48,J.F. Drake State,90009734,YVONNE M WHITE,Sep,30,2008,Support Personnel Salaries - S,UNRESTRICTED,"$1,142.02"
48,J.F. Drake State,90009734,YVONNE M WHITE,Sep,30,2008,Support Personnel Salaries - S,TITLE III CARRYOVER,"$3,426.06"
48,J.F. Drake State,90009737,SHERYL A WIESCHHAUS,Sep,30,2008,Instructional Salaries - Tempo,UNRESTRICTED,$562.50
48,J.F. Drake State,90009738,SANOYIA L WILLIAMS,Sep,30,2008,Instructional Salaries - Tempo,UNRESTRICTED,$675.00
48,J.F. Drake State,90009739,DAWN WILLIAMSON-ASHLEY,Sep,30,2008,Instructional Salaries - Tempo,UNRESTRICTED,$281.25
48,J.F. Drake State,90009740,GEORGE R WINN,Sep,30,2008,Instructional Salaries - Regul,UNRESTRICTED,"$3,609.86"
48,J.F. Drake State,90009740,GEORGE R WINN,Sep,30,2008,Other Professional Salaries -,UNRESTRICTED,"$1,700.45"
48,J.F. Drake State,90009741,ANDRAIN YELDELL,Sep,30,2008,Instructional Salaries - Tempo,UNRESTRICTED,$187.50
48,J.F. Drake State,90009743,DORIS I BOWMAN,Sep,30,2008,Other Contractual Services,NAT'L SCIENCE FOUNDATION,$636.60
48,J.F. Drake State,90009744,JESSE COOK,Sep,30,2008,Other Contractual Services,NAT'L SCIENCE FOUNDATION,$598.00
48,J.F. Drake State,90009745,KENNETH DOUGLAS HAYNES,Sep,30,2008,Other Contractual Services,NAT'L SCIENCE FOUNDATION,$594.00
48,J.F. Drake State,90009746,KARL W HENRY SR,Sep,30,2008,Other Contractual Services,NAT'L SCIENCE FOUNDATION,"$1,335.82"
48,J.F. Drake State,90009747,CHRISTOPHER TURNER,Sep,30,2008,Support Personnel Salaries - S,NAT'L SCIENCE FOUNDATION,"$3,154.00"
48,J.F. Drake State,90009748,GEORGE R WINN,Sep,30,2008,Other Professional Salaries -,NAT'L SCIENCE FOUNDATION,"$4,933.04"
48,J.F. Drake State,90009754,SARA F CAMERON,Sep,30,2008,Other Contractual Services,UNRESTRICTED,"$2,000.00"
48,J.F. Drake State,72220000,AT&T,Sep,28,2008,Communications,UNRESTRICTED,$434.60
48,J.F. Drake State,10028594,ACT,Sep,24,2008,Purchases for Resale,UNRESTRICTED,"$1,200.00"
48,J.F. Drake State,10028595,ROBBIE LEE AKINS,Sep,24,2008,Other Contractual Services,PLANT FUNDS,"$1,087.50"
48,J.F. Drake State,10028596,BANKS INDUSTRIES INC.,Sep,24,2008,Materials and Supplies,UNRESTRICTED,$377.76
48,J.F. Drake State,10028597,BERNEY OFFICE SOLUTIONS,Sep,24,2008,Other Contractual Services,UNRESTRICTED,$152.68
48,J.F. Drake State,10028598,BRESCO,Sep,24,2008,Furniture and Equipment,PLANT FUNDS,"$43,044.00"
48,J.F. Drake State,10028599,CENGAGE LEARNING,Sep,24,2008,Purchases for Resale,UNRESTRICTED,$714.93
48,J.F. Drake State,10028600,CITY OF HUNTSVILLE,Sep,24,2008,Other Contractual Services,UNRESTRICTED,"$3,981.13"
48,J.F. Drake State,10028601,COLONIAL GRAPHICS GROUP,Sep,24,2008,Advertising and Promotions,UNRESTRICTED,"$1,703.00"
48,J.F. Drake State,10028602,COMCAST SPOTLIGHT,Sep,24,2008,Materials and Supplies,UNRESTRICTED,$439.50
48,J.F. Drake State,10028602,COMCAST SPOTLIGHT,Sep,24,2008,Advertising and Promotions,READY TO WORK,$526.50
48,J.F. Drake State,10028603,COMM. COLLEGES OF APPALA,Sep,24,2008,Memberships,UNRESTRICTED,$250.00
48,J.F. Drake State,10028604,DERICK HENRY,Sep,24,2008,Other Contractual Services,UNRESTRICTED,$720.00
48,J.F. Drake State,10028605,"DYNAMIC SECURITY, INC.",Sep,24,2008,Other Contractual Services,UNRESTRICTED,"$2,162.16"
48,J.F. Drake State,10028607,KOORSEN PROTECTION SERVIC,Sep,24,2008,Other Contractual Services,UNRESTRICTED,$260.00
48,J.F. Drake State,10028608,BRENDA MCCRAY,Sep,24,2008,In-State Travel,UNRESTRICTED,$76.65
48,J.F. Drake State,10028609,MCGRAW HILL EDUCATION,Sep,24,2008,Purchases for Resale,UNRESTRICTED,"$1,967.01"
48,J.F. Drake State,10028610,"OFFICE DEPOT, INC.",Sep,24,2008,Materials and Supplies,UNRESTRICTED,$324.55
48,J.F. Drake State,10028611,ORIENTAL TRADING,Sep,24,2008,Materials and Supplies,UNRESTRICTED,$210.97
48,J.F. Drake State,10028612,PIVOT POINT INTERNATIONAL,Sep,24,2008,Purchases for Resale,UNRESTRICTED,"$1,070.63"
48,J.F. Drake State,10028613,REDDING MEDICAL INC.,Sep,24,2008,Materials and Supplies,UNRESTRICTED,$131.30
48,J.F. Drake State,10028614,SALLY BEAUTY SUPPLY,Sep,24,2008,Materials and Supplies,UNRESTRICTED,$138.71
48,J.F. Drake State,10028615,SAM'S CLUB/WALMART,Sep,24,2008,Materials and Supplies,UNRESTRICTED,$409.95
48,J.F. Drake State,10028616,SHARP COMMUNICATION,Sep,24,2008,Materials and Supplies,UNRESTRICTED,"$1,075.00"
48,J.F. Drake State,10028617,SIEMENS PRODUCT LIFECYCLE,Sep,24,2008,Maintenance and Repairs,UNRESTRICTED,$390.00
48,J.F. Drake State,10028618,DELORIS SMOTHERS,Sep,24,2008,Materials and Supplies,UNRESTRICTED,$90.00
48,J.F. Drake State,20035910,ACCSHRMA,Sep,23,2008,In-State Travel,TITLE III CARRYOVER,$925.00
48,J.F. Drake State,20035911,ALACRO/TREASURER,Sep,23,2008,State-Funded Professional Deve,TITLE III CARRYOVER,$175.00
48,J.F. Drake State,20035912,"BURMAX, INC.",Sep,23,2008,Materials and Supplies,TITLE III CARRYOVER,"$2,165.98"
48,J.F. Drake State,20035913,CDW-G,Sep,23,2008,Materials and Supplies,TITLE III CARRYOVER,"$2,430.56"
48,J.F. Drake State,20035914,CONCEPT MEDIA,Sep,23,2008,Books,TITLE III CARRYOVER,"$3,000.00"
48,J.F. Drake State,20035915,ENGINEERED MAINTENACE SER,Sep,23,2008,Materials and Supplies,,"$10,320.00"
48,J.F. Drake State,20035916,LOWE'S,Sep,23,2008,Materials and Supplies,,$545.26
48,J.F. Drake State,20035917,"OFFICE DEPOT, INC.",Sep,23,2008,Materials and Supplies,TITLE III CARRYOVER,$332.47
48,J.F. Drake State,20035905,BRENDA H. FRIEND,Sep,19,2008,Out-of-State Travel,TITLE III CARRYOVER,$173.00
48,J.F. Drake State,20035906,INDIANA FURNITURE,Sep,19,2008,Materials and Supplies,,"$9,863.17"
48,J.F. Drake State,20035907,"RAYMOND, ALICE",Sep,19,2008,In-State Travel,TITLE III CARRYOVER,$223.47
48,J.F. Drake State,20035907,"RAYMOND, ALICE",Sep,19,2008,Employee Taxable Per Diem,TITLE III CARRYOVER,$11.25
48,J.F. Drake State,20035908,CHRISTOPHER TURNER,Sep,19,2008,Out-of-State Travel,NAT'L SCIENCE FOUNDATION,$112.78
48,J.F. Drake State,10028529,DRAPHIX LLC,Sep,18,2008,Purchases for Resale,UNRESTRICTED,$632.97
48,J.F. Drake State,10028530,"DYNAMIC SECURITY, INC.",Sep,18,2008,Other Contractual Services,UNRESTRICTED,"$4,389.84"
48,J.F. Drake State,10028531,"DYNAMIC SECURITY, INC.",Sep,18,2008,Other Contractual Services,UNRESTRICTED,"$2,162.16"
48,J.F. Drake State,10028532,ELSEVIER/HESI,Sep,18,2008,Materials and Supplies,UNRESTRICTED,$693.99
48,J.F. Drake State,10028532,ELSEVIER/HESI,Sep,18,2008,Purchases for Resale,UNRESTRICTED,"$1,650.89"
48,J.F. Drake State,10028533,GOODHEART-WILCOX COMPANY,Sep,18,2008,Purchases for Resale,UNRESTRICTED,"$1,751.83"
48,J.F. Drake State,10028535,HUNTSVILLE UTILITIES,Sep,18,2008,Maintenance and Repairs,UNRESTRICTED,$245.37
48,J.F. Drake State,10028536,GLIDDEN PROFESSIONAL PAI,Sep,18,2008,Maintenance and Repairs,UNRESTRICTED,$701.06
48,J.F. Drake State,10028537,THE LAMAR COMPANIES,Sep,18,2008,Advertising and Promotions,UNRESTRICTED,"$2,600.00"
48,J.F. Drake State,10028538,LOWE'S,Sep,18,2008,Purchases for Resale,UNRESTRICTED,$397.89
48,J.F. Drake State,10028538,LOWE'S,Sep,18,2008,Maintenance and Repairs,PLANT FUNDS,$268.19
48,J.F. Drake State,10028538,LOWE'S,Sep,18,2008,Maintenance and Repairs,UNRESTRICTED,$177.00
48,J.F. Drake State,10028540,MID CITY SUPPLY CO,Sep,18,2008,Materials and Supplies,UNRESTRICTED,$622.60
48,J.F. Drake State,10028541,MULLINS FIVE POINTS RENTA,Sep,18,2008,Materials and Supplies,UNRESTRICTED,$261.00
48,J.F. Drake State,10028542,"OFFICE DEPOT, INC.",Sep,18,2008,Materials and Supplies,UNRESTRICTED,$580.52
48,J.F. Drake State,10028543,SAM'S CLUB/WALMART,Sep,18,2008,Materials and Supplies,UNRESTRICTED,$368.57
48,J.F. Drake State,10028544,SEXTON WELDING SUPPLY,Sep,18,2008,Other Contractual Services,UNRESTRICTED,$198.00
48,J.F. Drake State,10028545,SOUTHERNLINC WIRELESS,Sep,18,2008,Communications,UNRESTRICTED,$85.86
48,J.F. Drake State,10028546,STATE OF AL DEPT OF LABOR,Sep,18,2008,Materials and Supplies,UNRESTRICTED,$200.00
48,J.F. Drake State,10028547,SYSCO CENTRAL ALABAMA,Sep,18,2008,Materials and Supplies,UNRESTRICTED,"$4,767.86"
48,J.F. Drake State,10028548,THREE STATES SUPPLY COMPA,Sep,18,2008,Maintenance and Repairs,UNRESTRICTED,$52.65
48,J.F. Drake State,10028549,VERIZON WIRELESS,Sep,18,2008,Communications,UNRESTRICTED,"$1,001.95"
48,J.F. Drake State,10028550,WASTE MANAGEMENT OF NORTH,Sep,18,2008,Other Contractual Services,UNRESTRICTED,"$3,250.20"
48,J.F. Drake State,10028551,WILSON LUMBER COMPANY,Sep,18,2008,Materials and Supplies,PLANT FUNDS,"$1,086.51"
48,J.F. Drake State,20035891,"APPLE COMPUTER, INC.",Sep,18,2008,Materials and Supplies,NAT'L SCIENCE FOUNDATION,$499.00
48,J.F. Drake State,20035892,CDW-G,Sep,18,2008,Materials and Supplies,,"$23,395.43"
48,J.F. Drake State,20035893,CENGAGE LEARNING,Sep,18,2008,Books,TITLE III CARRYOVER,$446.25
48,J.F. Drake State,20035894,"DEMCO, INC",Sep,18,2008,Materials and Supplies,TITLE III CARRYOVER,$266.28
48,J.F. Drake State,20035895,DR. MOSTAFA DOKHANIAN,Sep,18,2008,Other Contractual Services,NAT'L SCIENCE FOUNDATION,"$1,300.00"
48,J.F. Drake State,20035897,"OFFICE DEPOT, INC.",Sep,18,2008,Materials and Supplies,TITLE III CARRYOVER,"$3,161.27"
48,J.F. Drake State,20035897,"OFFICE DEPOT, INC.",Sep,18,2008,Materials and Supplies,NAT'L SCIENCE FOUNDATION,$615.79
48,J.F. Drake State,20035898,"OFFICE DEPOT, INC.",Sep,18,2008,Materials and Supplies,READY TO WORK,"$2,706.20"
48,J.F. Drake State,20035899,SERVICE CLEANERS AND LAUN,Sep,18,2008,Materials and Supplies,NAT'L SCIENCE FOUNDATION,$278.10
48,J.F. Drake State,20035900,THE HON CO,Sep,18,2008,Materials and Supplies,,"$20,016.00"
48,J.F. Drake State,7364000,COOK'S PEST CONTROL,Sep,13,2008,Other Contractual Services,UNRESTRICTED,$249.00
48,J.F. Drake State,73500000,AT&T,Sep,13,2008,Communications,UNRESTRICTED,$48.47
48,J.F. Drake State,73510000,AT&T,Sep,13,2008,Communications,UNRESTRICTED,$48.47
48,J.F. Drake State,73520000,AT&T,Sep,13,2008,Communications,UNRESTRICTED,$133.72
48,J.F. Drake State,73540000,AT&T,Sep,13,2008,Communications,UNRESTRICTED,"$2,824.28"
48,J.F. Drake State,73550000,AT&T,Sep,13,2008,Communications,UNRESTRICTED,$78.73
48,J.F. Drake State,73560000,AT&T,Sep,13,2008,Communications,UNRESTRICTED,$392.20
48,J.F. Drake State,73570000,AT&T,Sep,13,2008,Communications,UNRESTRICTED,$147.82
48,J.F. Drake State,73580000,AT&T,Sep,13,2008,Communications,UNRESTRICTED,"$2,858.86"
48,J.F. Drake State,73590000,AT&T,Sep,13,2008,Communications,UNRESTRICTED,$392.20
48,J.F. Drake State,73600000,CHASE,Sep,13,2008,Computer Software,UNRESTRICTED,$75.22
48,J.F. Drake State,73600000,CHASE,Sep,13,2008,Materials and Supplies,UNRESTRICTED,$272.12
48,J.F. Drake State,73620000,COMCAST,Sep,13,2008,Other Contractual Services,UNRESTRICTED,$53.89
48,J.F. Drake State,73630000,COOK'S PEST CONTROL,Sep,13,2008,Other Contractual Services,UNRESTRICTED,$67.00
48,J.F. Drake State,73650000,HUNTSVILLE UTILITIES,Sep,13,2008,Water and Sewer,UNRESTRICTED,$18.72
48,J.F. Drake State,73660000,HUNTSVILLE UTILITIES,Sep,13,2008,Water and Sewer,UNRESTRICTED,$279.48
48,J.F. Drake State,73670000,HUNTSVILLE UTILITIES,Sep,13,2008,Electricity,UNRESTRICTED,"$1,459.54"
48,J.F. Drake State,73670000,HUNTSVILLE UTILITIES,Sep,13,2008,Gas and Heating Fuel,UNRESTRICTED,$4.00
48,J.F. Drake State,73680000,HUNTSVILLE UTILITIES,Sep,13,2008,Water and Sewer,UNRESTRICTED,$117.16
48,J.F. Drake State,73690000,HUNTSVILLE UTILITIES,Sep,13,2008,Gas and Heating Fuel,UNRESTRICTED,$752.53
48,J.F. Drake State,73700000,HUNTSVILLE UTILITIES,Sep,13,2008,Water and Sewer,UNRESTRICTED,$3.81
48,J.F. Drake State,73710000,HUNTSVILLE UTILITIES,Sep,13,2008,Electricity,UNRESTRICTED,"$11,825.36"
48,J.F. Drake State,73710000,HUNTSVILLE UTILITIES,Sep,13,2008,Water and Sewer,UNRESTRICTED,$135.44
48,J.F. Drake State,73720000,WOW! BUSINESS,Sep,13,2008,Communications,UNRESTRICTED,$102.81
48,J.F. Drake State,73730000,PITNEY BOWES,Sep,13,2008,Postage,UNRESTRICTED,$700.00
48,J.F. Drake State,73740000,VERIZON WIRELESS,Sep,13,2008,Communications,UNRESTRICTED,$137.55
48,J.F. Drake State,73530000,AT&T,Sep,13,2008,Communications,UNRESTRICTED,$133.72
48,J.F. Drake State,10028488,ACT,Sep,12,2008,Purchases for Resale,AUXILIARY,"$2,010.00"
48,J.F. Drake State,10028490,ROBBIE LEE AKINS,Sep,12,2008,Other Contractual Services,PLANT FUNDS,$960.00
48,J.F. Drake State,10028491,AL COLLEGE SYS PRESIDENTS,Sep,12,2008,Memberships,UNRESTRICTED,"$3,000.00"
48,J.F. Drake State,10028493,ALL AMERICAN PLUMBING,Sep,12,2008,Maintenance and Repairs,UNRESTRICTED,$100.00
48,J.F. Drake State,10028494,"ALLIANT DATA SYSTEM,INC",Sep,12,2008,Other Contractual Services,UNRESTRICTED,"$13,230.00"
48,J.F. Drake State,10028496,C. C. DICKSON COMPANY,Sep,12,2008,Materials and Supplies,PLANT FUNDS,$979.76
48,J.F. Drake State,10028499,COLONIAL GRAPHICS GROUP,Sep,12,2008,"Printing, Reproduction and Bin",UNRESTRICTED,"$6,770.25"
48,J.F. Drake State,10028502,DERICK HENRY,Sep,12,2008,Other Contractual Services,PLANT FUNDS,$420.00
48,J.F. Drake State,10028504,GRAINGER,Sep,12,2008,Purchases for Resale,UNRESTRICTED,$877.50
48,J.F. Drake State,10028505,GRAPHICS PUB,Sep,12,2008,Purchases for Resale,UNRESTRICTED,$753.98
48,J.F. Drake State,10028507,WILLIAM HAMPTON,Sep,12,2008,Other Contractual Services,PLANT FUNDS,$480.00
48,J.F. Drake State,10028509,GLIDDEN PROFESSIONAL PAI,Sep,12,2008,Maintenance and Repairs,PLANT FUNDS,$164.80
48,J.F. Drake State,10028510,HIGHLANDS OCCUPATIONAL ME,Sep,12,2008,Purchases for Resale,AUXILIARY,"$1,000.00"
48,J.F. Drake State,10028512,LEDFORDS LANDSCAPING,Sep,12,2008,Other Contractual Services,UNRESTRICTED,"$2,225.00"
48,J.F. Drake State,10028513,LOWE'S,Sep,12,2008,Materials and Supplies,UNRESTRICTED,$852.64
48,J.F. Drake State,10028513,LOWE'S,Sep,12,2008,Materials and Supplies,PLANT FUNDS,"$1,393.34"
48,J.F. Drake State,10028515,"MCALPINE, HELEN",Sep,12,2008,Out-of-State Travel,UNRESTRICTED,$113.00
48,J.F. Drake State,10028516,BRENDA MCCRAY,Sep,12,2008,Materials and Supplies,UNRESTRICTED,$534.83
48,J.F. Drake State,10028517,PREMA A MONTEIRO,Sep,12,2008,In-State Travel,UNRESTRICTED,$49.72
48,J.F. Drake State,10028519,LOLITA MARCIA RENTIE,Sep,12,2008,Maintenance and Repairs,UNRESTRICTED,$528.00
48,J.F. Drake State,10028520,ROCKET CITY BROADCASTING,Sep,12,2008,Advertising and Promotions,UNRESTRICTED,"$1,000.00"
48,J.F. Drake State,10028521,"SIMS, PATRICIA G.",Sep,12,2008,Out-of-State Travel,UNRESTRICTED,$42.24
48,J.F. Drake State,10028522,"THOMAS ELECTRIC, INC",Sep,12,2008,Maintenance and Repairs,PLANT FUNDS,"$12,310.00"
48,J.F. Drake State,10028523,UNION CHAPEL MISSIONARY,Sep,12,2008,Electricity,UNRESTRICTED,$112.68
48,J.F. Drake State,10028525,XEROX CORPORATION,Sep,12,2008,Other Contractual Services,,$138.07
48,J.F. Drake State,20035878,"CONNETQUOT WEST, INC",Sep,10,2008,Materials and Supplies,,"$4,779.08"
48,J.F. Drake State,20035879,AL DEANS/STUDENTS ASSOC.,Sep,10,2008,Other Professional Fees,TITLE III CARRYOVER,$275.00
48,J.F. Drake State,20035880,"ALLIANT DATA SYSTEM,INC",Sep,10,2008,Other Contractual Services,TITLE III CARRYOVER,"$1,875.00"
48,J.F. Drake State,20035881,FOLLET SOFTWARE COMPANY,Sep,10,2008,Books,TITLE III CARRYOVER,$395.00
48,J.F. Drake State,20035882,"FONTENOT, BERNELL S.",Sep,10,2008,In-State Travel,TITLE III CARRYOVER,$22.47
48,J.F. Drake State,20035883,PREMA A MONTEIRO,Sep,10,2008,Out-of-State Travel,TITLE III CARRYOVER,$434.19
48,J.F. Drake State,20035884,SCANTRON CORPORATION,Sep,10,2008,Materials and Supplies,,$444.32
48,J.F. Drake State,20035885,THOMPSON PUBLISHING GROUP,Sep,10,2008,Books,TITLE III CARRYOVER,$438.50
48,J.F. Drake State,10028451,AL COLLEGE SYS PRESIDENTS,Sep,3,2008,Memberships,UNRESTRICTED,$300.00
48,J.F. Drake State,10028452,ALABAMA LIVE,Sep,3,2008,Advertising and Promotions,UNRESTRICTED,"$1,500.00"
48,J.F. Drake State,10028453,"ALLIED PHOTOCOPY, INC.",Sep,3,2008,Advertising and Promotions,UNRESTRICTED,$850.00
48,J.F. Drake State,10028454,HUNTSVILLE MADISON COUNTY,Sep,3,2008,Advertising and Promotions,UNRESTRICTED,"$1,350.00"
48,J.F. Drake State,10028455,"DYNAMIC SECURITY, INC.",Sep,3,2008,Other Contractual Services,UNRESTRICTED,"$4,193.28"
48,J.F. Drake State,10028456,"DYNAMIC SECURITY, INC.",Sep,3,2008,Other Contractual Services,UNRESTRICTED,"$2,096.64"
48,J.F. Drake State,10028457,INDUSTRIAL PRESS,Sep,3,2008,Purchases for Resale,UNRESTRICTED,$380.50
48,J.F. Drake State,10028458,"MCGRAW-HILL, INC",Sep,3,2008,Purchases for Resale,UNRESTRICTED,"$17,466.80"
48,J.F. Drake State,10028459,"OFFICE DEPOT, INC.",Sep,3,2008,Materials and Supplies,UNRESTRICTED,$914.95
48,J.F. Drake State,10028460,PRIDE LINCOLN,Sep,3,2008,Advertising and Promotions,UNRESTRICTED,$100.00
48,J.F. Drake State,10028461,SOUTHERNLINC WIRELESS,Sep,3,2008,Communications,UNRESTRICTED,$87.42
48,J.F. Drake State,10028462,UPS,Sep,3,2008,Freight,UNRESTRICTED,$105.04
48,J.F. Drake State,10028463,WASTE MANAGEMENT OF NORTH,Sep,3,2008,Other Contractual Services,UNRESTRICTED,$425.28
48,J.F. Drake State,10028464,"JOHN WILEY & SONS, INC.",Sep,3,2008,Purchases for Resale,UNRESTRICTED,"$2,634.80"
48,J.F. Drake State,20035857,AMERICAN EXPRESS,Sep,3,2008,Out-of-State Travel,TITLE III CARRYOVER,"$1,572.00"
48,J.F. Drake State,20035858,CDW-G,Sep,3,2008,Materials and Supplies,,"$15,394.35"
48,J.F. Drake State,20035859,CDW-G,Sep,3,2008,Materials and Supplies,TITLE III CARRYOVER,$879.03
48,J.F. Drake State,20035860,CDW-G,Sep,3,2008,Materials and Supplies,,"$4,938.00"
48,J.F. Drake State,20035861,DRAKE STATE UNRESTRICTED,Sep,3,2008,In-State Travel,TITLE III CARRYOVER,"$2,351.12"
48,J.F. Drake State,20035862,"FORBES, ED",Sep,3,2008,Out-of-State Travel,TITLE III CARRYOVER,$167.89
48,J.F. Drake State,20035863,HYATT REGENCY/WASHINGTON,Sep,3,2008,Out-of-State Travel,TITLE III CARRYOVER,$855.30
48,J.F. Drake State,20035864,NASPA,Sep,3,2008,Other Professional Fees,TITLE III CARRYOVER,$375.00
48,J.F. Drake State,20035865,"OFFICE DEPOT, INC.",Sep,3,2008,Materials and Supplies,,$551.99
48,J.F. Drake State,20035866,"PRUITT, FREDERICK",Sep,3,2008,Out-of-State Travel,TITLE III CARRYOVER,$682.06
48,J.F. Drake State,20035867,"RAYMOND, ALICE",Sep,3,2008,In-State Travel,TITLE III CARRYOVER,$234.72
48,J.F. Drake State,14653,KHALILAH BURTON,Aug,29,2008,Instructional Salaries - Regul,UNRESTRICTED,"$1,843.31"
48,J.F. Drake State,14653,KHALILAH BURTON,Aug,29,2008,Other Contractual Services,NAT'L SCIENCE FOUNDATION,$349.80
48,J.F. Drake State,14654,NICHOLAS PAUL KSEPKA,Aug,29,2008,Hourly Wages,UNRESTRICTED,"$1,792.50"
48,J.F. Drake State,14655,JOAN C LEATHERWOOD,Aug,29,2008,Instructional Salaries - Tempo,READY TO WORK,"$2,520.00"
48,J.F. Drake State,14656,JAIME MARIE MAPLES,Aug,29,2008,Support Personnel Salaries - S,UNRESTRICTED,$271.94
48,J.F. Drake State,14657,KOBIN DELL THACKER,Aug,29,2008,Instructional Salaries - Regul,UNRESTRICTED,"$2,896.63"
48,J.F. Drake State,14658,MIRIE WESTBROOK III,Aug,29,2008,Instructional Salaries - Tempo,UNRESTRICTED,$867.50
48,J.F. Drake State,14659,BONITA YOUNG,Aug,29,2008,Instructional Salaries - Regul,UNRESTRICTED,"$1,523.06"
48,J.F. Drake State,90009560,BEN BATTLE,Aug,29,2008,Instructional Salaries - Regul,UNRESTRICTED,"$5,322.34"
48,J.F. Drake State,90009560,BEN BATTLE,Aug,29,2008,Instructional Salaries - Tempo,UNRESTRICTED,$150.00
48,J.F. Drake State,90009562,HAROLD E BATTS,Aug,29,2008,Other Professional Salaries -,UNRESTRICTED,"$8,503.50"
48,J.F. Drake State,90009564,DALE W BAXTER,Aug,29,2008,Other Professional Salaries -,UNRESTRICTED,"$7,048.25"
48,J.F. Drake State,90009565,ANGELA NICOLE BELL,Aug,29,2008,Instructional Salaries - Tempo,UNRESTRICTED,"$3,818.00"
48,J.F. Drake State,90009566,NINA BULLOCK,Aug,29,2008,Instructional Salaries - Tempo,UNRESTRICTED,"$4,966.10"
48,J.F. Drake State,90009567,LINDA BURRUSS,Aug,29,2008,Instructional Salaries - Tempo,UNRESTRICTED,$733.76
48,J.F. Drake State,90009567,LINDA BURRUSS,Aug,29,2008,Other Contractual Services,NAT'L SCIENCE FOUNDATION,"$1,300.00"
48,J.F. Drake State,90009568,NECHA L BURTON,Aug,29,2008,Support Personnel Salaries - S,UNRESTRICTED,"$2,310.09"
48,J.F. Drake State,90009568,NECHA L BURTON,Aug,29,2008,Support Personnel Salaries - S,TITLE III CARRYOVER,$770.03
48,J.F. Drake State,90009570,TROY M CAMPBELL,Aug,29,2008,Instructional Salaries - Tempo,UNRESTRICTED,$733.76
48,J.F. Drake State,90009571,MICHELLE R CUNNINGHAM,Aug,29,2008,Instructional Salaries - Regul,UNRESTRICTED,"$2,528.85"
48,J.F. Drake State,90009571,MICHELLE R CUNNINGHAM,Aug,29,2008,Instructional Salaries - Regul,NAT'L SCIENCE FOUNDATION,$842.95
48,J.F. Drake State,90009572,CHRISTINE H DAVIS,Aug,29,2008,Instructional Salaries - Regul,UNRESTRICTED,"$4,922.34"
48,J.F. Drake State,90009572,CHRISTINE H DAVIS,Aug,29,2008,Instructional Salaries - Tempo,UNRESTRICTED,$450.00
48,J.F. Drake State,90009573,MATTIE D DAVIS,Aug,29,2008,Instructional Salaries - Regul,UNRESTRICTED,"$3,456.75"
48,J.F. Drake State,90009573,MATTIE D DAVIS,Aug,29,2008,Instructional Salaries - Regul,NAT'L SCIENCE FOUNDATION,"$1,152.25"
48,J.F. Drake State,90009574,HUGO A DEANGELIS,Aug,29,2008,Instructional Salaries - Tempo,UNRESTRICTED,"$1,402.50"
48,J.F. Drake State,90009575,MARTY J EATON,Aug,29,2008,Other Professional Salaries -,,"$1,159.00"
48,J.F. Drake State,90009576,MARY D FISHER,Aug,29,2008,Instructional Salaries - Tempo,UNRESTRICTED,$867.50
48,J.F. Drake State,90009577,BERNELL S FONTENOT,Aug,29,2008,Support Personnel Salaries - S,UNRESTRICTED,"$3,973.25"
48,J.F. Drake State,90009578,EDWIN T FORBES,Aug,29,2008,Instructional Salaries - Regul,UNRESTRICTED,"$4,747.00"
48,J.F. Drake State,90009578,EDWIN T FORBES,Aug,29,2008,Instructional Salaries - Tempo,UNRESTRICTED,$270.00
48,J.F. Drake State,90009579,MIRIAM B FRANK,Aug,29,2008,Instructional Salaries - Regul,UNRESTRICTED,"$7,835.23"
48,J.F. Drake State,90009580,MATTIE B FREEMAN,Aug,29,2008,Instructional Salaries - Tempo,UNRESTRICTED,"$1,324.13"
48,J.F. Drake State,90009581,BRENDA H FRIEND,Aug,29,2008,Other Professional Salaries -,TITLE III CARRYOVER,"$7,759.75"
48,J.F. Drake State,90009582,KIM GALKOWSKI,Aug,29,2008,Support Personnel Salaries - S,UNRESTRICTED,"$3,898.00"
48,J.F. Drake State,90009583,BONNIE GARRETT,Aug,29,2008,Instructional Salaries - Tempo,UNRESTRICTED,"$1,402.50"
48,J.F. Drake State,90009584,MANELZA CRAWFORD HAMBRICK,Aug,29,2008,Support Personnel Salaries - S,UNRESTRICTED,"$2,336.50"
48,J.F. Drake State,90009585,CAROLYN HENDERSON,Aug,29,2008,Instructional Salaries - Regul,UNRESTRICTED,"$4,747.00"
48,J.F. Drake State,90009586,DEXTER R HENRY,Aug,29,2008,Instructional Salaries - Regul,UNRESTRICTED,"$5,675.34"
48,J.F. Drake State,90009586,DEXTER R HENRY,Aug,29,2008,Instructional Salaries - Tempo,UNRESTRICTED,$733.76
48,J.F. Drake State,90009587,KARL W HENRY SR,Aug,29,2008,Instructional Salaries - Regul,UNRESTRICTED,"$6,351.34"
48,J.F. Drake State,90009588,ELBREY WARREN HERRING,Aug,29,2008,Instructional Salaries - Tempo,UNRESTRICTED,$450.00
48,J.F. Drake State,90009589,DORIS HINTON,Aug,29,2008,Instructional Salaries - Regul,UNRESTRICTED,"$4,508.34"
48,J.F. Drake State,90009590,PATRICIA HUGHES,Aug,29,2008,Administrative Salaries- Sched,UNRESTRICTED,"$7,602.00"
48,J.F. Drake State,90009592,JAN J HYMAN,Aug,29,2008,Support Personnel Salaries - S,UNRESTRICTED,"$2,113.14"
48,J.F. Drake State,90009593,DONYALE D JONES,Aug,29,2008,Support Personnel Salaries - S,TITLE III CARRYOVER,"$3,229.00"
48,J.F. Drake State,90009594,RUTH D JONES,Aug,29,2008,Instructional Salaries - Tempo,UNRESTRICTED,$733.76
48,J.F. Drake State,90009594,RUTH D JONES,Aug,29,2008,Other Contractual Services,NAT'L SCIENCE FOUNDATION,"$1,300.00"
48,J.F. Drake State,90009595,SUSAN KREULEN,Aug,29,2008,Instructional Salaries - Tempo,UNRESTRICTED,"$1,560.00"
48,J.F. Drake State,90009596,HONG THUYDUC LAM,Aug,29,2008,Instructional Salaries - Regul,UNRESTRICTED,"$4,747.00"
48,J.F. Drake State,90009597,JOYCE P LAMAR,Aug,29,2008,Support Personnel Salaries - S,UNRESTRICTED,"$1,619.25"
48,J.F. Drake State,90009598,STACY L LUNDY,Aug,29,2008,Support Personnel Salaries - S,UNRESTRICTED,"$1,056.45"
48,J.F. Drake State,90009598,STACY L LUNDY,Aug,29,2008,Support Personnel Salaries - S,NAT'L SCIENCE FOUNDATION,"$1,056.45"
48,J.F. Drake State,90009599,DANIEL K MARCUM,Aug,29,2008,Support Personnel Salaries - S,UNRESTRICTED,"$2,485.13"
48,J.F. Drake State,90009600,HELEN T MCALPINE,Aug,29,2008,Administrative Salaries- Sched,UNRESTRICTED,"$14,266.45"
48,J.F. Drake State,90009600,HELEN T MCALPINE,Aug,29,2008,President's Expense Allowance,UNRESTRICTED,$200.00
48,J.F. Drake State,90009600,HELEN T MCALPINE,Aug,29,2008,Housing Allowance,UNRESTRICTED,"$1,000.00"
48,J.F. Drake State,90009601,LAWANNA MCCLEASE,Aug,29,2008,Other Contractual Services,NAT'L SCIENCE FOUNDATION,$498.00
48,J.F. Drake State,90009602,BRENDA MCCRAY,Aug,29,2008,Other Professional Salaries -,UNRESTRICTED,"$3,630.77"
48,J.F. Drake State,90009603,SCOTTY MCLAUGHLIN,Aug,29,2008,Instructional Salaries - Regul,UNRESTRICTED,"$6,535.00"
48,J.F. Drake State,90009604,DEBORAH A MILLING,Aug,29,2008,Instructional Salaries - Regul,UNRESTRICTED,"$9,767.22"
48,J.F. Drake State,90009605,SAMMY J MILTON,Aug,29,2008,Support Personnel Salaries - S,UNRESTRICTED,"$3,452.87"
48,J.F. Drake State,90009606,PREMA A MONTEIRO,Aug,29,2008,Instructional Salaries - Regul,,"$4,194.66"
48,J.F. Drake State,90009607,DANA MOORE,Aug,29,2008,Other Professional Salaries -,,"$8,503.75"
48,J.F. Drake State,90009608,MARY JO MORAN,Aug,29,2008,Instructional Salaries - Tempo,UNRESTRICTED,"$1,029.88"
48,J.F. Drake State,90009609,BRUCE D MORRISON,Aug,29,2008,Support Personnel Salaries - S,UNRESTRICTED,"$4,047.25"
48,J.F. Drake State,90009610,KATHRYN B NEAL,Aug,29,2008,Other Professional Salaries -,UNRESTRICTED,"$7,905.25"
48,J.F. Drake State,90009612,KAREN NEIR,Aug,29,2008,Instructional Salaries - Tempo,UNRESTRICTED,"$2,327.25"
48,J.F. Drake State,90009613,JENNIFER O'LINGER,Aug,29,2008,Support Personnel Salaries - S,UNRESTRICTED,"$3,079.91"
48,J.F. Drake State,90009614,DONALD ORR,Aug,29,2008,Support Personnel Salaries - S,UNRESTRICTED,"$3,601.25"
48,J.F. Drake State,90009615,GWENDOLYN D POPE,Aug,29,2008,Instructional Salaries - Regul,UNRESTRICTED,"$12,393.62"
48,J.F. Drake State,90009615,GWENDOLYN D POPE,Aug,29,2008,Instructional Salaries - Tempo,UNRESTRICTED,$675.00
48,J.F. Drake State,90009616,FREDRICK O PRUITT,Aug,29,2008,Instructional Salaries - Tempo,UNRESTRICTED,"$1,268.76"
48,J.F. Drake State,90009616,FREDRICK O PRUITT,Aug,29,2008,Instructional Salaries - Regul,UNRESTRICTED,"$4,194.66"
48,J.F. Drake State,90009617,MICHAEL RADDEN,Aug,29,2008,Instructional Salaries - Tempo,UNRESTRICTED,$450.00
48,J.F. Drake State,90009618,WELDON RAGLAND,Aug,29,2008,Instructional Salaries - Tempo,UNRESTRICTED,$450.00
48,J.F. Drake State,90009619,ALICE G RAYMOND,Aug,29,2008,Instructional Salaries - Regul,UNRESTRICTED,"$6,075.34"
48,J.F. Drake State,90009620,JOYCE L RENTZ,Aug,29,2008,Instructional Salaries - Regul,UNRESTRICTED,"$6,251.00"
48,J.F. Drake State,90009621,JOHN REUTTER III,Aug,29,2008,Administrative Salaries- Sched,UNRESTRICTED,"$8,205.26"
48,J.F. Drake State,90009622,MARTHA J ROBERTS,Aug,29,2008,Support Personnel Salaries - S,UNRESTRICTED,"$4,940.37"
48,J.F. Drake State,90009623,CHRISTINA R SCISSUM,Aug,29,2008,Other Professional Salaries -,TITLE III CARRYOVER,"$4,012.55"
48,J.F. Drake State,90009624,LESLEY SHOTTS,Aug,29,2008,Other Professional Salaries -,UNRESTRICTED,"$3,899.12"
48,J.F. Drake State,90009625,COLLIS H SIMS III,Aug,29,2008,Instructional Salaries - Regul,UNRESTRICTED,"$4,094.34"
48,J.F. Drake State,90009625,COLLIS H SIMS III,Aug,29,2008,Instructional Salaries - Tempo,UNRESTRICTED,$733.76
48,J.F. Drake State,90009626,PATRICIA GORDON SIMS,Aug,29,2008,Administrative Salaries- Sched,TITLE III CARRYOVER,"$8,371.89"
48,J.F. Drake State,90009627,STEVEN K SMITH,Aug,29,2008,Instructional Salaries - Regul,UNRESTRICTED,"$2,479.34"
48,J.F. Drake State,90009628,DELORIS A SMOTHERS,Aug,29,2008,Instructional Salaries - Regul,UNRESTRICTED,"$5,575.00"
48,J.F. Drake State,90009628,DELORIS A SMOTHERS,Aug,29,2008,Instructional Salaries - Tempo,UNRESTRICTED,$450.00
48,J.F. Drake State,90009629,VERLINDSEY B STEWART,Aug,29,2008,Instructional Salaries - Regul,UNRESTRICTED,"$6,135.00"
48,J.F. Drake State,90009630,MONICA SUDEALL-HAWKINS,Aug,29,2008,Instructional Salaries - Tempo,UNRESTRICTED,$555.00
48,J.F. Drake State,90009630,MONICA SUDEALL-HAWKINS,Aug,29,2008,Other Professional Salaries -,UNRESTRICTED,"$4,993.37"
48,J.F. Drake State,90009631,JOY D TORNQUIST,Aug,29,2008,Instructional Salaries - Tempo,UNRESTRICTED,"$1,417.75"
48,J.F. Drake State,90009632,JOYLYN ERNA TROTMAN,Aug,29,2008,Other Professional Salaries -,UNRESTRICTED,"$4,465.87"
48,J.F. Drake State,90009633,GILBERT T TURLEY,Aug,29,2008,Other Professional Salaries -,UNRESTRICTED,"$6,450.12"
48,J.F. Drake State,90009634,CHRISTOPHER TURNER,Aug,29,2008,Support Personnel Salaries - S,NAT'L SCIENCE FOUNDATION,"$3,154.42"
48,J.F. Drake State,90009635,LETITIA E WALKER,Aug,29,2008,Support Personnel Salaries - S,UNRESTRICTED,"$3,080.50"
48,J.F. Drake State,90009636,THEO NATHAN WALSTON,Aug,29,2008,Hourly Wages,UNRESTRICTED,$150.00
48,J.F. Drake State,90009636,THEO NATHAN WALSTON,Aug,29,2008,Other Contractual Services,NAT'L SCIENCE FOUNDATION,$687.00
48,J.F. Drake State,90009637,YVONNE M WHITE,Aug,29,2008,Support Personnel Salaries - S,UNRESTRICTED,"$1,104.79"
48,J.F. Drake State,90009637,YVONNE M WHITE,Aug,29,2008,Support Personnel Salaries - S,TITLE III CARRYOVER,"$3,314.38"
48,J.F. Drake State,90009640,SANOYIA L WILLIAMS,Aug,29,2008,Instructional Salaries - Tempo,UNRESTRICTED,$450.00
48,J.F. Drake State,90009641,GEORGE R WINN,Aug,29,2008,Instructional Salaries - Regul,UNRESTRICTED,"$1,116.44"
48,J.F. Drake State,90009641,GEORGE R WINN,Aug,29,2008,Other Professional Salaries -,UNRESTRICTED,"$1,116.44"
48,J.F. Drake State,90009641,GEORGE R WINN,Aug,29,2008,Other Professional Salaries -,NAT'L SCIENCE FOUNDATION,"$2,232.88"
48,J.F. Drake State,72410000,HUNTSVILLE UTILITIES,Aug,28,2008,Water and Sewer,UNRESTRICTED,$446.74
48,J.F. Drake State,10028426,ROBBIE LEE AKINS,Aug,26,2008,Other Contractual Services,PLANT FUNDS,"$1,215.00"
48,J.F. Drake State,10028428,DERICK HENRY,Aug,26,2008,Materials and Supplies,UNRESTRICTED,$828.00
48,J.F. Drake State,10028429,WILLIAM HAMPTON,Aug,26,2008,Other Contractual Services,PLANT FUNDS,$912.00
48,J.F. Drake State,10028430,KENNETH JAMES MURATA,Aug,26,2008,Other Contractual Services,PLANT FUNDS,$612.00
48,J.F. Drake State,10028431,"OFFICE DEPOT, INC.",Aug,26,2008,Materials and Supplies,UNRESTRICTED,$145.44
48,J.F. Drake State,10028432,LOLITA MARCIA RENTIE,Aug,26,2008,Materials and Supplies,UNRESTRICTED,$546.00
48,J.F. Drake State,20035841,ALLIED ELECTRONICS INC,Aug,26,2008,Materials and Supplies,,"$4,082.12"
48,J.F. Drake State,20035842,BERNEY OFFICE SOLUTIONS,Aug,26,2008,Materials and Supplies,TITLE III CARRYOVER,$99.00
48,J.F. Drake State,20035843,DR. MOHAMMED R. KARIM,Aug,26,2008,Other Contractual Services,NAT'L SCIENCE FOUNDATION,"$1,300.00"
48,J.F. Drake State,20035844,MARCUM DANIEL,Aug,26,2008,In-State Travel,TITLE III CARRYOVER,$31.59
48,J.F. Drake State,20035845,NACADA EXECUTIVE OFFICE,Aug,26,2008,Other Professional Fees,TITLE III CARRYOVER,$300.00
48,J.F. Drake State,20035846,"OFFICE DEPOT, INC.",Aug,26,2008,Materials and Supplies,TITLE III CARRYOVER,$751.48
48,J.F. Drake State,20035847,CHRISTINA SCISSUM,Aug,26,2008,Out-of-State Travel,TITLE III CARRYOVER,$173.45
48,J.F. Drake State,20035848,ULTIMATE OFFICE,Aug,26,2008,Materials and Supplies,TITLE III CARRYOVER,$492.29
48,J.F. Drake State,10028421,AL AUTOMOTIVE MANUF. ASSN,Aug,19,2008,Memberships,UNRESTRICTED,$300.00
48,J.F. Drake State,10028422,THE HUTCHENS COMPANY,Aug,19,2008,Materials and Supplies,UNRESTRICTED,$100.00
48,J.F. Drake State,10028423,THE INTEGRITY GROUP,Aug,19,2008,Insurance and Bonding,UNRESTRICTED,"$4,365.00"
48,J.F. Drake State,10028424,VERIZON WIRELESS,Aug,19,2008,Communications,UNRESTRICTED,"$1,126.10"
48,J.F. Drake State,20035837,DR. MOSTAFA DOKHANIAN,Aug,19,2008,Other Contractual Services,NAT'L SCIENCE FOUNDATION,"$1,300.00"
48,J.F. Drake State,20035838,"HUGHES, PATRICIA",Aug,19,2008,Out-of-State Travel,TITLE III CARRYOVER,$791.87
48,J.F. Drake State,20035839,INDIANA FURNITURE,Aug,19,2008,Materials and Supplies,,"$3,639.81"
48,J.F. Drake State,10028413,ROBBIE LEE AKINS,Aug,15,2008,Maintenance and Repairs,UNRESTRICTED,"$1,035.00"
48,J.F. Drake State,10028414,DERICK HENRY,Aug,15,2008,Maintenance and Repairs,UNRESTRICTED,$816.00
48,J.F. Drake State,10028415,WILLIAM HAMPTON,Aug,15,2008,Maintenance and Repairs,UNRESTRICTED,$882.00
48,J.F. Drake State,10028416,KENNETH JAMES MURATA,Aug,15,2008,Maintenance and Repairs,UNRESTRICTED,$876.00
48,J.F. Drake State,10028417,LOLITA MARCIA RENTIE,Aug,15,2008,Maintenance and Repairs,UNRESTRICTED,$504.00
48,J.F. Drake State,10028418,UNION CHAPEL MISSIONARY,Aug,15,2008,Water and Sewer,UNRESTRICTED,$244.46
48,J.F. Drake State,10028419,WASTE MANAGEMENT OF NORTH,Aug,15,2008,Other Contractual Services,UNRESTRICTED,$332.02
48,J.F. Drake State,10028411,DR. JANETTE KOTEY,Aug,15,2008,Other Professional Fees,UNRESTRICTED,$150.00
48,J.F. Drake State,10028393,AIRGAS SOUTH,Aug,13,2008,Purchases for Resale,UNRESTRICTED,"$2,189.48"
48,J.F. Drake State,10028394,AL.COM,Aug,13,2008,Advertising and Promotions,UNRESTRICTED,"$1,500.00"
48,J.F. Drake State,10028395,BUILDING SPECIALTIES CO,Aug,13,2008,Materials and Supplies,UNRESTRICTED,$142.50
48,J.F. Drake State,10028396,C. C. DICKSON COMPANY,Aug,13,2008,Materials and Supplies,UNRESTRICTED,$236.46
48,J.F. Drake State,10028397,"DYNAMIC SECURITY, INC.",Aug,13,2008,Other Contractual Services,UNRESTRICTED,"$1,688.04"
48,J.F. Drake State,10028398,EVOLVE REACH,Aug,13,2008,Purchases for Resale,AUXILIARY,$245.00
48,J.F. Drake State,10028399,GRAINGER,Aug,13,2008,Purchases for Resale,UNRESTRICTED,$47.68
48,J.F. Drake State,10028400,HUNTSVILLE TIMES,Aug,13,2008,Trustee Handling Fee,UNRESTRICTED,$160.43
48,J.F. Drake State,10028401,KOORSEN PROTECTION SERVIC,Aug,13,2008,Materials and Supplies,UNRESTRICTED,$374.17
48,J.F. Drake State,10028402,LEDFORDS LANDSCAPING,Aug,13,2008,Other Contractual Services,UNRESTRICTED,"$2,225.00"
48,J.F. Drake State,10028403,BRENDA MCCRAY,Aug,13,2008,In-State Travel,UNRESTRICTED,$26.17
48,J.F. Drake State,10028404,PREMA A MONTEIRO,Aug,13,2008,Materials and Supplies,UNRESTRICTED,$395.72
48,J.F. Drake State,10028405,"OFFICE DEPOT, INC.",Aug,13,2008,Materials and Supplies,UNRESTRICTED,$49.13
48,J.F. Drake State,10028406,SERVICE STEEL INCORP,Aug,13,2008,Materials and Supplies,UNRESTRICTED,$155.00
48,J.F. Drake State,10028407,SEXTON WELDING SUPPLY,Aug,13,2008,Other Contractual Services,UNRESTRICTED,$296.37
48,J.F. Drake State,10028408,XEROX CORPORATION,Aug,13,2008,Other Contractual Services,,$137.85
48,J.F. Drake State,20035818,LAUREN BARNES,Aug,13,2008,Other Contractual Services,NAT'L SCIENCE FOUNDATION,$960.00
48,J.F. Drake State,20035819,BERNEY OFFICE SOLUTIONS,Aug,13,2008,Materials and Supplies,TITLE III CARRYOVER,$99.00
48,J.F. Drake State,20035820,CDW-G,Aug,13,2008,Materials and Supplies,,"$5,810.20"
48,J.F. Drake State,20035821,"DELL MARKETING, L.P.",Aug,13,2008,Materials and Supplies,,"$58,184.47"
48,J.F. Drake State,20035822,"HENRY, DEXTER",Aug,13,2008,In-State Travel,TITLE III CARRYOVER,$463.37
48,J.F. Drake State,20035823,INDIANA FURNITURE,Aug,13,2008,Materials and Supplies,,"$22,028.79"
48,J.F. Drake State,20035824,KRISTEN KISSACK,Aug,13,2008,Other Contractual Services,NAT'L SCIENCE FOUNDATION,$960.00
48,J.F. Drake State,20035825,"OFFICE DEPOT, INC.",Aug,13,2008,Materials and Supplies,TITLE III CARRYOVER,$541.41
48,J.F. Drake State,20035826,JENNIFER OLINGER,Aug,13,2008,In-State Travel,TITLE III CARRYOVER,$300.00
48,J.F. Drake State,20035827,"SUDEALL, MONICA",Aug,13,2008,Materials and Supplies,TITLE III CARRYOVER,$300.00
48,J.F. Drake State,20035828,THE HON CO,Aug,13,2008,Materials and Supplies,,$133.74
48,J.F. Drake State,10028375,ACUA,Aug,7,2008,Memberships,UNRESTRICTED,$350.00
48,J.F. Drake State,10028376,ALL AMERICAN PLUMBING,Aug,7,2008,Maintenance and Repairs,UNRESTRICTED,$950.00
48,J.F. Drake State,10028378,CHEVRON CARD SERVICES,Aug,7,2008,Gasoline and Oil - Motor Vehic,UNRESTRICTED,$813.87
48,J.F. Drake State,10028379,PETTY CASH,Aug,7,2008,Materials and Supplies,UNRESTRICTED,$132.37
48,J.F. Drake State,10028379,PETTY CASH,Aug,7,2008,Maintenance and Repairs,UNRESTRICTED,$26.07
48,J.F. Drake State,10028379,PETTY CASH,Aug,7,2008,Purchases for Resale,UNRESTRICTED,$20.35
48,J.F. Drake State,10028379,PETTY CASH,Aug,7,2008,Materials and Supplies,PLANT FUNDS,$25.96
48,J.F. Drake State,10028380,FEDEX,Aug,7,2008,Materials and Supplies,UNRESTRICTED,$23.85
48,J.F. Drake State,10028381,HOBBY LOBBY,Aug,7,2008,Materials and Supplies,UNRESTRICTED,$59.00
48,J.F. Drake State,10028382,LOWE'S,Aug,7,2008,Materials and Supplies,UNRESTRICTED,$115.15
48,J.F. Drake State,10028384,MCNEESE GLASS COMPANY,Aug,7,2008,Maintenance and Repairs,UNRESTRICTED,$181.65
48,J.F. Drake State,10028385,"OFFICE DEPOT, INC.",Aug,7,2008,Materials and Supplies,UNRESTRICTED,$236.07
48,J.F. Drake State,10028386,PEARSON EDUCATION CTR,Aug,7,2008,Purchases for Resale,UNRESTRICTED,"$5,940.80"
48,J.F. Drake State,10028387,RYDIN SIGN AND DECAL,Aug,7,2008,Advertising and Promotions,UNRESTRICTED,$666.55
48,J.F. Drake State,10028388,SCOTT LIGHTING SUPPLY,Aug,7,2008,Materials and Supplies,PLANT FUNDS,"$11,349.50"
48,J.F. Drake State,10028390,SYSCO CENTRAL ALABAMA,Aug,7,2008,Materials and Supplies,UNRESTRICTED,$27.63
48,J.F. Drake State,10028391,TECHNICAL TRAINING AIDS,Aug,7,2008,Technology - Capitalized,UNRESTRICTED,"$33,315.00"
48,J.F. Drake State,20035804,"ALLIANT DATA SYSTEM,INC",Aug,7,2008,Other Contractual Services,TITLE III CARRYOVER,"$1,500.00"
48,J.F. Drake State,20035805,ASSESSMENT TECH INSTUTUTE,Aug,7,2008,Materials and Supplies,,"$2,062.58"
48,J.F. Drake State,20035806,BERNEY OFFICE SOLUTIONS,Aug,7,2008,Computer Software,TITLE III CARRYOVER,"$2,979.84"
48,J.F. Drake State,20035806,BERNEY OFFICE SOLUTIONS,Aug,7,2008,Service Contracts on Equipment,TITLE III CARRYOVER,"$3,149.70"
48,J.F. Drake State,20035806,BERNEY OFFICE SOLUTIONS,Aug,7,2008,Materials and Supplies,,"$1,060.85"
48,J.F. Drake State,20035807,LINDA BURRUSS,Aug,7,2008,Materials and Supplies,NAT'L SCIENCE FOUNDATION,$43.33
48,J.F. Drake State,20035808,CONVERGED RESOURCE INTEG,Aug,7,2008,Service Contracts on Equipment,TITLE III CARRYOVER,$394.00
48,J.F. Drake State,20035809,"FONTENOT, BERNELL S.",Aug,7,2008,In-State Travel,TITLE III CARRYOVER,$221.94
48,J.F. Drake State,20035810,"HUGHES, PATRICIA",Aug,7,2008,In-State Travel,TITLE III CARRYOVER,$150.00
48,J.F. Drake State,20035811,JENNIFER OLINGER,Aug,7,2008,In-State Travel,TITLE III CARRYOVER,$591.58
48,J.F. Drake State,20035811,JENNIFER OLINGER,Aug,7,2008,In-State Travel,,$225.00
48,J.F. Drake State,20035812,REED'S OFFICE SUPPLY & EQ,Aug,7,2008,Materials and Supplies,TITLE III CARRYOVER,$625.98
48,J.F. Drake State,20035813,"SIMS, PATRICIA G.",Aug,7,2008,Out-of-State Travel,TITLE III CARRYOVER,$256.78
48,J.F. Drake State,20035814,DELORIS SMOTHERS,Aug,7,2008,In-State Travel,TITLE III CARRYOVER,$225.00
48,J.F. Drake State,20035815,TERESA FARNUM & ASSOC.,Aug,7,2008,State-Funded Professional Deve,TITLE III CARRYOVER,$720.00
48,J.F. Drake State,73330000,AT&T,Aug,4,2008,Communications,UNRESTRICTED,$76.84
48,J.F. Drake State,73340000,AT&T,Aug,4,2008,Communications,UNRESTRICTED,$146.34
48,J.F. Drake State,73360000,COMCAST,Aug,4,2008,Other Contractual Services,UNRESTRICTED,$53.88
48,J.F. Drake State,73370000,COOK'S PEST CONTROL,Aug,4,2008,Other Contractual Services,UNRESTRICTED,$67.00
48,J.F. Drake State,73380000,COOK'S PEST CONTROL,Aug,4,2008,Other Contractual Services,UNRESTRICTED,$249.00
48,J.F. Drake State,73390000,HUNTSVILLE UTILITIES,Aug,4,2008,Water and Sewer,UNRESTRICTED,$18.72
48,J.F. Drake State,73400000,HUNTSVILLE UTILITIES,Aug,4,2008,Water and Sewer,UNRESTRICTED,$279.48
48,J.F. Drake State,73410000,HUNTSVILLE UTILITIES,Aug,4,2008,Gas and Heating Fuel,UNRESTRICTED,"$1,225.16"
48,J.F. Drake State,73420000,HUNTSVILLE UTILITIES,Aug,4,2008,Water and Sewer,UNRESTRICTED,$3.81
48,J.F. Drake State,73430000,HUNTSVILLE UTILITIES,Aug,4,2008,Electricity,UNRESTRICTED,"$8,745.68"
48,J.F. Drake State,73430000,HUNTSVILLE UTILITIES,Aug,4,2008,Water and Sewer,UNRESTRICTED,$484.14
48,J.F. Drake State,73440000,HUNTSVILLE UTILITIES,Aug,4,2008,Gas and Heating Fuel,UNRESTRICTED,$836.30
48,J.F. Drake State,73450000,HUNTSVILLE UTILITIES,Aug,4,2008,Water and Sewer,UNRESTRICTED,$17.92
48,J.F. Drake State,73460000,WOW! BUSINESS,Aug,4,2008,Communications,UNRESTRICTED,$102.81
48,J.F. Drake State,73470000,PITNEY BOWES,Aug,4,2008,Postage,UNRESTRICTED,$700.00
48,J.F. Drake State,73480000,VERIZON WIRELESS,Aug,4,2008,Communications,UNRESTRICTED,$263.45
48,J.F. Drake State,10028341,A & D GLASS,Jul,31,2008,Maintenance and Repairs,UNRESTRICTED,$100.70
48,J.F. Drake State,10028342,ROBBIE LEE AKINS,Jul,31,2008,Maintenance and Repairs,PLANT FUNDS,"$1,080.00"
48,J.F. Drake State,10028343,"CAMCAD TECHNOLOGIES, INC",Jul,31,2008,Service Contracts on Equipment,UNRESTRICTED,"$1,200.00"
48,J.F. Drake State,10028344,DERICK HENRY,Jul,31,2008,Maintenance and Repairs,UNRESTRICTED,$744.00
48,J.F. Drake State,10028345,FASTENAL,Jul,31,2008,Materials and Supplies,UNRESTRICTED,$596.38
48,J.F. Drake State,10028346,FEDEX,Jul,31,2008,Postage,UNRESTRICTED,$24.83
48,J.F. Drake State,10028347,WILLIAM HAMPTON,Jul,31,2008,Maintenance and Repairs,PLANT FUNDS,$630.00
48,J.F. Drake State,10028348,HUNTSVILLE CARPET OUTLET,Jul,31,2008,Materials and Supplies,PLANT FUNDS,$145.80
48,J.F. Drake State,10028349,LEDFORDS LANDSCAPING,Jul,31,2008,Materials and Supplies,UNRESTRICTED,$150.00
48,J.F. Drake State,10028350,KENNETH JAMES MURATA,Jul,31,2008,Maintenance and Repairs,PLANT FUNDS,$486.00
48,J.F. Drake State,10028351,JESSE D OSMER,Jul,31,2008,Maintenance and Repairs,PLANT FUNDS,$432.00
48,J.F. Drake State,10028352,LOLITA MARCIA RENTIE,Jul,31,2008,Maintenance and Repairs,UNRESTRICTED,$606.00
48,J.F. Drake State,20035793,LAUREN BARNES,Jul,31,2008,Materials and Supplies,NAT'L SCIENCE FOUNDATION,$36.99
48,J.F. Drake State,20035794,MICHELLE CUNNINGHAM,Jul,31,2008,In-State Travel,,$225.00
48,J.F. Drake State,20035795,"MCALPINE, HELEN",Jul,31,2008,Out-of-State Travel,TITLE III CARRYOVER,$619.07
48,J.F. Drake State,14644,NICHOLAS PAUL KSEPKA,Jul,31,2008,Hourly Wages,UNRESTRICTED,"$1,575.00"
48,J.F. Drake State,14645,JAIME MARIE MAPLES,Jul,31,2008,Support Personnel Salaries - S,UNRESTRICTED,"$1,964.00"
48,J.F. Drake State,14646,MIRIE WESTBROOK III,Jul,31,2008,Instructional Salaries - Tempo,UNRESTRICTED,$867.50
48,J.F. Drake State,90009384,BEN BATTLE,Jul,31,2008,Instructional Salaries - Regul,UNRESTRICTED,"$5,322.33"
48,J.F. Drake State,90009384,BEN BATTLE,Jul,31,2008,Instructional Salaries - Tempo,UNRESTRICTED,$150.00
48,J.F. Drake State,90009385,HAROLD E BATTS,Jul,31,2008,Other Professional Salaries -,UNRESTRICTED,"$8,503.50"
48,J.F. Drake State,90009387,DALE W BAXTER,Jul,31,2008,Other Professional Salaries -,UNRESTRICTED,"$7,048.25"
48,J.F. Drake State,90009388,ANGELA NICOLE BELL,Jul,31,2008,Instructional Salaries - Tempo,UNRESTRICTED,"$3,818.00"
48,J.F. Drake State,90009389,NINA BULLOCK,Jul,31,2008,Instructional Salaries - Tempo,UNRESTRICTED,"$4,966.10"
48,J.F. Drake State,90009390,LINDA BURRUSS,Jul,31,2008,Instructional Salaries - Tempo,UNRESTRICTED,$733.77
48,J.F. Drake State,90009390,LINDA BURRUSS,Jul,31,2008,Other Contractual Services,NAT'L SCIENCE FOUNDATION,"$2,960.00"
48,J.F. Drake State,90009391,KHALILAH BURTON,Jul,31,2008,Other Contractual Services,NAT'L SCIENCE FOUNDATION,$583.80
48,J.F. Drake State,90009392,NECHA L BURTON,Jul,31,2008,Support Personnel Salaries - S,UNRESTRICTED,"$2,310.06"
48,J.F. Drake State,90009392,NECHA L BURTON,Jul,31,2008,Support Personnel Salaries - S,TITLE III CARRYOVER,$770.02
48,J.F. Drake State,90009394,SARA F CAMERON,Jul,31,2008,Other Contractual Services,UNRESTRICTED,"$2,000.00"
48,J.F. Drake State,90009395,HEATHER MICHELLE CAMPBELL,Jul,31,2008,Other Contractual Services,NAT'L SCIENCE FOUNDATION,$327.00
48,J.F. Drake State,90009396,TROY M CAMPBELL,Jul,31,2008,Instructional Salaries - Tempo,UNRESTRICTED,$733.77
48,J.F. Drake State,90009397,TINA COTHREN,Jul,31,2008,Instructional Salaries - Tempo,UNRESTRICTED,$642.00
48,J.F. Drake State,90009398,MICHELLE R CUNNINGHAM,Jul,31,2008,Instructional Salaries - Regul,UNRESTRICTED,"$2,528.85"
48,J.F. Drake State,90009398,MICHELLE R CUNNINGHAM,Jul,31,2008,Instructional Salaries - Regul,NAT'L SCIENCE FOUNDATION,$842.95
48,J.F. Drake State,90009399,CHRISTINE H DAVIS,Jul,31,2008,Instructional Salaries - Regul,UNRESTRICTED,"$4,922.33"
48,J.F. Drake State,90009399,CHRISTINE H DAVIS,Jul,31,2008,Instructional Salaries - Tempo,UNRESTRICTED,$450.00
48,J.F. Drake State,90009400,MATTIE D DAVIS,Jul,31,2008,Instructional Salaries - Regul,UNRESTRICTED,"$3,456.75"
48,J.F. Drake State,90009400,MATTIE D DAVIS,Jul,31,2008,Instructional Salaries - Regul,NAT'L SCIENCE FOUNDATION,"$1,152.25"
48,J.F. Drake State,90009401,HUGO A DEANGELIS,Jul,31,2008,Instructional Salaries - Tempo,UNRESTRICTED,"$1,402.50"
48,J.F. Drake State,90009402,MARTY J EATON,Jul,31,2008,Other Professional Salaries -,,"$1,159.00"
48,J.F. Drake State,90009403,MARY D FISHER,Jul,31,2008,Instructional Salaries - Tempo,UNRESTRICTED,$867.50
48,J.F. Drake State,90009404,BERNELL S FONTENOT,Jul,31,2008,Support Personnel Salaries - S,UNRESTRICTED,"$3,973.25"
48,J.F. Drake State,90009405,EDWIN T FORBES,Jul,31,2008,Instructional Salaries - Regul,UNRESTRICTED,"$4,747.00"
48,J.F. Drake State,90009405,EDWIN T FORBES,Jul,31,2008,Instructional Salaries - Tempo,UNRESTRICTED,$270.00
48,J.F. Drake State,90009406,MIRIAM B FRANK,Jul,31,2008,Instructional Salaries - Regul,UNRESTRICTED,"$7,835.25"
48,J.F. Drake State,90009407,MATTIE B FREEMAN,Jul,31,2008,Instructional Salaries - Tempo,UNRESTRICTED,"$2,300.50"
48,J.F. Drake State,90009408,BRENDA H FRIEND,Jul,31,2008,Other Professional Salaries -,TITLE III CARRYOVER,"$7,759.75"
48,J.F. Drake State,90009409,KIM GALKOWSKI,Jul,31,2008,Support Personnel Salaries - S,UNRESTRICTED,"$3,898.00"
48,J.F. Drake State,90009410,BONNIE GARRETT,Jul,31,2008,Instructional Salaries - Tempo,UNRESTRICTED,"$1,402.50"
48,J.F. Drake State,90009411,MANELZA CRAWFORD HAMBRICK,Jul,31,2008,Support Personnel Salaries - S,UNRESTRICTED,"$2,336.50"
48,J.F. Drake State,90009412,CAROLYN HENDERSON,Jul,31,2008,Instructional Salaries - Regul,UNRESTRICTED,"$4,747.00"
48,J.F. Drake State,90009413,DEXTER R HENRY,Jul,31,2008,Instructional Salaries - Regul,UNRESTRICTED,"$5,675.33"
48,J.F. Drake State,90009413,DEXTER R HENRY,Jul,31,2008,Instructional Salaries - Tempo,UNRESTRICTED,$733.77
48,J.F. Drake State,90009414,KARL W HENRY SR,Jul,31,2008,Instructional Salaries - Regul,UNRESTRICTED,"$6,351.33"
48,J.F. Drake State,90009415,ELBREY WARREN HERRING,Jul,31,2008,Instructional Salaries - Tempo,UNRESTRICTED,$450.00
48,J.F. Drake State,90009416,VICKYE T HESTER,Jul,31,2008,Support Personnel Salaries - S,UNRESTRICTED,"$1,743.02"
48,J.F. Drake State,90009417,DORIS HINTON,Jul,31,2008,Instructional Salaries - Regul,UNRESTRICTED,"$4,508.33"
48,J.F. Drake State,90009418,PATRICIA HUGHES,Jul,31,2008,Administrative Salaries- Sched,UNRESTRICTED,"$7,602.00"
48,J.F. Drake State,90009420,JAN J HYMAN,Jul,31,2008,Support Personnel Salaries - S,UNRESTRICTED,"$2,113.17"
48,J.F. Drake State,90009421,DONYALE D JONES,Jul,31,2008,Support Personnel Salaries - S,TITLE III CARRYOVER,"$3,229.00"
48,J.F. Drake State,90009422,RUTH D JONES,Jul,31,2008,Instructional Salaries - Tempo,UNRESTRICTED,$733.77
48,J.F. Drake State,90009422,RUTH D JONES,Jul,31,2008,Other Contractual Services,NAT'L SCIENCE FOUNDATION,"$3,220.00"
48,J.F. Drake State,90009423,HONG THUYDUC LAM,Jul,31,2008,Instructional Salaries - Regul,UNRESTRICTED,"$4,747.00"
48,J.F. Drake State,90009424,JOYCE P LAMAR,Jul,31,2008,Support Personnel Salaries - S,UNRESTRICTED,"$1,741.39"
48,J.F. Drake State,90009425,JOAN C LEATHERWOOD,Jul,31,2008,Instructional Salaries - Tempo,READY TO WORK,"$2,280.00"
48,J.F. Drake State,90009426,STACY L LUNDY,Jul,31,2008,Support Personnel Salaries - S,UNRESTRICTED,"$1,056.46"
48,J.F. Drake State,90009426,STACY L LUNDY,Jul,31,2008,Support Personnel Salaries - S,NAT'L SCIENCE FOUNDATION,"$1,056.46"
48,J.F. Drake State,90009427,DANIEL K MARCUM,Jul,31,2008,Support Personnel Salaries - S,UNRESTRICTED,"$2,603.48"
48,J.F. Drake State,90009428,HELEN T MCALPINE,Jul,31,2008,Administrative Salaries- Sched,UNRESTRICTED,"$14,266.45"
48,J.F. Drake State,90009428,HELEN T MCALPINE,Jul,31,2008,President's Expense Allowance,UNRESTRICTED,$200.00
48,J.F. Drake State,90009428,HELEN T MCALPINE,Jul,31,2008,Housing Allowance,UNRESTRICTED,"$1,000.00"
48,J.F. Drake State,90009429,LAWANNA MCCLEASE,Jul,31,2008,Other Contractual Services,NAT'L SCIENCE FOUNDATION,$648.00
48,J.F. Drake State,90009430,BRENDA MCCRAY,Jul,31,2008,Other Professional Salaries -,UNRESTRICTED,"$4,000.00"
48,J.F. Drake State,90009431,NITA S. MCGILL,Jul,31,2008,Instructional Salaries - Tempo,UNRESTRICTED,"$1,578.25"
48,J.F. Drake State,90009432,SCOTTY MCLAUGHLIN,Jul,31,2008,Instructional Salaries - Regul,UNRESTRICTED,"$6,535.00"
48,J.F. Drake State,90009433,DEBORAH A MILLING,Jul,31,2008,Instructional Salaries - Regul,UNRESTRICTED,"$9,767.25"
48,J.F. Drake State,90009434,SAMMY J MILTON,Jul,31,2008,Support Personnel Salaries - S,UNRESTRICTED,"$3,452.83"
48,J.F. Drake State,90009435,PREMA A MONTEIRO,Jul,31,2008,Instructional Salaries - Regul,,"$4,194.67"
48,J.F. Drake State,90009436,DANA MOORE,Jul,31,2008,Other Professional Salaries -,TITLE III CARRYOVER,"$8,503.75"
48,J.F. Drake State,90009437,MARY JO MORAN,Jul,31,2008,Instructional Salaries - Tempo,UNRESTRICTED,$287.56
48,J.F. Drake State,90009438,BRUCE D MORRISON,Jul,31,2008,Support Personnel Salaries - S,UNRESTRICTED,"$4,047.25"
48,J.F. Drake State,90009439,KATHRYN B NEAL,Jul,31,2008,Other Professional Salaries -,UNRESTRICTED,"$7,905.25"
48,J.F. Drake State,90009440,KAREN NEIR,Jul,31,2008,Instructional Salaries - Tempo,UNRESTRICTED,"$1,926.00"
48,J.F. Drake State,90009441,JENNIFER O'LINGER,Jul,31,2008,Support Personnel Salaries - S,UNRESTRICTED,"$3,079.91"
48,J.F. Drake State,90009442,DONALD ORR,Jul,31,2008,Support Personnel Salaries - S,UNRESTRICTED,"$3,803.86"
48,J.F. Drake State,90009443,GWENDOLYN D POPE,Jul,31,2008,Instructional Salaries - Regul,UNRESTRICTED,"$12,393.58"
48,J.F. Drake State,90009443,GWENDOLYN D POPE,Jul,31,2008,Instructional Salaries - Tempo,UNRESTRICTED,$675.00
48,J.F. Drake State,90009444,FREDRICK O PRUITT,Jul,31,2008,Instructional Salaries - Tempo,UNRESTRICTED,"$1,268.77"
48,J.F. Drake State,90009444,FREDRICK O PRUITT,Jul,31,2008,Instructional Salaries - Regul,UNRESTRICTED,"$4,194.67"
48,J.F. Drake State,90009445,MICHAEL RADDEN,Jul,31,2008,Instructional Salaries - Tempo,UNRESTRICTED,$450.00
48,J.F. Drake State,90009446,WELDON RAGLAND,Jul,31,2008,Instructional Salaries - Tempo,UNRESTRICTED,$450.00
48,J.F. Drake State,90009447,ALICE G RAYMOND,Jul,31,2008,Instructional Salaries - Regul,UNRESTRICTED,"$6,075.33"
48,J.F. Drake State,90009448,JOYCE L RENTZ,Jul,31,2008,Instructional Salaries - Regul,UNRESTRICTED,"$6,251.00"
48,J.F. Drake State,90009449,JOHN REUTTER III,Jul,31,2008,Administrative Salaries- Sched,UNRESTRICTED,"$8,205.34"
48,J.F. Drake State,90009450,MARTHA J ROBERTS,Jul,31,2008,Support Personnel Salaries - S,UNRESTRICTED,"$4,940.33"
48,J.F. Drake State,90009451,CHRISTINA R SCISSUM,Jul,31,2008,Other Professional Salaries -,TITLE III CARRYOVER,"$4,012.55"
48,J.F. Drake State,90009452,LESLEY SHOTTS,Jul,31,2008,Other Professional Salaries -,UNRESTRICTED,"$3,899.08"
48,J.F. Drake State,90009453,COLLIS H SIMS III,Jul,31,2008,Instructional Salaries - Regul,UNRESTRICTED,"$4,094.33"
48,J.F. Drake State,90009453,COLLIS H SIMS III,Jul,31,2008,Instructional Salaries - Tempo,UNRESTRICTED,$733.77
48,J.F. Drake State,90009454,PATRICIA GORDON SIMS,Jul,31,2008,Administrative Salaries- Sched,TITLE III CARRYOVER,"$8,372.01"
48,J.F. Drake State,90009455,STEVEN K SMITH,Jul,31,2008,Instructional Salaries - Regul,UNRESTRICTED,"$2,479.34"
48,J.F. Drake State,90009456,DELORIS A SMOTHERS,Jul,31,2008,Instructional Salaries - Regul,UNRESTRICTED,"$5,575.00"
48,J.F. Drake State,90009456,DELORIS A SMOTHERS,Jul,31,2008,Instructional Salaries - Tempo,UNRESTRICTED,$450.00
48,J.F. Drake State,90009457,VERLINDSEY B STEWART,Jul,31,2008,Instructional Salaries - Regul,UNRESTRICTED,"$6,135.00"
48,J.F. Drake State,90009458,MONICA SUDEALL-HAWKINS,Jul,31,2008,Other Professional Salaries -,UNRESTRICTED,"$4,993.33"
48,J.F. Drake State,90009459,JOY D TORNQUIST,Jul,31,2008,Instructional Salaries - Tempo,UNRESTRICTED,"$2,059.75"
48,J.F. Drake State,90009460,JOYLYN ERNA TROTMAN,Jul,31,2008,Other Professional Salaries -,UNRESTRICTED,"$4,465.83"
48,J.F. Drake State,90009461,GILBERT T TURLEY,Jul,31,2008,Other Professional Salaries -,UNRESTRICTED,"$6,450.08"
48,J.F. Drake State,90009462,CHRISTOPHER TURNER,Jul,31,2008,Support Personnel Salaries - S,NAT'L SCIENCE FOUNDATION,"$3,154.43"
48,J.F. Drake State,90009463,CYNTHIA M TURNER,Jul,31,2008,Instructional Salaries - Tempo,UNRESTRICTED,$240.75
48,J.F. Drake State,90009464,LETITIA E WALKER,Jul,31,2008,Support Personnel Salaries - S,UNRESTRICTED,"$3,080.50"
48,J.F. Drake State,90009465,THEO NATHAN WALSTON,Jul,31,2008,Other Contractual Services,NAT'L SCIENCE FOUNDATION,$501.00
48,J.F. Drake State,90009466,YVONNE M WHITE,Jul,31,2008,Support Personnel Salaries - S,UNRESTRICTED,"$1,104.79"
48,J.F. Drake State,90009466,YVONNE M WHITE,Jul,31,2008,Support Personnel Salaries - S,TITLE III CARRYOVER,"$3,314.38"
48,J.F. Drake State,90009468,SANOYIA L WILLIAMS,Jul,31,2008,Instructional Salaries - Tempo,UNRESTRICTED,$450.00
48,J.F. Drake State,90009469,GEORGE R WINN,Jul,31,2008,Instructional Salaries - Regul,UNRESTRICTED,"$1,116.46"
48,J.F. Drake State,90009469,GEORGE R WINN,Jul,31,2008,Other Professional Salaries -,UNRESTRICTED,"$1,116.46"
48,J.F. Drake State,90009469,GEORGE R WINN,Jul,31,2008,Other Professional Salaries -,NAT'L SCIENCE FOUNDATION,"$2,232.92"
48,J.F. Drake State,14650,KHALILAH BURTON,Jul,31,2008,Instructional Salaries - Tempo,UNRESTRICTED,"$2,505.00"
48,J.F. Drake State,14650,KHALILAH BURTON,Jul,31,2008,Other Contractual Services,NAT'L SCIENCE FOUNDATION,"$2,750.00"
48,J.F. Drake State,90009475,SUSAN KREULEN,Jul,31,2008,Instructional Salaries - Tempo,UNRESTRICTED,"$1,920.00"
48,J.F. Drake State,14648,VICKYE T HESTER,Jul,31,2008,Support Personnel Salaries - S,UNRESTRICTED,"$13,037.09"
48,J.F. Drake State,10028315,AMERICAN EXPRESS,Jul,30,2008,Out-of-State Travel,UNRESTRICTED,$579.00
48,J.F. Drake State,10028316,BROOKS LOCK & KEY,Jul,30,2008,Materials and Supplies,UNRESTRICTED,$41.75
48,J.F. Drake State,10028317,C. C. DICKSON COMPANY,Jul,30,2008,Maintenance and Repairs,UNRESTRICTED,$28.13
48,J.F. Drake State,10028317,C. C. DICKSON COMPANY,Jul,30,2008,Materials and Supplies,PLANT FUNDS,"$2,227.46"
48,J.F. Drake State,10028318,CDW-G,Jul,30,2008,Materials and Supplies,UNRESTRICTED,$300.95
48,J.F. Drake State,10028319,CHAMBER OF COMMERCE,Jul,30,2008,Institutional Allowance,UNRESTRICTED,$375.00
48,J.F. Drake State,10028320,CHEVRON CARD SERVICES,Jul,30,2008,Gasoline and Oil - Motor Vehic,UNRESTRICTED,$779.03
48,J.F. Drake State,10028321,DYKES RESTAURANT SUPPLY,Jul,30,2008,Materials and Supplies,PLANT FUNDS,"$17,625.30"
48,J.F. Drake State,10028322,"DYNAMIC SECURITY, INC.",Jul,30,2008,Other Contractual Services,UNRESTRICTED,"$4,475.52"
48,J.F. Drake State,10028323,"DYNAMIC SECURITY, INC.",Jul,30,2008,Other Contractual Services,UNRESTRICTED,"$1,491.84"
48,J.F. Drake State,10028324,FEDEX,Jul,30,2008,Materials and Supplies,UNRESTRICTED,$224.03
48,J.F. Drake State,10028325,GREENE'S REPAIR,Jul,30,2008,Maintenance and Repairs,PLANT FUNDS,"$1,705.00"
48,J.F. Drake State,10028326,HUNTSVILLE URBAN NETWORK,Jul,30,2008,Advertising and Promotions,UNRESTRICTED,$400.00
48,J.F. Drake State,10028327,"K & M GLASS COMPANY, INC",Jul,30,2008,Materials and Supplies,PLANT FUNDS,$475.00
48,J.F. Drake State,10028328,KELSEY ELECTRIC,Jul,30,2008,Maintenance and Repairs,UNRESTRICTED,$216.50
48,J.F. Drake State,10028329,"LANIER,FORD,SHAVER &",Jul,30,2008,Legal Services,UNRESTRICTED,$752.50
48,J.F. Drake State,10028331,"OFFICE DEPOT, INC.",Jul,30,2008,Materials and Supplies,UNRESTRICTED,$542.53
48,J.F. Drake State,10028332,SAVWEL,Jul,30,2008,Materials and Supplies,UNRESTRICTED,"$1,235.00"
48,J.F. Drake State,10028333,SCOTT LIGHTING SUPPLY,Jul,30,2008,Materials and Supplies,PLANT FUNDS,$668.00
48,J.F. Drake State,10028334,SOUTHERNLINC WIRELESS,Jul,30,2008,Communications,UNRESTRICTED,$15.90
48,J.F. Drake State,10028335,SYSCO CENTRAL ALABAMA,Jul,30,2008,Materials and Supplies,UNRESTRICTED,"$1,172.65"
48,J.F. Drake State,10028337,WZDX-TV,Jul,30,2008,Materials and Supplies,UNRESTRICTED,$500.00
48,J.F. Drake State,10028337,WZDX-TV,Jul,30,2008,Advertising and Promotions,READY TO WORK,$800.00
48,J.F. Drake State,20035758,LYSA AUGUSTIN,Jul,28,2008,Other Contractual Services,NAT'L SCIENCE FOUNDATION,"$1,000.00"
48,J.F. Drake State,20035759,LAUREN BARNES,Jul,28,2008,Other Contractual Services,NAT'L SCIENCE FOUNDATION,$960.00
48,J.F. Drake State,20035760,TIRRELL BENDOLPH,Jul,28,2008,Other Contractual Services,NAT'L SCIENCE FOUNDATION,$374.00
48,J.F. Drake State,20035761,KIMBERLY R CRAIG,Jul,28,2008,Other Contractual Services,NAT'L SCIENCE FOUNDATION,$476.00
48,J.F. Drake State,20035762,JEREMI DOUGLAS,Jul,28,2008,Other Contractual Services,NAT'L SCIENCE FOUNDATION,$476.00
48,J.F. Drake State,20035763,CHRISTINE FEARN,Jul,28,2008,Other Contractual Services,NAT'L SCIENCE FOUNDATION,$544.00
48,J.F. Drake State,20035764,RENARD HATCHER,Jul,28,2008,Other Contractual Services,NAT'L SCIENCE FOUNDATION,$544.00
48,J.F. Drake State,20035765,BRITTNEY HUNT,Jul,28,2008,Other Contractual Services,NAT'L SCIENCE FOUNDATION,$510.00
48,J.F. Drake State,20035766,KRISTEN KISSACK,Jul,28,2008,Other Contractual Services,NAT'L SCIENCE FOUNDATION,$960.00
48,J.F. Drake State,20035767,IRA JEAN LITTLE,Jul,28,2008,Other Contractual Services,NAT'L SCIENCE FOUNDATION,$408.00
48,J.F. Drake State,20035768,CRYSTAL D LITTLE,Jul,28,2008,Other Contractual Services,NAT'L SCIENCE FOUNDATION,$510.00
48,J.F. Drake State,20035769,FREDERICK K LOCKHART,Jul,28,2008,Other Contractual Services,NAT'L SCIENCE FOUNDATION,$544.00
48,J.F. Drake State,20035770,JAIME MAPLES,Jul,28,2008,In-State Travel,TITLE III CARRYOVER,$225.00
48,J.F. Drake State,20035771,HATTIE L MCCLAIN,Jul,28,2008,Other Contractual Services,NAT'L SCIENCE FOUNDATION,"$1,000.00"
48,J.F. Drake State,20035772,FARID MUJAHID,Jul,28,2008,Other Contractual Services,NAT'L SCIENCE FOUNDATION,$544.00
48,J.F. Drake State,20035773,"OFFICE DEPOT, INC.",Jul,28,2008,Materials and Supplies,TITLE III CARRYOVER,$286.45
48,J.F. Drake State,20035774,JENNIFER OLINGER,Jul,28,2008,In-State Travel,,$381.98
48,J.F. Drake State,20035775,OSCAR D PARKER JR,Jul,28,2008,Other Contractual Services,NAT'L SCIENCE FOUNDATION,$476.00
48,J.F. Drake State,20035776,BRIAN PARRISH,Jul,28,2008,Other Contractual Services,NAT'L SCIENCE FOUNDATION,$544.00
48,J.F. Drake State,20035777,KEANDREA S PULLEN,Jul,28,2008,Other Contractual Services,NAT'L SCIENCE FOUNDATION,$544.00
48,J.F. Drake State,20035778,MICHAEL ELLIOTT RICE,Jul,28,2008,Other Contractual Services,NAT'L SCIENCE FOUNDATION,$544.00
48,J.F. Drake State,20035779,PAUL ROGERS III,Jul,28,2008,Other Contractual Services,NAT'L SCIENCE FOUNDATION,$544.00
48,J.F. Drake State,20035780,MICHAEL L SMITH,Jul,28,2008,Other Contractual Services,NAT'L SCIENCE FOUNDATION,$408.00
48,J.F. Drake State,20035781,QUINTON SMITH,Jul,28,2008,Other Contractual Services,NAT'L SCIENCE FOUNDATION,$510.00
48,J.F. Drake State,20035782,THERESA SYLVESTRE,Jul,28,2008,Other Contractual Services,NAT'L SCIENCE FOUNDATION,$442.00
48,J.F. Drake State,20035783,ANDREA TONEY,Jul,28,2008,Other Contractual Services,NAT'L SCIENCE FOUNDATION,$510.00
48,J.F. Drake State,20035784,ANTHONY T TURNER,Jul,28,2008,Other Contractual Services,NAT'L SCIENCE FOUNDATION,$442.00
48,J.F. Drake State,20035785,RUSSELL WINN,Jul,28,2008,Other Contractual Services,NAT'L SCIENCE FOUNDATION,$151.33
48,J.F. Drake State,20035715,AMERICAN EXPRESS,Jul,23,2008,Out-of-State Travel,,$112.00
48,J.F. Drake State,20035716,JANIE ANDERSON,Jul,23,2008,Other Contractual Services,NAT'L SCIENCE FOUNDATION,"$1,000.00"
48,J.F. Drake State,20035718,VELENDIA B BURWELL,Jul,23,2008,Other Contractual Services,NAT'L SCIENCE FOUNDATION,"$1,000.00"
48,J.F. Drake State,20035719,ANDREA B CLAYTON,Jul,23,2008,Other Contractual Services,NAT'L SCIENCE FOUNDATION,"$1,000.00"
48,J.F. Drake State,20035720,LORI ROSSMEYER COBB,Jul,23,2008,Other Contractual Services,NAT'L SCIENCE FOUNDATION,"$1,000.00"
48,J.F. Drake State,20035722,CHANDA W DAVIS,Jul,23,2008,Other Contractual Services,NAT'L SCIENCE FOUNDATION,"$1,000.00"
48,J.F. Drake State,20035723,DR. MOSTAFA DOKHANIAN,Jul,23,2008,Other Contractual Services,NAT'L SCIENCE FOUNDATION,"$1,300.00"
48,J.F. Drake State,20035724,DRAKE TECH COL GEN FUND,Jul,23,2008,Institutional Use,,$767.94
48,J.F. Drake State,20035725,EDNA E EDWARDS,Jul,23,2008,Other Contractual Services,NAT'L SCIENCE FOUNDATION,"$1,000.00"
48,J.F. Drake State,20035726,PREANZA EGGLESTON-HAYES,Jul,23,2008,Other Contractual Services,NAT'L SCIENCE FOUNDATION,"$1,000.00"
48,J.F. Drake State,20035727,SHARON WAHAB ELAM,Jul,23,2008,Other Contractual Services,NAT'L SCIENCE FOUNDATION,"$1,000.00"
48,J.F. Drake State,20035728,VERNADINE FITCHARD,Jul,23,2008,Other Contractual Services,NAT'L SCIENCE FOUNDATION,"$1,000.00"
48,J.F. Drake State,20035729,FRED PRYOR SEMINARS,Jul,23,2008,State-Funded Professional Deve,TITLE III CARRYOVER,$199.99
48,J.F. Drake State,20035730,BRENDA H. FRIEND,Jul,23,2008,In-State Travel,,$223.47
48,J.F. Drake State,20035730,BRENDA H. FRIEND,Jul,23,2008,Employee Taxable Per Diem,,$11.25
48,J.F. Drake State,20035731,LORIE ANNE HALL,Jul,23,2008,Other Contractual Services,NAT'L SCIENCE FOUNDATION,"$1,000.00"
48,J.F. Drake State,20035732,LEIGH HARRISON,Jul,23,2008,Other Contractual Services,NAT'L SCIENCE FOUNDATION,"$1,000.00"
48,J.F. Drake State,20035733,DR. MOHAMMED R. KARIM,Jul,23,2008,Other Contractual Services,NAT'L SCIENCE FOUNDATION,"$1,300.00"
48,J.F. Drake State,20035734,SEDRIC D MACK,Jul,23,2008,Other Contractual Services,NAT'L SCIENCE FOUNDATION,"$1,000.00"
48,J.F. Drake State,20035735,MARK A MADDOX,Jul,23,2008,Other Contractual Services,NAT'L SCIENCE FOUNDATION,$900.00
48,J.F. Drake State,20035736,ROLF D MCGEE,Jul,23,2008,Other Contractual Services,NAT'L SCIENCE FOUNDATION,"$1,000.00"
48,J.F. Drake State,20035737,DANA MOORE,Jul,23,2008,Out-of-State Travel,TITLE III CARRYOVER,"$1,175.83"
48,J.F. Drake State,20035738,JENNIFER OLINGER,Jul,23,2008,In-State Travel,,$138.78
48,J.F. Drake State,20035739,JENNIFER OLINGER,Jul,23,2008,In-State Travel,,$138.78
48,J.F. Drake State,20035740,RONNIE G OWENS,Jul,23,2008,Other Contractual Services,NAT'L SCIENCE FOUNDATION,"$1,000.00"
48,J.F. Drake State,20035741,ANNETTE V PERKINS,Jul,23,2008,Other Contractual Services,NAT'L SCIENCE FOUNDATION,"$1,000.00"
48,J.F. Drake State,20035742,"POPE, GWENDOLYN M.",Jul,23,2008,Out-of-State Travel,TITLE III CARRYOVER,$361.54
48,J.F. Drake State,20035743,KATHRYN W POWELL,Jul,23,2008,Other Contractual Services,NAT'L SCIENCE FOUNDATION,"$1,000.00"
48,J.F. Drake State,20035744,"RENTZ, JOYCE L.",Jul,23,2008,Out-of-State Travel,TITLE III CARRYOVER,$513.10
48,J.F. Drake State,20035744,"RENTZ, JOYCE L.",Jul,23,2008,Out-of-State Travel,NAT'L SCIENCE FOUNDATION,$137.99
48,J.F. Drake State,20035745,UMEEKA SMITH,Jul,23,2008,Other Contractual Services,NAT'L SCIENCE FOUNDATION,"$1,000.00"
48,J.F. Drake State,20035746,"STEWART, VERLINDSEY B.",Jul,23,2008,Out-of-State Travel,TITLE III CARRYOVER,$482.99
48,J.F. Drake State,20035747,"TROTMAN, JOYLYN",Jul,23,2008,In-State Travel,TITLE III CARRYOVER,$150.00
48,J.F. Drake State,20035748,CRYSTAL R WRIGHT,Jul,23,2008,Other Contractual Services,NAT'L SCIENCE FOUNDATION,"$1,000.00"
48,J.F. Drake State,20035750,ANN MCNUTT CLARK,Jul,23,2008,Other Contractual Services,NAT'L SCIENCE FOUNDATION,"$1,000.00"
48,J.F. Drake State,20035751,CPCC FOUNDATION,Jul,23,2008,Out-of-State Travel,TITLE III CARRYOVER,$375.00
48,J.F. Drake State,20035753,JORDAN JEFFERSON,Jul,23,2008,Other Contractual Services,NAT'L SCIENCE FOUNDATION,$544.00
48,J.F. Drake State,10028310,AMERICAN EXPRESS,Jul,23,2008,Out-of-State Travel,UNRESTRICTED,$112.00
48,J.F. Drake State,10028311,UNIVERSITY OF ALABAMA,Jul,23,2008,Other Professional Fees,UNRESTRICTED,$400.00
48,J.F. Drake State,10028312,100 BMOA GHC,Jul,23,2008,Advertising and Promotions,UNRESTRICTED,$750.00
48,J.F. Drake State,10028286,A&A SHEET METAL PRODUCTS,Jul,22,2008,Materials and Supplies,UNRESTRICTED,"$2,433.41"
48,J.F. Drake State,10028287,ALABAMA FLAG & BANNER,Jul,22,2008,Materials and Supplies,UNRESTRICTED,$960.00
48,J.F. Drake State,10028288,CM & F GROUP INC.,Jul,22,2008,Purchases for Resale,AUXILIARY,$600.00
48,J.F. Drake State,10028289,"DELL MARKETING, L.P.",Jul,22,2008,Technology - Noncapitalized,UNRESTRICTED,"$23,910.00"
48,J.F. Drake State,10028290,"DYNAMIC SECURITY, INC.",Jul,22,2008,Other Contractual Services,UNRESTRICTED,"$3,090.24"
48,J.F. Drake State,10028291,EVOLVE REACH,Jul,22,2008,Purchases for Resale,AUXILIARY,$35.00
48,J.F. Drake State,10028292,"HUGHES, PATRICIA",Jul,22,2008,Employee Taxable Per Diem,UNRESTRICTED,$11.25
48,J.F. Drake State,10028295,THE LAMAR COMPANIES,Jul,22,2008,Advertising and Promotions,UNRESTRICTED,"$5,440.00"
48,J.F. Drake State,10028296,LOWE'S,Jul,22,2008,Maintenance and Repairs,PLANT FUNDS,"$1,838.71"
48,J.F. Drake State,10028296,LOWE'S,Jul,22,2008,Materials and Supplies,UNRESTRICTED,$601.16
48,J.F. Drake State,10028297,"MCALPINE, HELEN",Jul,22,2008,Communications,UNRESTRICTED,$47.63
48,J.F. Drake State,10028298,VERIZON WIRELESS,Jul,22,2008,Communications,UNRESTRICTED,$725.77
48,J.F. Drake State,10028299,WASTE MANAGEMENT OF NORTH,Jul,22,2008,Other Contractual Services,UNRESTRICTED,$465.26
48,J.F. Drake State,20035667,BRENDA H. FRIEND,Jul,17,2008,Out-of-State Travel,TITLE III CARRYOVER,$453.63
48,J.F. Drake State,20035668,SAM'S CLUB/WALMART,Jul,17,2008,Materials and Supplies,NAT'L SCIENCE FOUNDATION,$438.72
48,J.F. Drake State,20035669,DELORIS SMOTHERS,Jul,17,2008,Out-of-State Travel,TITLE III CARRYOVER,$598.06
48,J.F. Drake State,20035670,GIL TURLEY,Jul,17,2008,In-State Travel,TITLE III CARRYOVER,$682.80
48,J.F. Drake State,20035671,RUSSELL WINN,Jul,17,2008,Out-of-State Travel,NAT'L SCIENCE FOUNDATION,$202.78
48,J.F. Drake State,20035675,VERNESSA EDWARDS,Jul,17,2008,Other Contractual Services,NAT'L SCIENCE FOUNDATION,"$1,920.00"
48,J.F. Drake State,20035676,PREANZA EGGLESTON-HAYES,Jul,17,2008,Other Contractual Services,NAT'L SCIENCE FOUNDATION,"$3,840.00"
48,J.F. Drake State,20035677,PADMAJA GUGGILLA,Jul,17,2008,Other Contractual Services,NAT'L SCIENCE FOUNDATION,"$1,920.00"
48,J.F. Drake State,20035678,ARIELLE SULLIVAN,Jul,17,2008,Other Contractual Services,NAT'L SCIENCE FOUNDATION,"$3,840.00"
48,J.F. Drake State,10028266,A & D GLASS,Jul,11,2008,Materials and Supplies,UNRESTRICTED,$104.00
48,J.F. Drake State,10028267,ROBBIE LEE AKINS,Jul,11,2008,Maintenance and Repairs,PLANT FUNDS,$864.00
48,J.F. Drake State,10028268,"BURMAX, INC.",Jul,11,2008,Purchases for Resale,UNRESTRICTED,$613.34
48,J.F. Drake State,10028269,CHEM-DRY OF ALABAMA,Jul,11,2008,Materials and Supplies,UNRESTRICTED,$794.00
48,J.F. Drake State,10028270,COLLEGE OF DUPAGE,Jul,11,2008,Materials and Supplies,UNRESTRICTED,$557.95
48,J.F. Drake State,10028271,COMCAST SPOTLIGHT,Jul,11,2008,Advertising and Promotions,READY TO WORK,$947.00
48,J.F. Drake State,10028272,DERICK HENRY,Jul,11,2008,Other Contractual Services,UNRESTRICTED,$660.00
48,J.F. Drake State,10028273,"DYNAMIC SECURITY, INC.",Jul,11,2008,Other Contractual Services,UNRESTRICTED,"$1,491.84"
48,J.F. Drake State,10028274,EVOLVE REACH,Jul,11,2008,Purchases for Resale,AUXILIARY,$210.00
48,J.F. Drake State,10028275,GOODHEART-WILCOX COMPANY,Jul,11,2008,Purchases for Resale,UNRESTRICTED,$349.66
48,J.F. Drake State,10028276,GRAPHICS PUB,Jul,11,2008,Purchases for Resale,UNRESTRICTED,$707.90
48,J.F. Drake State,10028277,"J & S PRINTING, INC.",Jul,11,2008,Advertising and Promotions,UNRESTRICTED,"$1,293.40"
48,J.F. Drake State,10028278,"OFFICE DEPOT, INC.",Jul,11,2008,Materials and Supplies,UNRESTRICTED,$260.39
48,J.F. Drake State,10028279,"QUALITY COUNTS, INC",Jul,11,2008,Materials and Supplies,UNRESTRICTED,$908.00
48,J.F. Drake State,10028280,LOLITA MARCIA RENTIE,Jul,11,2008,Other Contractual Services,UNRESTRICTED,$480.00
48,J.F. Drake State,10028281,ROTO-ROOTER PLUMBERS,Jul,11,2008,Materials and Supplies,UNRESTRICTED,$109.00
48,J.F. Drake State,10028282,SAFETY KLEEN CORPORATION,Jul,11,2008,Materials and Supplies,UNRESTRICTED,$163.57
48,J.F. Drake State,10028284,WASTE MANAGEMENT OF NORTH,Jul,11,2008,Other Contractual Services,UNRESTRICTED,$332.59
48,J.F. Drake State,10028249,AMERICAN TECHNICAL,Jul,10,2008,Purchases for Resale,UNRESTRICTED,$922.39
48,J.F. Drake State,10028250,AMERICAN EXPRESS,Jul,10,2008,Out-of-State Travel,UNRESTRICTED,$112.00
48,J.F. Drake State,10028251,BROOKS LOCK & KEY,Jul,10,2008,Materials and Supplies,UNRESTRICTED,$86.00
48,J.F. Drake State,10028252,C. C. DICKSON COMPANY,Jul,10,2008,Maintenance and Repairs,PLANT FUNDS,"$1,389.37"
48,J.F. Drake State,10028253,COLONIAL GRAPHICS GROUP,Jul,10,2008,Advertising and Promotions,UNRESTRICTED,"$2,070.20"
48,J.F. Drake State,10028254,EVOLVE REACH,Jul,10,2008,Purchases for Resale,AUXILIARY,"$1,186.00"
48,J.F. Drake State,10028254,EVOLVE REACH,Jul,10,2008,Purchases for Resale,UNRESTRICTED,$380.00
48,J.F. Drake State,10028255,JOHNSTONE SUPPLY,Jul,10,2008,Maintenance and Repairs,UNRESTRICTED,"$2,082.96"
48,J.F. Drake State,10028256,WOW! BUSINESS,Jul,10,2008,Materials and Supplies,UNRESTRICTED,$750.00
48,J.F. Drake State,10028256,WOW! BUSINESS,Jul,10,2008,Advertising and Promotions,READY TO WORK,$258.00
48,J.F. Drake State,10028257,LEDFORDS LANDSCAPING,Jul,10,2008,Other Contractual Services,UNRESTRICTED,"$2,225.00"
48,J.F. Drake State,10028258,PITNEY BOWES,Jul,10,2008,Freight,UNRESTRICTED,$283.99
48,J.F. Drake State,10028259,PITNEY BOWES,Jul,10,2008,Other Contractual Services,UNRESTRICTED,$657.00
48,J.F. Drake State,10028260,QUICK MEDICAL,Jul,10,2008,Materials and Supplies,UNRESTRICTED,$29.52
48,J.F. Drake State,10028262,SCHINDLER ELEVATOR CORP,Jul,10,2008,Materials and Supplies,UNRESTRICTED,$855.78
48,J.F. Drake State,10028263,SEXTON WELDING SUPPLY,Jul,10,2008,Other Contractual Services,UNRESTRICTED,$816.14
48,J.F. Drake State,10028264,UNION CHAPEL MISSIONARY,Jul,10,2008,Electricity,UNRESTRICTED,$154.61
48,J.F. Drake State,20035618,ALABAMA CARD SYSTEMS,Jul,10,2008,Materials and Supplies,TITLE III CARRYOVER,$65.58
48,J.F. Drake State,20035619,AMERICAN EXPRESS,Jul,10,2008,Out-of-State Travel,TITLE III CARRYOVER,$976.48
48,J.F. Drake State,20035620,BEST BOOKS,Jul,10,2008,Books,TITLE III CARRYOVER,$150.85
48,J.F. Drake State,20035622,EBSCO PUBLISHING,Jul,10,2008,Books,TITLE III CARRYOVER,$78.83
48,J.F. Drake State,20035623,INSTRUCTIONAL OFFICERS' A,Jul,10,2008,In-State Travel,TITLE III CARRYOVER,$350.00
48,J.F. Drake State,20035624,NSCEC,Jul,10,2008,Out-of-State Travel,TITLE III CARRYOVER,$505.00
48,J.F. Drake State,20035625,OMNI HOTELS,Jul,10,2008,Out-of-State Travel,TITLE III CARRYOVER,$562.74
48,J.F. Drake State,20035626,DR. JOHN REUTTER,Jul,10,2008,In-State Travel,TITLE III CARRYOVER,$225.00
48,J.F. Drake State,20035627,DREAMA SKIPWORTH,Jul,10,2008,Other Contractual Services,NAT'L SCIENCE FOUNDATION,$510.00
48,J.F. Drake State,20035628,"SUDEALL, MONICA",Jul,10,2008,In-State Travel,TITLE III CARRYOVER,$225.00
48,J.F. Drake State,20035629,RUSSELL WINN,Jul,10,2008,Materials and Supplies,NAT'L SCIENCE FOUNDATION,$228.46
48,J.F. Drake State,20035630,4IMPRINT,Jul,10,2008,Materials and Supplies,NAT'L SCIENCE FOUNDATION,"$4,128.76"
48,J.F. Drake State,10028215,ROBBIE LEE AKINS,Jul,2,2008,Other Contractual Services,PLANT FUNDS,$960.00
48,J.F. Drake State,10028217,AVIZENT,Jul,2,2008,Insurance and Bonding,UNRESTRICTED,$116.67
48,J.F. Drake State,10028218,B-WARE & ASSOCIATES,Jul,2,2008,Other Contractual Services,UNRESTRICTED,$640.20
48,J.F. Drake State,10028220,BERNEY OFFICE SOLUTIONS,Jul,2,2008,Other Contractual Services,UNRESTRICTED,$68.86
48,J.F. Drake State,10028222,COUNCIL FOR OPPORT. ED,Jul,2,2008,State-Funded Professional Deve,UNRESTRICTED,"$1,100.00"
48,J.F. Drake State,10028223,DERICK HENRY,Jul,2,2008,Other Contractual Services,UNRESTRICTED,$732.00
48,J.F. Drake State,10028224,ENTERPRISE RENTAL CAR,Jul,2,2008,Materials and Supplies,,$577.74
48,J.F. Drake State,10028226,"HUGHES, PATRICIA",Jul,2,2008,Materials and Supplies,UNRESTRICTED,$39.99
48,J.F. Drake State,10028227,LOWE'S,Jul,2,2008,Maintenance and Repairs,UNRESTRICTED,$274.72
48,J.F. Drake State,10028229,"MCALPINE, HELEN",Jul,2,2008,In-State Travel,UNRESTRICTED,$225.00
48,J.F. Drake State,10028230,OPERATION GREEN TEAM,Jul,2,2008,Institutional Allowance,UNRESTRICTED,$18.00
48,J.F. Drake State,10028231,PEARSON EDUCATION CTR,Jul,2,2008,Purchases for Resale,UNRESTRICTED,"$11,484.33"
48,J.F. Drake State,10028232,LOLITA MARCIA RENTIE,Jul,2,2008,Other Contractual Services,UNRESTRICTED,$546.00
48,J.F. Drake State,10028238,TN VALLEY MONEY SAVER,Jul,2,2008,Advertising and Promotions,UNRESTRICTED,"$1,950.00"
48,J.F. Drake State,10028239,VON BRAUN CENTER,Jul,2,2008,Institutional Use,UNRESTRICTED,"$4,080.05"
48,J.F. Drake State,10028240,XEROX CORPORATION,Jul,2,2008,Other Contractual Services,,$138.58
48,J.F. Drake State,20035607,AMERICAN EXPRESS,Jul,2,2008,Out-of-State Travel,NAT'L SCIENCE FOUNDATION,$28.00
48,J.F. Drake State,20035608,AMERICAN EXPRESS,Jul,2,2008,Out-of-State Travel,TITLE III CARRYOVER,$445.48
48,J.F. Drake State,20035609,AMERICAN EXPRESS,Jul,2,2008,Out-of-State Travel,NAT'L SCIENCE FOUNDATION,$682.81
48,J.F. Drake State,20035610,BUBBA'S,Jul,2,2008,Materials and Supplies,NAT'L SCIENCE FOUNDATION,$386.25
48,J.F. Drake State,20035611,COURTYARD BY MARRIOTT,Jul,2,2008,Out-of-State Travel,TITLE III CARRYOVER,$528.36
48,J.F. Drake State,20035612,KIM GALKOWSKI,Jul,2,2008,In-State Travel,TITLE III CARRYOVER,$18.43
48,J.F. Drake State,20035612,KIM GALKOWSKI,Jul,2,2008,Employee Taxable Per Diem,TITLE III CARRYOVER,$11.25
48,J.F. Drake State,20035613,RENAISSANCE AUSTIN HOTEL,Jul,2,2008,Materials and Supplies,NAT'L SCIENCE FOUNDATION,$309.35
48,J.F. Drake State,20035615,ARIELLE SULLIVAN,Jul,2,2008,Materials and Supplies,NAT'L SCIENCE FOUNDATION,$18.03
48,J.F. Drake State,20035616,GIL TURLEY,Jul,2,2008,Out-of-State Travel,TITLE III CARRYOVER,"$1,668.23"
48,J.F. Drake State,20035533,CHRISTINA BAFFIELD,Jul,1,2008,Other Contractual Services,NAT'L SCIENCE FOUNDATION,$544.00
48,J.F. Drake State,20035534,MATTHEW BAKER,Jul,1,2008,Other Contractual Services,NAT'L SCIENCE FOUNDATION,$544.00
48,J.F. Drake State,20035535,DEVIN L BROWN,Jul,1,2008,Other Contractual Services,NAT'L SCIENCE FOUNDATION,$544.00
48,J.F. Drake State,20035536,MICHAEL L BUTLER,Jul,1,2008,Other Contractual Services,NAT'L SCIENCE FOUNDATION,$544.00
48,J.F. Drake State,20035537,SHUNDRA C CHAMBERS,Jul,1,2008,Other Contractual Services,NAT'L SCIENCE FOUNDATION,$544.00
48,J.F. Drake State,20035538,DERRICK COFFEY,Jul,1,2008,Other Contractual Services,NAT'L SCIENCE FOUNDATION,$374.00
48,J.F. Drake State,20035539,ERICKA COLLIER,Jul,1,2008,Other Contractual Services,NAT'L SCIENCE FOUNDATION,$544.00
48,J.F. Drake State,20035540,YESENIA D COMPRES,Jul,1,2008,Other Contractual Services,NAT'L SCIENCE FOUNDATION,$544.00
48,J.F. Drake State,20035541,NIA CORBIN,Jul,1,2008,Other Contractual Services,NAT'L SCIENCE FOUNDATION,$476.00
48,J.F. Drake State,20035542,JULIAN C CRAIG,Jul,1,2008,Other Contractual Services,NAT'L SCIENCE FOUNDATION,$476.00
48,J.F. Drake State,20035543,TRAVIS CURRY,Jul,1,2008,Other Contractual Services,NAT'L SCIENCE FOUNDATION,$544.00
48,J.F. Drake State,20035544,DALAWRENCE L DANIELS,Jul,1,2008,Other Contractual Services,NAT'L SCIENCE FOUNDATION,$510.00
48,J.F. Drake State,20035545,JOSHUA BILAL DOMOND,Jul,1,2008,Other Contractual Services,NAT'L SCIENCE FOUNDATION,$544.00
48,J.F. Drake State,20035546,DANIELLE L EDMONDSON,Jul,1,2008,Other Contractual Services,NAT'L SCIENCE FOUNDATION,$544.00
48,J.F. Drake State,20035547,AUDREANNA ELLIS,Jul,1,2008,Other Contractual Services,NAT'L SCIENCE FOUNDATION,$544.00
48,J.F. Drake State,20035548,LAMAR DEAN FITCHARD,Jul,1,2008,Other Contractual Services,NAT'L SCIENCE FOUNDATION,$544.00
48,J.F. Drake State,20035549,DAYSHA FORD,Jul,1,2008,Other Contractual Services,NAT'L SCIENCE FOUNDATION,$510.00
48,J.F. Drake State,20035550,KWAME FORD,Jul,1,2008,Other Contractual Services,NAT'L SCIENCE FOUNDATION,$544.00
48,J.F. Drake State,20035551,MICHAEL HAMPTON,Jul,1,2008,Other Contractual Services,NAT'L SCIENCE FOUNDATION,$544.00
48,J.F. Drake State,20035552,TIARA HARDIN,Jul,1,2008,Other Contractual Services,NAT'L SCIENCE FOUNDATION,$510.00
48,J.F. Drake State,20035553,SHAREKA T HAYDEN,Jul,1,2008,Other Contractual Services,NAT'L SCIENCE FOUNDATION,$544.00
48,J.F. Drake State,20035554,ANGELA M HILL,Jul,1,2008,Other Contractual Services,NAT'L SCIENCE FOUNDATION,$544.00
48,J.F. Drake State,20035555,KELVIN M HUGHES,Jul,1,2008,Other Contractual Services,NAT'L SCIENCE FOUNDATION,$476.00
48,J.F. Drake State,20035556,ASHLEY JASPER,Jul,1,2008,Other Contractual Services,NAT'L SCIENCE FOUNDATION,$510.00
48,J.F. Drake State,20035558,DOMINIQUE JOHNSON,Jul,1,2008,Other Contractual Services,NAT'L SCIENCE FOUNDATION,$510.00
48,J.F. Drake State,20035559,BILAL JONES,Jul,1,2008,Other Contractual Services,NAT'L SCIENCE FOUNDATION,$544.00
48,J.F. Drake State,20035560,GIA JONES,Jul,1,2008,Other Contractual Services,NAT'L SCIENCE FOUNDATION,$544.00
48,J.F. Drake State,20035561,DAVID A JORDAN,Jul,1,2008,Other Contractual Services,NAT'L SCIENCE FOUNDATION,$544.00
48,J.F. Drake State,20035562,KYESIA KENDRICKS,Jul,1,2008,Other Contractual Services,NAT'L SCIENCE FOUNDATION,$544.00
48,J.F. Drake State,20035563,AARON KING,Jul,1,2008,Other Contractual Services,NAT'L SCIENCE FOUNDATION,$476.00
48,J.F. Drake State,20035564,JASMINE LEDET,Jul,1,2008,Other Contractual Services,NAT'L SCIENCE FOUNDATION,$544.00
48,J.F. Drake State,20035565,JOSHUA T LENHARDT,Jul,1,2008,Other Contractual Services,NAT'L SCIENCE FOUNDATION,$544.00
48,J.F. Drake State,20035566,LINDSEY LOUQUE,Jul,1,2008,Other Contractual Services,NAT'L SCIENCE FOUNDATION,$476.00
48,J.F. Drake State,20035567,ASHLEY A LOVE,Jul,1,2008,Other Contractual Services,NAT'L SCIENCE FOUNDATION,$544.00
48,J.F. Drake State,20035568,JARVIS D LOVELACE,Jul,1,2008,Other Contractual Services,NAT'L SCIENCE FOUNDATION,$544.00
48,J.F. Drake State,20035569,AMBER MARTIN,Jul,1,2008,Other Contractual Services,NAT'L SCIENCE FOUNDATION,$374.00
48,J.F. Drake State,20035570,DENEICE MASON,Jul,1,2008,Other Contractual Services,NAT'L SCIENCE FOUNDATION,$510.00
48,J.F. Drake State,20035571,JEREMY MCCRARY,Jul,1,2008,Other Contractual Services,NAT'L SCIENCE FOUNDATION,$544.00
48,J.F. Drake State,20035572,JESSE MCCRAY,Jul,1,2008,Other Contractual Services,NAT'L SCIENCE FOUNDATION,$544.00
48,J.F. Drake State,20035573,TERIEKA MCGHEE,Jul,1,2008,Other Contractual Services,NAT'L SCIENCE FOUNDATION,$408.00
48,J.F. Drake State,20035574,JASMINE MILLER,Jul,1,2008,Other Contractual Services,NAT'L SCIENCE FOUNDATION,$544.00
48,J.F. Drake State,20035575,NOLAN MILLER JR,Jul,1,2008,Other Contractual Services,NAT'L SCIENCE FOUNDATION,$510.00
48,J.F. Drake State,20035576,SHARIKA MILLER,Jul,1,2008,Other Contractual Services,NAT'L SCIENCE FOUNDATION,$544.00
48,J.F. Drake State,20035577,MAURIA MOORE,Jul,1,2008,Other Contractual Services,NAT'L SCIENCE FOUNDATION,$544.00
48,J.F. Drake State,20035578,MAURISHA MOORE,Jul,1,2008,Other Contractual Services,NAT'L SCIENCE FOUNDATION,$510.00
48,J.F. Drake State,20035579,KYNDAL PAIGE,Jul,1,2008,Other Contractual Services,NAT'L SCIENCE FOUNDATION,$544.00
48,J.F. Drake State,20035580,MICHELLE A PARKER,Jul,1,2008,Other Contractual Services,NAT'L SCIENCE FOUNDATION,$544.00
48,J.F. Drake State,20035581,BRIELLE PEAN,Jul,1,2008,Other Contractual Services,NAT'L SCIENCE FOUNDATION,$510.00
48,J.F. Drake State,20035582,KAYLA PHILLIPS,Jul,1,2008,Other Contractual Services,NAT'L SCIENCE FOUNDATION,$476.00
48,J.F. Drake State,20035583,CHARLES PINCHON,Jul,1,2008,Other Contractual Services,NAT'L SCIENCE FOUNDATION,$510.00
48,J.F. Drake State,20035584,JASMINE V PRIDE,Jul,1,2008,Other Contractual Services,NAT'L SCIENCE FOUNDATION,$442.00
48,J.F. Drake State,20035585,JARQUZE PRUITT,Jul,1,2008,Other Contractual Services,NAT'L SCIENCE FOUNDATION,$544.00
48,J.F. Drake State,20035586,ALFONZA PRYOR JR,Jul,1,2008,Other Contractual Services,NAT'L SCIENCE FOUNDATION,$544.00
48,J.F. Drake State,20035587,JASMINE RAY,Jul,1,2008,Other Contractual Services,NAT'L SCIENCE FOUNDATION,$544.00
48,J.F. Drake State,20035588,PATHELIA J RICE,Jul,1,2008,Other Contractual Services,NAT'L SCIENCE FOUNDATION,$510.00
48,J.F. Drake State,20035589,JERMEL RICHMOND,Jul,1,2008,Other Contractual Services,NAT'L SCIENCE FOUNDATION,$544.00
48,J.F. Drake State,20035590,EPHRIAM L RICHMOND,Jul,1,2008,Other Contractual Services,NAT'L SCIENCE FOUNDATION,$510.00
48,J.F. Drake State,20035591,ROSALYN G RIGGINS,Jul,1,2008,Other Contractual Services,NAT'L SCIENCE FOUNDATION,$544.00
48,J.F. Drake State,20035592,TYLER F RING,Jul,1,2008,Other Contractual Services,NAT'L SCIENCE FOUNDATION,$510.00
48,J.F. Drake State,20035593,LUCRETIA ROUNDTREE,Jul,1,2008,Other Contractual Services,NAT'L SCIENCE FOUNDATION,$306.00
48,J.F. Drake State,20035594,LATRECE S SALES,Jul,1,2008,Other Contractual Services,NAT'L SCIENCE FOUNDATION,$408.00
48,J.F. Drake State,20035596,JAMES SNEED III,Jul,1,2008,Other Contractual Services,NAT'L SCIENCE FOUNDATION,$510.00
48,J.F. Drake State,20035597,ADRIANA STEWART,Jul,1,2008,Other Contractual Services,NAT'L SCIENCE FOUNDATION,$510.00
48,J.F. Drake State,20035598,JACOREY THOMAS,Jul,1,2008,Other Contractual Services,NAT'L SCIENCE FOUNDATION,$544.00
48,J.F. Drake State,20035599,PATRICK W TRAVIS,Jul,1,2008,Other Contractual Services,NAT'L SCIENCE FOUNDATION,$408.00
48,J.F. Drake State,20035600,NICHOLAS VANZANDT,Jul,1,2008,Other Contractual Services,NAT'L SCIENCE FOUNDATION,$544.00
48,J.F. Drake State,20035601,LATRELL WIGGINS,Jul,1,2008,Other Contractual Services,NAT'L SCIENCE FOUNDATION,$544.00
48,J.F. Drake State,20035602,BRENDAN WILLIAMS,Jul,1,2008,Other Contractual Services,NAT'L SCIENCE FOUNDATION,$544.00
48,J.F. Drake State,20035603,TREY WRIGHT,Jul,1,2008,Other Contractual Services,NAT'L SCIENCE FOUNDATION,$544.00
48,J.F. Drake State,20035605,SHANIKA ARCHIE,Jul,1,2008,Other Contractual Services,NAT'L SCIENCE FOUNDATION,$476.00
48,J.F. Drake State,73110000,AT&T,Jun,30,2008,Communications,UNRESTRICTED,$74.79
48,J.F. Drake State,73120000,AT&T,Jun,30,2008,Communications,UNRESTRICTED,$143.48
48,J.F. Drake State,73130000,AT&T,Jun,30,2008,Communications,UNRESTRICTED,$133.35
48,J.F. Drake State,73140000,AT&T,Jun,30,2008,Communications,UNRESTRICTED,$44.69
48,J.F. Drake State,73150000,AT&T,Jun,30,2008,Communications,UNRESTRICTED,$194.35
48,J.F. Drake State,73160000,AT&T,Jun,30,2008,Communications,UNRESTRICTED,"$2,833.58"
48,J.F. Drake State,73190000,COMCAST,Jun,30,2008,Other Contractual Services,UNRESTRICTED,$53.88
48,J.F. Drake State,73200000,COOK'S PEST CONTROL,Jun,30,2008,Other Contractual Services,UNRESTRICTED,$65.00
48,J.F. Drake State,73210000,COOK'S PEST CONTROL,Jun,30,2008,Other Contractual Services,UNRESTRICTED,$249.00
48,J.F. Drake State,73220000,HUNTSVILLE UTILITIES,Jun,30,2008,Water and Sewer,UNRESTRICTED,$370.11
48,J.F. Drake State,73230000,HUNTSVILLE UTILITIES,Jun,30,2008,Water and Sewer,UNRESTRICTED,$32.12
48,J.F. Drake State,73240000,HUNTSVILLE UTILITIES,Jun,30,2008,Water and Sewer,UNRESTRICTED,$3.81
48,J.F. Drake State,73250000,HUNTSVILLE UTILITIES,Jun,30,2008,Gas and Heating Fuel,UNRESTRICTED,"$1,869.43"
48,J.F. Drake State,73260000,HUNTSVILLE UTILITIES,Jun,30,2008,Electricity,UNRESTRICTED,"$11,827.27"
48,J.F. Drake State,73260000,HUNTSVILLE UTILITIES,Jun,30,2008,Water and Sewer,UNRESTRICTED,$245.06
48,J.F. Drake State,73270000,HUNTSVILLE UTILITIES,Jun,30,2008,Electricity,UNRESTRICTED,"$1,853.16"
48,J.F. Drake State,73270000,HUNTSVILLE UTILITIES,Jun,30,2008,Gas and Heating Fuel,UNRESTRICTED,$34.86
48,J.F. Drake State,73280000,HUNTSVILLE UTILITIES,Jun,30,2008,Water and Sewer,UNRESTRICTED,$18.72
48,J.F. Drake State,73290000,WOW! BUSINESS,Jun,30,2008,Advertising and Promotions,UNRESTRICTED,$102.81
48,J.F. Drake State,73300000,PITNEY BOWES,Jun,30,2008,Postage,UNRESTRICTED,$700.00
48,J.F. Drake State,73310000,VERIZON WIRELESS,Jun,30,2008,Communications,UNRESTRICTED,$120.66
48,J.F. Drake State,90009206,NIKI MALONE,Jun,30,2008,Support Personnel Salaries - S,UNRESTRICTED,$497.56
48,J.F. Drake State,90009208,JULIE POTTER,Jun,30,2008,Support Personnel Salaries - S,UNRESTRICTED,$535.08
48,J.F. Drake State,14638,STEVEN K SMITH,Jun,30,2008,Instructional Salaries - Regul,UNRESTRICTED,"$2,479.33"
48,J.F. Drake State,14635,NICHOLAS PAUL KSEPKA,Jun,30,2008,Hourly Wages,UNRESTRICTED,"$2,850.00"
48,J.F. Drake State,14636,JAIME MARIE MAPLES,Jun,30,2008,Other Professional Salaries -,UNRESTRICTED,$160.00
48,J.F. Drake State,14636,JAIME MARIE MAPLES,Jun,30,2008,Support Personnel Salaries - S,UNRESTRICTED,"$1,776.95"
48,J.F. Drake State,90009108,BEN BATTLE,Jun,30,2008,Instructional Salaries - Regul,UNRESTRICTED,"$5,322.33"
48,J.F. Drake State,90009108,BEN BATTLE,Jun,30,2008,Instructional Salaries - Tempo,UNRESTRICTED,$150.00
48,J.F. Drake State,90009109,HAROLD E BATTS,Jun,30,2008,Other Professional Salaries -,UNRESTRICTED,"$8,503.50"
48,J.F. Drake State,90009111,DALE W BAXTER,Jun,30,2008,Other Professional Salaries -,UNRESTRICTED,"$7,048.25"
48,J.F. Drake State,90009112,ANGELA NICOLE BELL,Jun,30,2008,Instructional Salaries - Tempo,UNRESTRICTED,"$3,818.00"
48,J.F. Drake State,90009113,NINA BULLOCK,Jun,30,2008,Instructional Salaries - Tempo,UNRESTRICTED,"$4,966.10"
48,J.F. Drake State,90009114,LINDA BURRUSS,Jun,30,2008,Instructional Salaries - Tempo,UNRESTRICTED,$733.77
48,J.F. Drake State,90009114,LINDA BURRUSS,Jun,30,2008,Other Contractual Services,NAT'L SCIENCE FOUNDATION,"$3,055.00"
48,J.F. Drake State,90009115,KHALILAH BURTON,Jun,30,2008,Instructional Salaries - Tempo,UNRESTRICTED,"$2,505.00"
48,J.F. Drake State,90009115,KHALILAH BURTON,Jun,30,2008,Other Contractual Services,NAT'L SCIENCE FOUNDATION,"$4,140.00"
48,J.F. Drake State,90009116,NECHA L BURTON,Jun,30,2008,Support Personnel Salaries - S,UNRESTRICTED,"$2,310.06"
48,J.F. Drake State,90009116,NECHA L BURTON,Jun,30,2008,Support Personnel Salaries - S,TITLE III CARRYOVER,$770.02
48,J.F. Drake State,90009118,HEATHER MICHELLE CAMPBELL,Jun,30,2008,Other Contractual Services,NAT'L SCIENCE FOUNDATION,$315.00
48,J.F. Drake State,90009119,TROY M CAMPBELL,Jun,30,2008,Instructional Salaries - Tempo,UNRESTRICTED,$733.77
48,J.F. Drake State,90009120,TINA COTHREN,Jun,30,2008,Instructional Salaries - Tempo,UNRESTRICTED,$588.50
48,J.F. Drake State,90009121,MICHELLE R CUNNINGHAM,Jun,30,2008,Instructional Salaries - Regul,UNRESTRICTED,"$2,528.85"
48,J.F. Drake State,90009121,MICHELLE R CUNNINGHAM,Jun,30,2008,Instructional Salaries - Regul,NAT'L SCIENCE FOUNDATION,$842.95
48,J.F. Drake State,90009122,CHRISTINE H DAVIS,Jun,30,2008,Instructional Salaries - Regul,UNRESTRICTED,"$4,922.33"
48,J.F. Drake State,90009122,CHRISTINE H DAVIS,Jun,30,2008,Instructional Salaries - Tempo,UNRESTRICTED,$450.00
48,J.F. Drake State,90009123,MATTIE D DAVIS,Jun,30,2008,Instructional Salaries - Regul,UNRESTRICTED,"$3,456.75"
48,J.F. Drake State,90009123,MATTIE D DAVIS,Jun,30,2008,Instructional Salaries - Regul,NAT'L SCIENCE FOUNDATION,"$1,152.25"
48,J.F. Drake State,90009124,HUGO A DEANGELIS,Jun,30,2008,Instructional Salaries - Tempo,UNRESTRICTED,"$1,402.50"
48,J.F. Drake State,90009125,MARTY J EATON,Jun,30,2008,Other Professional Salaries -,,"$1,159.00"
48,J.F. Drake State,90009126,MARY D FISHER,Jun,30,2008,Instructional Salaries - Tempo,UNRESTRICTED,"$1,380.00"
48,J.F. Drake State,90009127,BERNELL S FONTENOT,Jun,30,2008,Support Personnel Salaries - S,UNRESTRICTED,"$3,973.25"
48,J.F. Drake State,90009128,EDWIN T FORBES,Jun,30,2008,Instructional Salaries - Regul,UNRESTRICTED,"$4,747.00"
48,J.F. Drake State,90009128,EDWIN T FORBES,Jun,30,2008,Instructional Salaries - Tempo,UNRESTRICTED,$270.00
48,J.F. Drake State,90009129,MIRIAM B FRANK,Jun,30,2008,Instructional Salaries - Regul,UNRESTRICTED,"$7,835.25"
48,J.F. Drake State,90009130,MATTIE B FREEMAN,Jun,30,2008,Instructional Salaries - Tempo,UNRESTRICTED,"$1,324.13"
48,J.F. Drake State,90009131,BRENDA H FRIEND,Jun,30,2008,Other Professional Salaries -,TITLE III CARRYOVER,"$7,759.75"
48,J.F. Drake State,90009132,KIM GALKOWSKI,Jun,30,2008,Support Personnel Salaries - S,UNRESTRICTED,"$3,898.00"
48,J.F. Drake State,90009133,BONNIE GARRETT,Jun,30,2008,Instructional Salaries - Tempo,UNRESTRICTED,"$1,402.50"
48,J.F. Drake State,90009134,MANELZA CRAWFORD HAMBRICK,Jun,30,2008,Support Personnel Salaries - S,UNRESTRICTED,"$2,336.50"
48,J.F. Drake State,90009135,CAROLYN HENDERSON,Jun,30,2008,Instructional Salaries - Regul,UNRESTRICTED,"$4,747.00"
48,J.F. Drake State,90009136,DEXTER R HENRY,Jun,30,2008,Instructional Salaries - Regul,UNRESTRICTED,"$5,675.33"
48,J.F. Drake State,90009136,DEXTER R HENRY,Jun,30,2008,Instructional Salaries - Tempo,UNRESTRICTED,$733.77
48,J.F. Drake State,90009137,KARL W HENRY SR,Jun,30,2008,Instructional Salaries - Regul,UNRESTRICTED,"$6,351.33"
48,J.F. Drake State,90009138,ELBREY WARREN HERRING,Jun,30,2008,Instructional Salaries - Tempo,UNRESTRICTED,$450.00
48,J.F. Drake State,90009139,VICKYE T HESTER,Jun,30,2008,Support Personnel Salaries - S,UNRESTRICTED,"$4,196.16"
48,J.F. Drake State,90009140,DORIS HINTON,Jun,30,2008,Instructional Salaries - Regul,UNRESTRICTED,"$4,508.33"
48,J.F. Drake State,90009141,PATRICIA HUGHES,Jun,30,2008,Administrative Salaries- Sched,UNRESTRICTED,"$6,878.40"
48,J.F. Drake State,90009143,JAN J HYMAN,Jun,30,2008,Support Personnel Salaries - S,UNRESTRICTED,"$2,113.17"
48,J.F. Drake State,90009144,DONYALE D JONES,Jun,30,2008,Support Personnel Salaries - S,TITLE III CARRYOVER,"$3,229.00"
48,J.F. Drake State,90009145,RUTH D JONES,Jun,30,2008,Instructional Salaries - Tempo,UNRESTRICTED,$733.77
48,J.F. Drake State,90009145,RUTH D JONES,Jun,30,2008,Other Contractual Services,NAT'L SCIENCE FOUNDATION,"$3,250.00"
48,J.F. Drake State,90009146,SUSAN KREULEN,Jun,30,2008,Instructional Salaries - Tempo,UNRESTRICTED,"$1,920.00"
48,J.F. Drake State,90009147,HONG THUYDUC LAM,Jun,30,2008,Instructional Salaries - Regul,UNRESTRICTED,"$4,747.00"
48,J.F. Drake State,90009148,JOYCE P LAMAR,Jun,30,2008,Support Personnel Salaries - S,UNRESTRICTED,"$1,560.87"
48,J.F. Drake State,90009149,JOAN C LEATHERWOOD,Jun,30,2008,Instructional Salaries - Tempo,UNRESTRICTED,"$1,362.86"
48,J.F. Drake State,90009149,JOAN C LEATHERWOOD,Jun,30,2008,Instructional Salaries - Tempo,READY TO WORK,"$6,870.00"
48,J.F. Drake State,90009150,STACY L LUNDY,Jun,30,2008,Support Personnel Salaries - S,UNRESTRICTED,"$1,056.46"
48,J.F. Drake State,90009150,STACY L LUNDY,Jun,30,2008,Support Personnel Salaries - S,NAT'L SCIENCE FOUNDATION,"$1,056.46"
48,J.F. Drake State,90009151,NIKI MALONE,Jun,30,2008,Support Personnel Salaries - S,UNRESTRICTED,"$1,421.46"
48,J.F. Drake State,90009153,DANIEL K MARCUM,Jun,30,2008,Support Personnel Salaries - S,UNRESTRICTED,"$2,485.17"
48,J.F. Drake State,90009154,HELEN T MCALPINE,Jun,30,2008,Administrative Salaries- Sched,UNRESTRICTED,"$14,266.45"
48,J.F. Drake State,90009154,HELEN T MCALPINE,Jun,30,2008,President's Expense Allowance,UNRESTRICTED,$200.00
48,J.F. Drake State,90009154,HELEN T MCALPINE,Jun,30,2008,Housing Allowance,UNRESTRICTED,"$1,000.00"
48,J.F. Drake State,90009155,LAWANNA MCCLEASE,Jun,30,2008,Other Contractual Services,NAT'L SCIENCE FOUNDATION,$240.00
48,J.F. Drake State,90009156,BRENDA MCCRAY,Jun,30,2008,Other Professional Salaries -,UNRESTRICTED,"$4,000.00"
48,J.F. Drake State,90009157,NITA S. MCGILL,Jun,30,2008,Instructional Salaries - Tempo,UNRESTRICTED,$362.46
48,J.F. Drake State,90009158,SCOTTY MCLAUGHLIN,Jun,30,2008,Instructional Salaries - Regul,UNRESTRICTED,"$6,535.00"
48,J.F. Drake State,90009159,DEBORAH A MILLING,Jun,30,2008,Instructional Salaries - Regul,UNRESTRICTED,"$9,767.25"
48,J.F. Drake State,90009160,SAMMY J MILTON,Jun,30,2008,Support Personnel Salaries - S,UNRESTRICTED,"$3,452.83"
48,J.F. Drake State,90009161,PREMA A MONTEIRO,Jun,30,2008,Instructional Salaries - Regul,,"$4,194.67"
48,J.F. Drake State,90009162,DANA MOORE,Jun,30,2008,Other Professional Salaries -,TITLE III CARRYOVER,"$8,503.75"
48,J.F. Drake State,90009163,MARY JO MORAN,Jun,30,2008,Instructional Salaries - Tempo,UNRESTRICTED,$555.06
48,J.F. Drake State,90009164,BRUCE D MORRISON,Jun,30,2008,Support Personnel Salaries - S,UNRESTRICTED,"$4,047.25"
48,J.F. Drake State,90009165,KATHRYN B NEAL,Jun,30,2008,Other Professional Salaries -,UNRESTRICTED,"$7,905.25"
48,J.F. Drake State,90009166,KAREN NEIR,Jun,30,2008,Instructional Salaries - Tempo,UNRESTRICTED,"$1,431.13"
48,J.F. Drake State,90009167,JENNIFER O'LINGER,Jun,30,2008,Support Personnel Salaries - S,UNRESTRICTED,"$3,079.91"
48,J.F. Drake State,90009168,DONALD ORR,Jun,30,2008,Support Personnel Salaries - S,UNRESTRICTED,"$3,601.25"
48,J.F. Drake State,90009169,GWENDOLYN D POPE,Jun,30,2008,Instructional Salaries - Regul,UNRESTRICTED,"$12,393.58"
48,J.F. Drake State,90009169,GWENDOLYN D POPE,Jun,30,2008,Instructional Salaries - Tempo,UNRESTRICTED,$675.00
48,J.F. Drake State,90009170,JULIE POTTER,Jun,30,2008,Support Personnel Salaries - S,UNRESTRICTED,"$1,411.38"
48,J.F. Drake State,90009171,FREDRICK O PRUITT,Jun,30,2008,Instructional Salaries - Tempo,UNRESTRICTED,"$1,268.77"
48,J.F. Drake State,90009171,FREDRICK O PRUITT,Jun,30,2008,Instructional Salaries - Regul,UNRESTRICTED,"$4,194.67"
48,J.F. Drake State,90009172,MICHAEL RADDEN,Jun,30,2008,Instructional Salaries - Tempo,UNRESTRICTED,$450.00
48,J.F. Drake State,90009173,WELDON RAGLAND,Jun,30,2008,Instructional Salaries - Tempo,UNRESTRICTED,$450.00
48,J.F. Drake State,90009174,ALICE G RAYMOND,Jun,30,2008,Instructional Salaries - Regul,UNRESTRICTED,"$6,075.33"
48,J.F. Drake State,90009175,JOYCE L RENTZ,Jun,30,2008,Instructional Salaries - Regul,UNRESTRICTED,"$6,251.00"
48,J.F. Drake State,90009176,JOHN REUTTER III,Jun,30,2008,Administrative Salaries- Sched,UNRESTRICTED,"$8,205.34"
48,J.F. Drake State,90009177,MARTHA J ROBERTS,Jun,30,2008,Support Personnel Salaries - S,UNRESTRICTED,"$4,940.33"
48,J.F. Drake State,90009178,CHRISTINA R SCISSUM,Jun,30,2008,Other Professional Salaries -,TITLE III CARRYOVER,"$4,012.55"
48,J.F. Drake State,90009179,LESLEY SHOTTS,Jun,30,2008,Other Professional Salaries -,UNRESTRICTED,"$3,899.08"
48,J.F. Drake State,90009180,COLLIS H SIMS III,Jun,30,2008,Instructional Salaries - Regul,UNRESTRICTED,"$4,094.33"
48,J.F. Drake State,90009180,COLLIS H SIMS III,Jun,30,2008,Instructional Salaries - Tempo,UNRESTRICTED,$733.77
48,J.F. Drake State,90009181,PATRICIA GORDON SIMS,Jun,30,2008,Administrative Salaries- Sched,TITLE III CARRYOVER,"$8,372.01"
48,J.F. Drake State,90009182,DELORIS A SMOTHERS,Jun,30,2008,Instructional Salaries - Regul,UNRESTRICTED,"$5,575.00"
48,J.F. Drake State,90009182,DELORIS A SMOTHERS,Jun,30,2008,Instructional Salaries - Tempo,UNRESTRICTED,$450.00
48,J.F. Drake State,90009183,VERLINDSEY B STEWART,Jun,30,2008,Instructional Salaries - Regul,UNRESTRICTED,"$6,135.00"
48,J.F. Drake State,90009184,MONICA SUDEALL-HAWKINS,Jun,30,2008,Other Professional Salaries -,UNRESTRICTED,"$4,993.33"
48,J.F. Drake State,90009185,JOY D TORNQUIST,Jun,30,2008,Instructional Salaries - Tempo,UNRESTRICTED,"$1,992.88"
48,J.F. Drake State,90009186,JOYLYN ERNA TROTMAN,Jun,30,2008,Other Professional Salaries -,UNRESTRICTED,"$4,465.83"
48,J.F. Drake State,90009187,GILBERT T TURLEY,Jun,30,2008,Other Professional Salaries -,UNRESTRICTED,"$6,450.08"
48,J.F. Drake State,90009188,CHRISTOPHER TURNER,Jun,30,2008,Support Personnel Salaries - S,NAT'L SCIENCE FOUNDATION,"$3,154.43"
48,J.F. Drake State,90009189,CYNTHIA M TURNER,Jun,30,2008,Instructional Salaries - Tempo,UNRESTRICTED,$628.63
48,J.F. Drake State,90009190,LETITIA E WALKER,Jun,30,2008,Support Personnel Salaries - S,UNRESTRICTED,"$3,080.50"
48,J.F. Drake State,90009191,THEO NATHAN WALSTON,Jun,30,2008,Other Contractual Services,NAT'L SCIENCE FOUNDATION,$402.00
48,J.F. Drake State,90009192,YVONNE M WHITE,Jun,30,2008,Support Personnel Salaries - S,UNRESTRICTED,"$1,104.79"
48,J.F. Drake State,90009192,YVONNE M WHITE,Jun,30,2008,Support Personnel Salaries - S,TITLE III CARRYOVER,"$3,314.38"
48,J.F. Drake State,90009194,SANOYIA L WILLIAMS,Jun,30,2008,Instructional Salaries - Tempo,UNRESTRICTED,$450.00
48,J.F. Drake State,90009195,GEORGE R WINN,Jun,30,2008,Instructional Salaries - Regul,UNRESTRICTED,"$1,116.46"
48,J.F. Drake State,90009195,GEORGE R WINN,Jun,30,2008,Other Professional Salaries -,UNRESTRICTED,"$1,116.46"
48,J.F. Drake State,90009195,GEORGE R WINN,Jun,30,2008,Other Professional Salaries -,NAT'L SCIENCE FOUNDATION,"$2,232.92"
48,J.F. Drake State,10028129,ACCA REGISTRATION,Jun,25,2008,Advertising and Promotions,UNRESTRICTED,$125.00
48,J.F. Drake State,10028130,ALA COMMUNITY COLLEGE,Jun,25,2008,In-State Travel,UNRESTRICTED,$300.00
48,J.F. Drake State,10028131,BUSINESS SYSTEMS & CONSUL,Jun,25,2008,Materials and Supplies,UNRESTRICTED,"$9,987.30"
48,J.F. Drake State,10028132,CDW-G,Jun,25,2008,Materials and Supplies,UNRESTRICTED,"$3,092.00"
48,J.F. Drake State,10028133,PETTY CASH,Jun,25,2008,Materials and Supplies,UNRESTRICTED,$90.17
48,J.F. Drake State,10028133,PETTY CASH,Jun,25,2008,Institutional Use,UNRESTRICTED,$25.92
48,J.F. Drake State,10028133,PETTY CASH,Jun,25,2008,Advertising and Promotions,UNRESTRICTED,$42.56
48,J.F. Drake State,10028133,PETTY CASH,Jun,25,2008,Maintenance and Repairs,UNRESTRICTED,$40.00
48,J.F. Drake State,10028133,PETTY CASH,Jun,25,2008,Materials and Supplies,PLANT FUNDS,$20.00
48,J.F. Drake State,10028134,"DYNAMIC SECURITY, INC.",Jun,25,2008,Other Contractual Services,UNRESTRICTED,"$2,983.68"
48,J.F. Drake State,10028135,FEDEX,Jun,25,2008,Postage,UNRESTRICTED,$129.74
48,J.F. Drake State,10028136,"LANIER,FORD,SHAVER &",Jun,25,2008,Legal Services,UNRESTRICTED,"$1,999.07"
48,J.F. Drake State,10028137,LEARNING LABS INC.,Jun,25,2008,Computer Software,UNRESTRICTED,"$2,512.00"
48,J.F. Drake State,10028138,LIBRARICA,Jun,25,2008,Other Contractual Services,UNRESTRICTED,$461.85
48,J.F. Drake State,10028139,LOWE'S,Jun,25,2008,Materials and Supplies,PLANT FUNDS,$196.51
48,J.F. Drake State,10028139,LOWE'S,Jun,25,2008,Maintenance and Repairs,PLANT FUNDS,$58.14
48,J.F. Drake State,10028140,"MCALPINE, HELEN",Jun,25,2008,Institutional Allowance,UNRESTRICTED,$167.57
48,J.F. Drake State,10028141,"MEDI-DOSE, INC",Jun,25,2008,Materials and Supplies,UNRESTRICTED,$128.86
48,J.F. Drake State,10028143,JENNIFER OLINGER,Jun,25,2008,Materials and Supplies,UNRESTRICTED,$125.00
48,J.F. Drake State,10028144,"QUALITY COUNTS, INC",Jun,25,2008,Purchases for Resale,AUXILIARY,"$1,129.00"
48,J.F. Drake State,10028145,"SACJTC, DR. GEORGE EDWARD",Jun,25,2008,Memberships,UNRESTRICTED,$100.00
48,J.F. Drake State,20035470,CRI,Jun,24,2008,Materials and Supplies,TITLE III CARRYOVER,$716.50
48,J.F. Drake State,20035471,HERTZ FURNITURE SYSTEMS,Jun,24,2008,Materials and Supplies,NAT'L SCIENCE FOUNDATION,"$3,812.00"
48,J.F. Drake State,20035472,HILTON GARDEN INN,Jun,24,2008,In-State Travel,,"$1,035.09"
48,J.F. Drake State,20035473,JENNIFER OLINGER,Jun,24,2008,Materials and Supplies,,$300.00
48,J.F. Drake State,20035473,JENNIFER OLINGER,Jun,24,2008,In-State Travel,,$540.00
48,J.F. Drake State,20035474,SCANTRON CORPORATION,Jun,24,2008,Materials and Supplies,NAT'L SCIENCE FOUNDATION,$196.23
48,J.F. Drake State,20035475,FOUR POINTS SHERATON,Jun,24,2008,Out-of-State Travel,TITLE III CARRYOVER,$778.95
48,J.F. Drake State,20035476,"SIMS, PATRICIA G.",Jun,24,2008,In-State Travel,,$121.34
48,J.F. Drake State,10028127,WILLIAM HAMPTON,Jun,20,2008,Maintenance and Repairs,UNRESTRICTED,$612.00
48,J.F. Drake State,10028067,WAYNE ALEXANDER LOVEDAY,Jun,19,2008,Other Contractual Services,PLANT FUNDS,$414.00
48,J.F. Drake State,10028068,LOWE'S,Jun,19,2008,Materials and Supplies,PLANT FUNDS,$323.58
48,J.F. Drake State,10028069,MID CITY SUPPLY CO,Jun,19,2008,Materials and Supplies,UNRESTRICTED,$324.39
48,J.F. Drake State,10028070,NORTH AL SICKLE CELL,Jun,19,2008,Advertising and Promotions,UNRESTRICTED,$250.00
48,J.F. Drake State,10028071,"OFFICE DEPOT, INC.",Jun,19,2008,Materials and Supplies,UNRESTRICTED,$822.55
48,J.F. Drake State,10028071,"OFFICE DEPOT, INC.",Jun,19,2008,Purchases for Resale,UNRESTRICTED,$599.50
48,J.F. Drake State,10028072,LOLITA MARCIA RENTIE,Jun,19,2008,Other Contractual Services,UNRESTRICTED,$546.00
48,J.F. Drake State,10028073,RSC EQUIPMENT RENTAL,Jun,19,2008,Maintenance and Repairs,PLANT FUNDS,$50.00
48,J.F. Drake State,10028074,SAM'S CLUB/WALMART,Jun,19,2008,Materials and Supplies,UNRESTRICTED,$64.60
48,J.F. Drake State,10028075,WAFF - CHANNEL 48,Jun,19,2008,Advertising and Promotions,UNRESTRICTED,$500.00
48,J.F. Drake State,10028077,ROBBIE LEE AKINS,Jun,19,2008,Other Contractual Services,PLANT FUNDS,$852.00
48,J.F. Drake State,10028079,DERICK HENRY,Jun,19,2008,Other Contractual Services,UNRESTRICTED,$792.00
48,J.F. Drake State,10028080,GRAPHICS PUB,Jun,19,2008,Advertising and Promotions,UNRESTRICTED,"$2,169.58"
48,J.F. Drake State,10028081,KELSEY ELECTRIC,Jun,19,2008,Materials and Supplies,UNRESTRICTED,$148.48
48,J.F. Drake State,10028082,KEYPLUS SCHOOL PRODUCTS,Jun,19,2008,Institutional Use,UNRESTRICTED,"$1,786.50"
48,J.F. Drake State,10028084,CENGAGE LEARNING,Jun,19,2008,Purchases for Resale,UNRESTRICTED,$895.89
48,J.F. Drake State,20035453,ABCO OFFICE FURNITURE,Jun,19,2008,Materials and Supplies,,"$1,293.60"
48,J.F. Drake State,20035454,AMERICAN EXPRESS,Jun,19,2008,Out-of-State Travel,NAT'L SCIENCE FOUNDATION,$612.20
48,J.F. Drake State,20035455,ASTD WORKFORCE INNOVATION,Jun,19,2008,Out-of-State Travel,TITLE III CARRYOVER,"$1,300.00"
48,J.F. Drake State,20035456,"DAVIS, CHRISTINE",Jun,19,2008,Out-of-State Travel,,$325.74
48,J.F. Drake State,20035457,DR. MOSTAFA DOKHANIAN,Jun,19,2008,Other Contractual Services,NAT'L SCIENCE FOUNDATION,"$2,600.00"
48,J.F. Drake State,20035458,DR. MOHAMMED R. KARIM,Jun,19,2008,Out-of-State Travel,NAT'L SCIENCE FOUNDATION,"$1,950.00"
48,J.F. Drake State,20035459,KRISTEN KISSACK,Jun,19,2008,Materials and Supplies,NAT'L SCIENCE FOUNDATION,$13.84
48,J.F. Drake State,20035460,DANA MOORE,Jun,19,2008,In-State Travel,TITLE III CARRYOVER,$985.88
48,J.F. Drake State,20035461,"OFFICE DEPOT, INC.",Jun,19,2008,Materials and Supplies,TITLE III CARRYOVER,$489.71
48,J.F. Drake State,20035461,"OFFICE DEPOT, INC.",Jun,19,2008,Materials and Supplies,NAT'L SCIENCE FOUNDATION,$614.45
48,J.F. Drake State,20035462,SKILLS ALABAMA,Jun,19,2008,Out-of-State Travel,,"$2,500.00"
48,J.F. Drake State,20035463,RUSSELL WINN,Jun,19,2008,Out-of-State Travel,NAT'L SCIENCE FOUNDATION,"$1,105.58"
48,J.F. Drake State,20035465,"POPE, GWENDOLYN M.",Jun,19,2008,Materials and Supplies,,$500.00
48,J.F. Drake State,20035332,AMERICAN EXPRESS,Jun,18,2008,Out-of-State Travel,TITLE III CARRYOVER,"$1,230.50"
48,J.F. Drake State,20035332,AMERICAN EXPRESS,Jun,18,2008,Out-of-State Travel,NAT'L SCIENCE FOUNDATION,$463.00
48,J.F. Drake State,20035333,CLAITOR'S LAW BOOKS & PUB,Jun,18,2008,Books,TITLE III CARRYOVER,$128.26
48,J.F. Drake State,20035334,SCOTTSBORO DAILY SENTINEL,Jun,18,2008,Books,TITLE III CARRYOVER,$78.00
48,J.F. Drake State,20035336,HYATT REGENCY CHICAGO,Jun,18,2008,Out-of-State Travel,TITLE III CARRYOVER,$585.08
48,J.F. Drake State,20035337,PREMA A MONTEIRO,Jun,18,2008,Out-of-State Travel,TITLE III CARRYOVER,$969.95
48,J.F. Drake State,20035338,"NOEL-LEVITZ, INC",Jun,18,2008,Out-of-State Travel,TITLE III CARRYOVER,$615.00
48,J.F. Drake State,20035339,JENNIFER OLINGER,Jun,18,2008,In-State Travel,TITLE III CARRYOVER,$195.72
48,J.F. Drake State,20035340,"SIMS, PATRICIA G.",Jun,18,2008,In-State Travel,TITLE III CARRYOVER,$300.00
48,J.F. Drake State,20035341,"SUDEALL, MONICA",Jun,18,2008,In-State Travel,TITLE III CARRYOVER,$43.87
48,J.F. Drake State,20035342,CHRISTOPHER TURNER,Jun,18,2008,In-State Travel,NAT'L SCIENCE FOUNDATION,$137.28
48,J.F. Drake State,10028034,ALCA,Jun,18,2008,Memberships,UNRESTRICTED,$65.00
48,J.F. Drake State,10028035,BALDWIN COOKE COMPANY,Jun,18,2008,Materials and Supplies,UNRESTRICTED,$38.35
48,J.F. Drake State,10028036,EDUCAUSE,Jun,18,2008,Computer Software,UNRESTRICTED,$40.00
48,J.F. Drake State,10028037,HUNTSVILLE TIMES,Jun,18,2008,Advertising and Promotions,UNRESTRICTED,$155.76
48,J.F. Drake State,10028038,MARCUM DANIEL,Jun,18,2008,In-State Travel,UNRESTRICTED,$61.61
48,J.F. Drake State,10028039,NAFEO,Jun,18,2008,Memberships,UNRESTRICTED,"$2,000.00"
48,J.F. Drake State,10028040,SERVICE CLEANERS AND LAUN,Jun,18,2008,Materials and Supplies,,$150.36
48,J.F. Drake State,10028041,TECHNICAL TRAINING AIDS,Jun,18,2008,Computer Software,UNRESTRICTED,"$7,695.00"
48,J.F. Drake State,10028042,TOPHEALTH,Jun,18,2008,"Printing, Reproduction and Bin",UNRESTRICTED,$89.70
48,J.F. Drake State,10028043,UPS,Jun,18,2008,Postage,UNRESTRICTED,$86.55
48,J.F. Drake State,10028043,UPS,Jun,18,2008,Freight,UNRESTRICTED,$10.25
48,J.F. Drake State,10028043,UPS,Jun,18,2008,Investment Transaction Expense,UNRESTRICTED,$1.39
48,J.F. Drake State,20035315,AMERICAN EXPRESS,Jun,12,2008,Out-of-State Travel,TITLE III CARRYOVER,$139.00
48,J.F. Drake State,20035315,AMERICAN EXPRESS,Jun,12,2008,Out-of-State Travel,NAT'L SCIENCE FOUNDATION,$506.00
48,J.F. Drake State,20035316,CDW-G,Jun,12,2008,Materials and Supplies,NAT'L SCIENCE FOUNDATION,"$6,122.50"
48,J.F. Drake State,20035317,"DELL MARKETING, L.P.",Jun,12,2008,Furniture and Equipment,READY TO WORK,"$7,970.00"
48,J.F. Drake State,20035317,"DELL MARKETING, L.P.",Jun,12,2008,Materials and Supplies,NAT'L SCIENCE FOUNDATION,"$15,940.00"
48,J.F. Drake State,20035318,DRAKE STATE UNRESTRICTED,Jun,12,2008,In-State Travel,TITLE III CARRYOVER,$255.03
48,J.F. Drake State,20035319,KIM GALKOWSKI,Jun,12,2008,Employee Taxable Per Diem,TITLE III CARRYOVER,$11.25
48,J.F. Drake State,20035320,HERTZ FURNITURE SYSTEMS,Jun,12,2008,Materials and Supplies,NAT'L SCIENCE FOUNDATION,"$9,700.00"
48,J.F. Drake State,20035321,"HESTER, VICKYE TOWNS",Jun,12,2008,In-State Travel,TITLE III CARRYOVER,$260.00
48,J.F. Drake State,20035322,"OFFICE DEPOT, INC.",Jun,12,2008,Materials and Supplies,,$144.76
48,J.F. Drake State,20035323,PEARSON EDUCATION CTR,Jun,12,2008,Materials and Supplies,NAT'L SCIENCE FOUNDATION,"$3,320.05"
48,J.F. Drake State,20035324,PITNEY BOWES/REPAIRS,Jun,12,2008,Materials and Supplies,TITLE III CARRYOVER,$703.70
48,J.F. Drake State,20035325,DELORIS SMOTHERS,Jun,12,2008,In-State Travel,TITLE III CARRYOVER,$120.71
48,J.F. Drake State,20035326,THE CENTER FOR THE ADVANC,Jun,12,2008,State-Funded Professional Deve,TITLE III CARRYOVER,$449.00
48,J.F. Drake State,20035327,CHRISTOPHER TURNER,Jun,12,2008,In-State Travel,NAT'L SCIENCE FOUNDATION,$24.71
48,J.F. Drake State,20035328,US SPACE & ROCKET CENTER,Jun,12,2008,Materials and Supplies,NAT'L SCIENCE FOUNDATION,"$2,268.00"
48,J.F. Drake State,20035330,AMERICAN WELDING SOCIETY,Jun,12,2008,State-Funded Professional Deve,TITLE III CARRYOVER,"$1,900.00"
48,J.F. Drake State,10027998,ACA MEMBER SERVICES,Jun,11,2008,Memberships,UNRESTRICTED,$191.00
48,J.F. Drake State,10027999,ALABAMA SUPERCOMPUTER AUT,Jun,11,2008,Other Contractual Services,UNRESTRICTED,"$6,766.00"
48,J.F. Drake State,10028000,AMERICAN EXPRESS,Jun,11,2008,Out-of-State Travel,UNRESTRICTED,"$2,084.00"
48,J.F. Drake State,10028001,CDW-G,Jun,11,2008,Materials and Supplies,UNRESTRICTED,"$1,700.00"
48,J.F. Drake State,10028001,CDW-G,Jun,11,2008,Furniture and Equipment,NAT'L SCIENCE FOUNDATION,"$1,700.00"
48,J.F. Drake State,10028002,CHEVRON CARD SERVICES,Jun,11,2008,Gasoline and Oil - Motor Vehic,UNRESTRICTED,$682.35
48,J.F. Drake State,10028004,"DYNAMIC SECURITY, INC.",Jun,11,2008,Other Contractual Services,UNRESTRICTED,"$3,090.24"
48,J.F. Drake State,10028005,EVOLVE REACH,Jun,11,2008,Purchases for Resale,AUXILIARY,$108.00
48,J.F. Drake State,10028006,FEDEX,Jun,11,2008,Communications,UNRESTRICTED,$34.44
48,J.F. Drake State,10028009,HUNTSVILLE TIMES,Jun,11,2008,Advertising and Promotions,UNRESTRICTED,$204.68
48,J.F. Drake State,10028010,HYATT REGENCY CHICAGO,Jun,11,2008,Out-of-State Travel,UNRESTRICTED,"$3,305.06"
48,J.F. Drake State,10028011,GLIDDEN PROFESSIONAL PAI,Jun,11,2008,Maintenance and Repairs,PLANT FUNDS,$650.51
48,J.F. Drake State,10028011,GLIDDEN PROFESSIONAL PAI,Jun,11,2008,Materials and Supplies,PLANT FUNDS,$333.17
48,J.F. Drake State,10028012,"MED-ELECTRONICS, INC",Jun,11,2008,Materials and Supplies,UNRESTRICTED,$734.02
48,J.F. Drake State,10028013,MEADOWS MEDICAL SUPPLY,Jun,11,2008,Purchases for Resale,UNRESTRICTED,"$4,516.70"
48,J.F. Drake State,10028014,NCAC/ROYAL ANNIVERSARY,Jun,11,2008,Advertising and Promotions,UNRESTRICTED,$500.00
48,J.F. Drake State,10028015,NIGHTINGALE UNIFORM COMPA,Jun,11,2008,Purchases for Resale,UNRESTRICTED,"$1,080.00"
48,J.F. Drake State,10028016,"OFFICE DEPOT, INC.",Jun,11,2008,Materials and Supplies,UNRESTRICTED,"$1,316.61"
48,J.F. Drake State,10028016,"OFFICE DEPOT, INC.",Jun,11,2008,Purchases for Resale,UNRESTRICTED,$240.96
48,J.F. Drake State,10028017,PARADIGM PUBLISHING,Jun,11,2008,Purchases for Resale,UNRESTRICTED,"$3,759.01"
48,J.F. Drake State,10028018,PEARSON EDUCATION CTR,Jun,11,2008,Purchases for Resale,UNRESTRICTED,"$1,406.20"
48,J.F. Drake State,10028020,PURCHASE POWER,Jun,11,2008,Communications,UNRESTRICTED,$206.99
48,J.F. Drake State,10028021,RSC EQUIPMENT RENTAL,Jun,11,2008,Maintenance and Repairs,PLANT FUNDS,$618.39
48,J.F. Drake State,10028022,SAFETY KLEEN CORPORATION,Jun,11,2008,Materials and Supplies,UNRESTRICTED,$323.78
48,J.F. Drake State,10028023,SALLY BEAUTY SUPPLY,Jun,11,2008,Purchases for Resale,UNRESTRICTED,$99.80
48,J.F. Drake State,10028024,SCANTRON CORPORATION,Jun,11,2008,Computer Software,UNRESTRICTED,"$5,950.20"
48,J.F. Drake State,10028025,SERVICE CLEANERS AND LAUN,Jun,11,2008,Materials and Supplies,,$359.48
48,J.F. Drake State,10028026,SOUTHERNLINC WIRELESS,Jun,11,2008,Communications,UNRESTRICTED,$15.90
48,J.F. Drake State,10028027,TRENHOLM STATE TECH COLL,Jun,11,2008,Materials and Supplies,UNRESTRICTED,$27.94
48,J.F. Drake State,10028027,TRENHOLM STATE TECH COLL,Jun,11,2008,Purchases for Resale,UNRESTRICTED,$209.66
48,J.F. Drake State,10028028,UNION CHAPEL MISSIONARY,Jun,11,2008,Electricity,UNRESTRICTED,$83.33
48,J.F. Drake State,10028029,VERIZON WIRELESS,Jun,11,2008,Communications,UNRESTRICTED,$131.65
48,J.F. Drake State,10028030,VERIZON WIRELESS,Jun,11,2008,Communications,UNRESTRICTED,$588.06
48,J.F. Drake State,10028031,WASTE MANAGEMENT OF NORTH,Jun,11,2008,Other Contractual Services,UNRESTRICTED,"$1,127.13"
48,J.F. Drake State,10028032,WZDX-TV,Jun,11,2008,Materials and Supplies,UNRESTRICTED,$300.00
48,J.F. Drake State,20035302,AACUBO,Jun,6,2008,In-State Travel,TITLE III CARRYOVER,$450.00
48,J.F. Drake State,20035303,AMERICAN EXPRESS,Jun,6,2008,Out-of-State Travel,NAT'L SCIENCE FOUNDATION,$956.20
48,J.F. Drake State,20035304,AMERICAN EXPRESS,Jun,6,2008,Out-of-State Travel,TITLE III CARRYOVER,$469.50
48,J.F. Drake State,20035305,BEST BOOKS,Jun,6,2008,Books,TITLE III CARRYOVER,"$6,470.28"
48,J.F. Drake State,20035306,EDJ ASOCIATES,Jun,6,2008,Out-of-State Travel,NAT'L SCIENCE FOUNDATION,$185.00
48,J.F. Drake State,20035307,NINA BULLOCK,Jun,6,2008,In-State Travel,TITLE III CARRYOVER,$329.95
48,J.F. Drake State,20035308,"OFFICE DEPOT, INC.",Jun,6,2008,Materials and Supplies,TITLE III CARRYOVER,$383.87
48,J.F. Drake State,20035309,JENNIFER OLINGER,Jun,6,2008,In-State Travel,TITLE III CARRYOVER,$131.97
48,J.F. Drake State,20035310,FRANKLIN E. ROUSE,Jun,6,2008,Other Contractual Services,TITLE III CARRYOVER,$900.00
48,J.F. Drake State,20035311,CHRISTINA SCISSUM,Jun,6,2008,In-State Travel,TITLE III CARRYOVER,$150.00
48,J.F. Drake State,20035312,THE UNIVERSITY OF ALABAMA,Jun,6,2008,State-Funded Professional Deve,TITLE III CARRYOVER,"$2,600.00"
48,J.F. Drake State,10027949,ALABAMA A&M UNIVERSITY,Jun,6,2008,Advertising and Promotions,UNRESTRICTED,$600.00
48,J.F. Drake State,10027950,ALBERT'S FLOWERS,Jun,6,2008,Institutional Use,UNRESTRICTED,$210.00
48,J.F. Drake State,10027951,AMERICAN EXPRESS,Jun,6,2008,Institutional Use,UNRESTRICTED,$665.00
48,J.F. Drake State,10027952,CDW-G,Jun,6,2008,Materials and Supplies,READY TO WORK,$721.60
48,J.F. Drake State,10027953,LEDFORDS LANDSCAPING,Jun,6,2008,Other Contractual Services,UNRESTRICTED,"$2,225.00"
48,J.F. Drake State,10027954,MULLINS FIVE POINTS RENTA,Jun,6,2008,Materials and Supplies,,$45.00
48,J.F. Drake State,10027955,OAKHALL INDUSTRIES,Jun,6,2008,Institutional Use,UNRESTRICTED,$37.53
48,J.F. Drake State,10027956,ROCKET CITY BROADCASTING,Jun,6,2008,Advertising and Promotions,UNRESTRICTED,$135.00
48,J.F. Drake State,10027957,SOUTHERLAND STATION,Jun,6,2008,Materials and Supplies,UNRESTRICTED,$143.57
48,J.F. Drake State,10027914,"ACCESS GROUP, LLC",Jun,4,2008,Other Contractual Services,UNRESTRICTED,"$13,230.00"
48,J.F. Drake State,10027915,ROBBIE LEE AKINS,Jun,4,2008,Maintenance and Repairs,PLANT FUNDS,$834.00
48,J.F. Drake State,10027916,ALA COMMUNITY COLLEGE,Jun,4,2008,In-State Travel,UNRESTRICTED,$300.00
48,J.F. Drake State,10027917,"CANNON USA, INC",Jun,4,2008,Technology - Noncapitalized,UNRESTRICTED,"$2,300.00"
48,J.F. Drake State,10027918,CDW-G,Jun,4,2008,Materials and Supplies,UNRESTRICTED,"$5,210.23"
48,J.F. Drake State,10027918,CDW-G,Jun,4,2008,Materials and Supplies,READY TO WORK,"$1,339.18"
48,J.F. Drake State,10027919,CENGAGE LEARNING,Jun,4,2008,Purchases for Resale,UNRESTRICTED,"$18,098.30"
48,J.F. Drake State,10027920,COLONIAL GRAPHICS GROUP,Jun,4,2008,Institutional Use,UNRESTRICTED,"$1,158.50"
48,J.F. Drake State,10027921,COMCAST SPOTLIGHT,Jun,4,2008,Advertising and Promotions,UNRESTRICTED,"$3,839.00"
48,J.F. Drake State,10027922,DERICK HENRY,Jun,4,2008,Other Contractual Services,UNRESTRICTED,$666.00
48,J.F. Drake State,10027923,DYKES RESTAURANT SUPPLY,Jun,4,2008,Materials and Supplies,UNRESTRICTED,"$1,500.00"
48,J.F. Drake State,10027924,ELECTRONIX EXPRESS,Jun,4,2008,Purchases for Resale,UNRESTRICTED,$712.35
48,J.F. Drake State,10027925,ELSEVIER/HESI,Jun,4,2008,Purchases for Resale,UNRESTRICTED,"$6,647.54"
48,J.F. Drake State,10027926,WILLIAM HAMPTON,Jun,4,2008,Maintenance and Repairs,PLANT FUNDS,$636.00
48,J.F. Drake State,10027927,HOUGHTON MIFFLIN COMPANY,Jun,4,2008,Purchases for Resale,UNRESTRICTED,"$1,310.46"
48,J.F. Drake State,10027928,INDUSTRIAL PRESS,Jun,4,2008,Purchases for Resale,UNRESTRICTED,$462.98
48,J.F. Drake State,10027929,THE LAMAR COMPANIES,Jun,4,2008,Advertising and Promotions,UNRESTRICTED,"$1,300.00"
48,J.F. Drake State,10027930,WAYNE ALEXANDER LOVEDAY,Jun,4,2008,Maintenance and Repairs,PLANT FUNDS,$648.00
48,J.F. Drake State,10027932,BERNIE MARCUM,Jun,4,2008,Other Contractual Services,PLANT FUNDS,$72.00
48,J.F. Drake State,10027933,BRENDA MCCRAY,Jun,4,2008,In-State Travel,UNRESTRICTED,$32.33
48,J.F. Drake State,10027934,DANA MOORE,Jun,4,2008,In-State Travel,UNRESTRICTED,$195.69
48,J.F. Drake State,10027934,DANA MOORE,Jun,4,2008,Employee Taxable Per Diem,UNRESTRICTED,$11.25
48,J.F. Drake State,10027935,OAKHALL INDUSTRIES,Jun,4,2008,Institutional Use,UNRESTRICTED,$843.44
48,J.F. Drake State,10027936,"OFFICE DEPOT, INC.",Jun,4,2008,Materials and Supplies,UNRESTRICTED,"$2,022.15"
48,J.F. Drake State,10027937,PEARSON EDUCATION CTR,Jun,4,2008,Purchases for Resale,UNRESTRICTED,"$5,730.23"
48,J.F. Drake State,10027938,"QUALITY COUNTS, INC",Jun,4,2008,Purchases for Resale,AUXILIARY,$33.00
48,J.F. Drake State,10027939,LOLITA MARCIA RENTIE,Jun,4,2008,Other Contractual Services,UNRESTRICTED,$486.00
48,J.F. Drake State,10027940,SEXTON WELDING SUPPLY,Jun,4,2008,Other Contractual Services,UNRESTRICTED,$408.37
48,J.F. Drake State,10027941,SPEAKIN OUT NEWS,Jun,4,2008,Advertising and Promotions,UNRESTRICTED,$567.00
48,J.F. Drake State,10027942,TECHNICAL TRAINING AIDS,Jun,4,2008,Purchases for Resale,UNRESTRICTED,$658.59
48,J.F. Drake State,10027943,THE LEARNING PIT,Jun,4,2008,Computer Software,UNRESTRICTED,$600.00
48,J.F. Drake State,10027944,"WHOLESALE TROPHIES, INC.",Jun,4,2008,Institutional Use,UNRESTRICTED,$64.57
48,J.F. Drake State,10027945,BRANTHENY KEITH WILLIAMS,Jun,4,2008,Materials and Supplies,PLANT FUNDS,$804.00
48,J.F. Drake State,10027946,"WOODY ANDERSON FORD, INC.",Jun,4,2008,Maintenance and Repairs,UNRESTRICTED,$325.59
48,J.F. Drake State,10027947,XEROX CORPORATION,Jun,4,2008,Other Contractual Services,,$146.03
48,J.F. Drake State,10027895,AT&T LONG DISTANCE SERV.,Jun,2,2008,Communications,UNRESTRICTED,$27.96
48,J.F. Drake State,10027897,CHEVRON CARD SERVICES,Jun,2,2008,Gasoline and Oil - Motor Vehic,UNRESTRICTED,$405.03
48,J.F. Drake State,10027898,PETTY CASH,Jun,2,2008,Materials and Supplies,UNRESTRICTED,$138.95
48,J.F. Drake State,10027898,PETTY CASH,Jun,2,2008,Materials and Supplies,,$99.74
48,J.F. Drake State,10027898,PETTY CASH,Jun,2,2008,Maintenance and Repairs,PLANT FUNDS,$13.54
48,J.F. Drake State,10027899,"DYNAMIC SECURITY, INC.",Jun,2,2008,Other Contractual Services,UNRESTRICTED,"$1,491.84"
48,J.F. Drake State,10027900,"DYNAMIC SECURITY, INC.",Jun,2,2008,Other Contractual Services,UNRESTRICTED,"$1,491.84"
48,J.F. Drake State,10027901,"DYNAMIC SECURITY, INC.",Jun,2,2008,Other Contractual Services,UNRESTRICTED,"$1,491.84"
48,J.F. Drake State,10027902,FEDEX,Jun,2,2008,Freight,UNRESTRICTED,$101.19
48,J.F. Drake State,10027903,FREEDOM COURT REPORTING,Jun,2,2008,Legal Services,UNRESTRICTED,"$5,972.35"
48,J.F. Drake State,10027904,JAMES W. ROBINSON,Jun,2,2008,Legal Services,UNRESTRICTED,"$3,612.00"
48,J.F. Drake State,10027905,"LANIER,FORD,SHAVER &",Jun,2,2008,Legal Services,UNRESTRICTED,"$1,684.07"
48,J.F. Drake State,10027906,"MCALPINE, HELEN",Jun,2,2008,Institutional Allowance,UNRESTRICTED,$40.31
48,J.F. Drake State,10027907,"MCALPINE, HELEN",Jun,2,2008,Institutional Allowance,UNRESTRICTED,$245.11
48,J.F. Drake State,10027908,SKT ARCHITECTS,Jun,2,2008,Other Contractual Services,PLANT FUNDS,"$1,900.00"
48,J.F. Drake State,10027909,SOUTHERNLINC WIRELESS,Jun,2,2008,Communications,UNRESTRICTED,$15.90
48,J.F. Drake State,10027910,WASTE MANAGEMENT OF NORTH,Jun,2,2008,Other Contractual Services,UNRESTRICTED,$196.88
48,J.F. Drake State,20035279,AMERICAN EXPRESS,Jun,2,2008,Out-of-State Travel,,"$1,904.00"
48,J.F. Drake State,20035284,"MILLING, DEBORAH",Jun,2,2008,Out-of-State Travel,TITLE III CARRYOVER,$350.35
48,J.F. Drake State,20035285,OMNI SHOREHAM HOTEL,Jun,2,2008,Out-of-State Travel,NAT'L SCIENCE FOUNDATION,$690.43
48,J.F. Drake State,20035286,"POPE, GWENDOLYN M.",Jun,2,2008,In-State Travel,,$21.00
48,J.F. Drake State,20035287,SKILLS ALABAMA,Jun,2,2008,Out-of-State Travel,,$560.00
48,J.F. Drake State,20035290,BEST BOOKS,Jun,2,2008,Books,TITLE III CARRYOVER,"$1,464.64"
48,J.F. Drake State,20035291,"CANNON USA, INC",Jun,2,2008,Materials and Supplies,READY TO WORK,"$2,300.00"
48,J.F. Drake State,20035292,CONVERGED RESOURCE INTEG,Jun,2,2008,Service Contracts on Equipment,TITLE III CARRYOVER,$157.60
48,J.F. Drake State,20035293,COUNCIL ON OCCUP. EDUC.,Jun,2,2008,Out-of-State Travel,TITLE III CARRYOVER,$275.00
48,J.F. Drake State,20035294,"DAVIS, CHRISTINE",Jun,2,2008,In-State Travel,TITLE III CARRYOVER,$329.95
48,J.F. Drake State,20035295,"DAVIS, CHRISTINE",Jun,2,2008,Out-of-State Travel,,$75.00
48,J.F. Drake State,20035296,"DAVIS, CHRISTINE",Jun,2,2008,Out-of-State Travel,,$300.00
48,J.F. Drake State,20035297,DR. MOSTAFA DOKHANIAN,Jun,2,2008,Other Contractual Services,NAT'L SCIENCE FOUNDATION,"$1,300.00"
48,J.F. Drake State,20035298,THE HON CO,Jun,2,2008,Materials and Supplies,,"$2,370.76"
48,J.F. Drake State,14631,NICHOLAS PAUL KSEPKA,May,30,2008,Hourly Wages,UNRESTRICTED,$952.50
48,J.F. Drake State,14632,JAIME MARIE MAPLES,May,30,2008,Other Professional Salaries -,UNRESTRICTED,"$1,650.00"
48,J.F. Drake State,90008931,BEN BATTLE,May,30,2008,Instructional Salaries - Regul,UNRESTRICTED,"$5,706.36"
48,J.F. Drake State,90008932,HAROLD E BATTS,May,30,2008,Other Professional Salaries -,UNRESTRICTED,"$8,503.50"
48,J.F. Drake State,90008934,DALE W BAXTER,May,30,2008,Other Professional Salaries -,UNRESTRICTED,"$7,048.25"
48,J.F. Drake State,90008935,ANGELA NICOLE BELL,May,30,2008,Instructional Salaries - Tempo,UNRESTRICTED,"$4,120.36"
48,J.F. Drake State,90008936,NINA BULLOCK,May,30,2008,Instructional Salaries - Tempo,UNRESTRICTED,"$4,304.22"
48,J.F. Drake State,90008937,LINDA BURRUSS,May,30,2008,Other Contractual Services,NAT'L SCIENCE FOUNDATION,"$1,950.00"
48,J.F. Drake State,90008938,KHALILAH BURTON,May,30,2008,Hourly Wages,NAT'L SCIENCE FOUNDATION,$678.00
48,J.F. Drake State,90008939,NECHA L BURTON,May,30,2008,Support Personnel Salaries - S,UNRESTRICTED,"$2,310.06"
48,J.F. Drake State,90008939,NECHA L BURTON,May,30,2008,Support Personnel Salaries - S,TITLE III CARRYOVER,$770.02
48,J.F. Drake State,90008941,HEATHER MICHELLE CAMPBELL,May,30,2008,Hourly Wages,NAT'L SCIENCE FOUNDATION,$496.80
48,J.F. Drake State,90008942,MICHELLE R CUNNINGHAM,May,30,2008,Instructional Salaries - Regul,UNRESTRICTED,"$2,528.85"
48,J.F. Drake State,90008942,MICHELLE R CUNNINGHAM,May,30,2008,Instructional Salaries - Regul,NAT'L SCIENCE FOUNDATION,$842.95
48,J.F. Drake State,90008943,CHRISTINE H DAVIS,May,30,2008,Instructional Salaries - Regul,UNRESTRICTED,"$5,306.36"
48,J.F. Drake State,90008944,MATTIE D DAVIS,May,30,2008,Instructional Salaries - Regul,UNRESTRICTED,"$3,729.00"
48,J.F. Drake State,90008944,MATTIE D DAVIS,May,30,2008,Instructional Salaries - Regul,NAT'L SCIENCE FOUNDATION,"$1,243.00"
48,J.F. Drake State,90008945,MARTY J EATON,May,30,2008,Other Professional Salaries -,,"$1,159.00"
48,J.F. Drake State,90008946,BERNELL S FONTENOT,May,30,2008,Support Personnel Salaries - S,UNRESTRICTED,"$3,973.25"
48,J.F. Drake State,90008947,EDWIN T FORBES,May,30,2008,Instructional Salaries - Regul,UNRESTRICTED,"$5,120.36"
48,J.F. Drake State,90008948,MIRIAM B FRANK,May,30,2008,Instructional Salaries - Regul,UNRESTRICTED,"$4,840.92"
48,J.F. Drake State,90008949,MATTIE B FREEMAN,May,30,2008,Instructional Salaries - Tempo,UNRESTRICTED,"$1,337.50"
48,J.F. Drake State,90008950,BRENDA H FRIEND,May,30,2008,Other Professional Salaries -,TITLE III CARRYOVER,"$7,759.75"
48,J.F. Drake State,90008951,KIM GALKOWSKI,May,30,2008,Support Personnel Salaries - S,UNRESTRICTED,"$3,898.00"
48,J.F. Drake State,90008952,MANELZA CRAWFORD HAMBRICK,May,30,2008,Support Personnel Salaries - S,UNRESTRICTED,"$2,336.50"
48,J.F. Drake State,90008953,CAROLYN HENDERSON,May,30,2008,Instructional Salaries - Regul,UNRESTRICTED,"$5,120.34"
48,J.F. Drake State,90008954,DEXTER R HENRY,May,30,2008,Instructional Salaries - Regul,UNRESTRICTED,"$6,120.48"
48,J.F. Drake State,90008955,KARL W HENRY SR,May,30,2008,Instructional Salaries - Regul,UNRESTRICTED,"$6,416.88"
48,J.F. Drake State,90008956,VICKYE T HESTER,May,30,2008,Support Personnel Salaries - S,UNRESTRICTED,"$4,196.16"
48,J.F. Drake State,90008957,DORIS HINTON,May,30,2008,Instructional Salaries - Regul,UNRESTRICTED,"$4,583.74"
48,J.F. Drake State,90008958,PATRICIA HUGHES,May,30,2008,Administrative Salaries- Sched,UNRESTRICTED,"$7,602.09"
48,J.F. Drake State,90008960,JAN J HYMAN,May,30,2008,Support Personnel Salaries - S,UNRESTRICTED,"$2,113.17"
48,J.F. Drake State,90008961,DONIELLE NIKOLE JEFFERSON,May,30,2008,Support Personnel Salaries - S,TITLE III CARRYOVER,$321.00
48,J.F. Drake State,90008962,DONYALE D JONES,May,30,2008,Support Personnel Salaries - S,TITLE III CARRYOVER,"$3,229.00"
48,J.F. Drake State,90008963,RUTH D JONES,May,30,2008,Other Contractual Services,NAT'L SCIENCE FOUNDATION,"$1,950.00"
48,J.F. Drake State,90008964,SUSAN KREULEN,May,30,2008,Instructional Salaries - Regul,UNRESTRICTED,"$2,750.00"
48,J.F. Drake State,90008965,HONG THUYDUC LAM,May,30,2008,Instructional Salaries - Regul,UNRESTRICTED,"$5,120.36"
48,J.F. Drake State,90008966,JOYCE P LAMAR,May,30,2008,Support Personnel Salaries - S,UNRESTRICTED,"$1,708.50"
48,J.F. Drake State,90008967,JOAN C LEATHERWOOD,May,30,2008,Instructional Salaries - Tempo,UNRESTRICTED,"$1,637.14"
48,J.F. Drake State,90008968,STACY L LUNDY,May,30,2008,Support Personnel Salaries - S,UNRESTRICTED,"$1,056.46"
48,J.F. Drake State,90008968,STACY L LUNDY,May,30,2008,Support Personnel Salaries - S,NAT'L SCIENCE FOUNDATION,"$1,056.46"
48,J.F. Drake State,90008969,NIKI MALONE,May,30,2008,Support Personnel Salaries - S,UNRESTRICTED,"$3,079.91"
48,J.F. Drake State,90008971,DANIEL K MARCUM,May,30,2008,Support Personnel Salaries - S,UNRESTRICTED,"$2,485.17"
48,J.F. Drake State,90008972,HELEN T MCALPINE,May,30,2008,Administrative Salaries- Sched,UNRESTRICTED,"$14,266.45"
48,J.F. Drake State,90008972,HELEN T MCALPINE,May,30,2008,President's Expense Allowance,UNRESTRICTED,$200.00
48,J.F. Drake State,90008972,HELEN T MCALPINE,May,30,2008,Housing Allowance,UNRESTRICTED,"$1,000.00"
48,J.F. Drake State,90008973,BRENDA MCCRAY,May,30,2008,Other Professional Salaries -,UNRESTRICTED,"$4,000.00"
48,J.F. Drake State,90008974,NITA S. MCGILL,May,30,2008,Instructional Salaries - Tempo,UNRESTRICTED,$989.75
48,J.F. Drake State,90008975,SCOTTY MCLAUGHLIN,May,30,2008,Instructional Salaries - Regul,UNRESTRICTED,"$6,616.48"
48,J.F. Drake State,90008976,DEBORAH A MILLING,May,30,2008,Instructional Salaries - Regul,UNRESTRICTED,"$4,367.92"
48,J.F. Drake State,90008977,SAMMY J MILTON,May,30,2008,Support Personnel Salaries - S,UNRESTRICTED,"$3,452.83"
48,J.F. Drake State,90008978,PREMA A MONTEIRO,May,30,2008,Instructional Salaries - Regul,,"$4,527.34"
48,J.F. Drake State,90008979,TAD A MONTGOMERY,May,30,2008,Instructional Salaries - Regul,UNRESTRICTED,"$6,631.00"
48,J.F. Drake State,90008980,DANA MOORE,May,30,2008,Other Professional Salaries -,TITLE III CARRYOVER,"$8,503.75"
48,J.F. Drake State,90008981,BRUCE D MORRISON,May,30,2008,Support Personnel Salaries - S,UNRESTRICTED,"$4,047.25"
48,J.F. Drake State,90008982,KATHRYN B NEAL,May,30,2008,Other Professional Salaries -,UNRESTRICTED,"$7,905.25"
48,J.F. Drake State,90008983,KAREN NEIR,May,30,2008,Instructional Salaries - Tempo,UNRESTRICTED,"$1,391.00"
48,J.F. Drake State,90008984,JENNIFER O'LINGER,May,30,2008,Support Personnel Salaries - S,UNRESTRICTED,"$3,079.91"
48,J.F. Drake State,90008985,DONALD ORR,May,30,2008,Support Personnel Salaries - S,UNRESTRICTED,"$3,601.25"
48,J.F. Drake State,90008986,GWENDOLYN D POPE,May,30,2008,Instructional Salaries - Regul,UNRESTRICTED,"$5,540.58"
48,J.F. Drake State,90008986,GWENDOLYN D POPE,May,30,2008,Instructional Salaries - Tempo,UNRESTRICTED,$225.00
48,J.F. Drake State,90008987,JULIE POTTER,May,30,2008,Support Personnel Salaries - S,UNRESTRICTED,"$2,038.67"
48,J.F. Drake State,90008988,FREDRICK O PRUITT,May,30,2008,Instructional Salaries - Regul,UNRESTRICTED,"$4,527.36"
48,J.F. Drake State,90008989,ALICE G RAYMOND,May,30,2008,Instructional Salaries - Regul,UNRESTRICTED,"$6,520.48"
48,J.F. Drake State,90008990,JOYCE L RENTZ,May,30,2008,Instructional Salaries - Regul,UNRESTRICTED,"$5,129.77"
48,J.F. Drake State,90008990,JOYCE L RENTZ,May,30,2008,Instructional Salaries - Regul,NAT'L SCIENCE FOUNDATION,"$1,576.59"
48,J.F. Drake State,90008991,JOHN REUTTER III,May,30,2008,Administrative Salaries- Sched,UNRESTRICTED,"$8,205.34"
48,J.F. Drake State,90008992,MARTHA J ROBERTS,May,30,2008,Support Personnel Salaries - S,UNRESTRICTED,"$4,940.33"
48,J.F. Drake State,90008993,CHRISTINA R SCISSUM,May,30,2008,Other Professional Salaries -,TITLE III CARRYOVER,"$4,012.55"
48,J.F. Drake State,90008994,LESLEY SHOTTS,May,30,2008,Other Professional Salaries -,UNRESTRICTED,"$3,899.08"
48,J.F. Drake State,90008995,ANGELA P SIMMONS,May,30,2008,Instructional Salaries - Tempo,UNRESTRICTED,$107.00
48,J.F. Drake State,90008996,COLLIS H SIMS III,May,30,2008,Instructional Salaries - Regul,UNRESTRICTED,"$4,416.88"
48,J.F. Drake State,90008997,PATRICIA GORDON SIMS,May,30,2008,Administrative Salaries- Sched,TITLE III CARRYOVER,"$8,372.01"
48,J.F. Drake State,90008998,AMY CATHERINE SMALL,May,30,2008,Hourly Wages,NAT'L SCIENCE FOUNDATION,$534.00
48,J.F. Drake State,90008999,DELORIS A SMOTHERS,May,30,2008,Instructional Salaries - Regul,UNRESTRICTED,"$6,009.90"
48,J.F. Drake State,90009000,VERLINDSEY B STEWART,May,30,2008,Instructional Salaries - Regul,UNRESTRICTED,"$6,616.48"
48,J.F. Drake State,90009001,MONICA SUDEALL-HAWKINS,May,30,2008,Other Professional Salaries -,UNRESTRICTED,"$4,993.33"
48,J.F. Drake State,90009002,JOY D TORNQUIST,May,30,2008,Instructional Salaries - Tempo,UNRESTRICTED,"$1,645.13"
48,J.F. Drake State,90009003,JOYLYN ERNA TROTMAN,May,30,2008,Other Professional Salaries -,UNRESTRICTED,"$4,465.83"
48,J.F. Drake State,90009004,GILBERT T TURLEY,May,30,2008,Other Professional Salaries -,UNRESTRICTED,"$6,450.08"
48,J.F. Drake State,90009005,CHRISTOPHER TURNER,May,30,2008,Support Personnel Salaries - S,NAT'L SCIENCE FOUNDATION,"$3,154.43"
48,J.F. Drake State,90009006,LETITIA E WALKER,May,30,2008,Support Personnel Salaries - S,UNRESTRICTED,"$3,080.50"
48,J.F. Drake State,90009007,YVONNE M WHITE,May,30,2008,Support Personnel Salaries - S,UNRESTRICTED,"$1,104.79"
48,J.F. Drake State,90009007,YVONNE M WHITE,May,30,2008,Support Personnel Salaries - S,TITLE III CARRYOVER,"$3,314.38"
48,J.F. Drake State,90009009,JOEL P WILLIAMS,May,30,2008,Other Contractual Services,TITLE III CARRYOVER,$706.20
48,J.F. Drake State,90009010,GEORGE R WINN,May,30,2008,Instructional Salaries - Regul,UNRESTRICTED,"$1,116.46"
48,J.F. Drake State,90009010,GEORGE R WINN,May,30,2008,Other Professional Salaries -,UNRESTRICTED,"$1,116.46"
48,J.F. Drake State,90009010,GEORGE R WINN,May,30,2008,Other Professional Salaries -,NAT'L SCIENCE FOUNDATION,"$2,232.92"
48,J.F. Drake State,90009012,DANIEL K MARCUM,May,30,2008,Support Personnel Salaries - S,UNRESTRICTED,$580.77
48,J.F. Drake State,90009013,DONALD ORR,May,30,2008,Support Personnel Salaries - S,UNRESTRICTED,$514.31
48,J.F. Drake State,90009014,JULIE POTTER,May,30,2008,Support Personnel Salaries - S,UNRESTRICTED,$88.20
48,J.F. Drake State,72900000,AT&T,May,29,2008,Communications,UNRESTRICTED,$88.20
48,J.F. Drake State,72910000,AT&T,May,29,2008,Communications,UNRESTRICTED,$143.93
48,J.F. Drake State,72920000,AT&T,May,29,2008,Communications,UNRESTRICTED,$83.98
48,J.F. Drake State,72930000,AT&T,May,29,2008,Communications,UNRESTRICTED,$434.60
48,J.F. Drake State,72940000,AT&T,May,29,2008,Communications,UNRESTRICTED,"$2,849.34"
48,J.F. Drake State,72960000,COMCAST,May,29,2008,Other Contractual Services,UNRESTRICTED,$53.88
48,J.F. Drake State,72970000,COOK'S PEST CONTROL,May,29,2008,Other Contractual Services,UNRESTRICTED,$65.00
48,J.F. Drake State,72980000,COOK'S PEST CONTROL,May,29,2008,Other Contractual Services,UNRESTRICTED,$249.00
48,J.F. Drake State,72990000,HUNTSVILLE UTILITIES,May,29,2008,Water and Sewer,UNRESTRICTED,$279.48
48,J.F. Drake State,73000000,HUNTSVILLE UTILITIES,May,29,2008,Gas and Heating Fuel,UNRESTRICTED,"$4,878.86"
48,J.F. Drake State,73010000,HUNTSVILLE UTILITIES,May,29,2008,Water and Sewer,UNRESTRICTED,$17.78
48,J.F. Drake State,73020000,HUNTSVILLE UTILITIES,May,29,2008,Water and Sewer,UNRESTRICTED,$3.81
48,J.F. Drake State,73030000,HUNTSVILLE UTILITIES,May,29,2008,Gas and Heating Fuel,UNRESTRICTED,"$5,362.50"
48,J.F. Drake State,73040000,HUNTSVILLE UTILITIES,May,29,2008,Electricity,UNRESTRICTED,"$13,396.59"
48,J.F. Drake State,73040000,HUNTSVILLE UTILITIES,May,29,2008,Water and Sewer,UNRESTRICTED,$83.35
48,J.F. Drake State,73050000,HUNTSVILLE UTILITIES,May,29,2008,Water and Sewer,UNRESTRICTED,$18.72
48,J.F. Drake State,73060000,WOW! BUSINESS,May,29,2008,Advertising and Promotions,UNRESTRICTED,$102.73
48,J.F. Drake State,73070000,PITNEY BOWES,May,29,2008,Postage,UNRESTRICTED,$100.00
48,J.F. Drake State,73080000,VERIZON WIRELESS,May,29,2008,Communications,UNRESTRICTED,$391.48
48,J.F. Drake State,90008929,CHRISTINE H DAVIS,May,28,2008,Instructional Salaries - Tempo,UNRESTRICTED,"$1,900.00"
48,J.F. Drake State,20035478,AMERICAN EXPRESS,May,25,2008,Out-of-State Travel,TITLE III CARRYOVER,$549.00
48,J.F. Drake State,10027841,ROBBIE LEE AKINS,May,21,2008,Other Contractual Services,PLANT FUNDS,$774.00
48,J.F. Drake State,10027842,"ALLIED PHOTOCOPY, INC.",May,21,2008,Materials and Supplies,UNRESTRICTED,"$1,650.00"
48,J.F. Drake State,10027843,AMERICAN WELDING SOCIETY,May,21,2008,Memberships,UNRESTRICTED,$276.00
48,J.F. Drake State,10027844,BALDWIN COOKE COMPANY,May,21,2008,Materials and Supplies,UNRESTRICTED,$434.25
48,J.F. Drake State,10027846,MPS,May,21,2008,Purchases for Resale,UNRESTRICTED,$811.95
48,J.F. Drake State,10027847,"BURMAX, INC.",May,21,2008,Purchases for Resale,UNRESTRICTED,"$12,811.56"
48,J.F. Drake State,10027848,CDW-G,May,21,2008,Furniture and Equipment,UNRESTRICTED,"$10,177.60"
48,J.F. Drake State,10027849,DERICK HENRY,May,21,2008,Other Contractual Services,UNRESTRICTED,$684.00
48,J.F. Drake State,10027850,ESCO INSTITUTE,May,21,2008,Purchases for Resale,UNRESTRICTED,$719.10
48,J.F. Drake State,10027851,GOODHEART-WILCOX COMPANY,May,21,2008,Purchases for Resale,UNRESTRICTED,$923.01
48,J.F. Drake State,10027852,HUNTSVILLE TIMES,May,21,2008,Advertising and Promotions,UNRESTRICTED,$270.00
48,J.F. Drake State,10027853,J. A. MAJORS COMPANY,May,21,2008,Purchases for Resale,UNRESTRICTED,"$4,964.19"
48,J.F. Drake State,10027854,KUDZU PRODUCTION,May,21,2008,Materials and Supplies,UNRESTRICTED,"$1,793.75"
48,J.F. Drake State,10027854,KUDZU PRODUCTION,May,21,2008,Advertising and Promotions,READY TO WORK,"$1,793.75"
48,J.F. Drake State,10027855,WAYNE ALEXANDER LOVEDAY,May,21,2008,Other Contractual Services,PLANT FUNDS,$768.00
48,J.F. Drake State,10027856,MAYER ELECTRIC FINANCIAL,May,21,2008,Maintenance and Repairs,PLANT FUNDS,$242.05
48,J.F. Drake State,10027857,"OFFICE DEPOT, INC.",May,21,2008,Materials and Supplies,UNRESTRICTED,$50.63
48,J.F. Drake State,10027858,POCKET NURSE,May,21,2008,Purchases for Resale,UNRESTRICTED,"$1,272.00"
48,J.F. Drake State,10027859,PROFESSIONAL SALES CO,May,21,2008,Materials and Supplies,UNRESTRICTED,$49.95
48,J.F. Drake State,10027860,LOLITA MARCIA RENTIE,May,21,2008,Other Contractual Services,UNRESTRICTED,$456.00
48,J.F. Drake State,10027861,SCHROFF DEVELOPMENT CORP,May,21,2008,Purchases for Resale,UNRESTRICTED,$838.00
48,J.F. Drake State,10027862,SERVICE STEEL INCORP,May,21,2008,Materials and Supplies,UNRESTRICTED,$207.00
48,J.F. Drake State,10027863,SKT ARCHITECTS,May,21,2008,Other Contractual Services,PLANT FUNDS,$500.00
48,J.F. Drake State,10027864,STECK-VAUGHN/HARCOURT,May,21,2008,Materials and Supplies,UNRESTRICTED,"$2,044.35"
48,J.F. Drake State,10027866,WBEC SOUTH,May,21,2008,Institutional Allowance,UNRESTRICTED,$30.00
48,J.F. Drake State,10027867,WHWT,May,21,2008,Advertising and Promotions,UNRESTRICTED,"$1,875.00"
48,J.F. Drake State,10027868,"JOHN WILEY & SONS, INC.",May,21,2008,Purchases for Resale,UNRESTRICTED,"$3,183.66"
48,J.F. Drake State,10027869,BRANTHENY KEITH WILLIAMS,May,21,2008,Other Contractual Services,PLANT FUNDS,$918.00
48,J.F. Drake State,20035255,ACSPRA C/O HOLLY TRAWICK,May,21,2008,In-State Travel,TITLE III CARRYOVER,$300.00
48,J.F. Drake State,20035256,AMERICAN EXPRESS,May,21,2008,Out-of-State Travel,TITLE III CARRYOVER,$74.81
48,J.F. Drake State,20035257,CRI,May,21,2008,Materials and Supplies,TITLE III CARRYOVER,$932.00
48,J.F. Drake State,20035258,"EDJ ASSOCIATES, INC",May,21,2008,Out-of-State Travel,NAT'L SCIENCE FOUNDATION,$185.00
48,J.F. Drake State,20035259,HD SUPPLY,May,21,2008,Materials and Supplies,,$347.40
48,J.F. Drake State,20035260,NORTH ALABAMA ENGRAVING &,May,21,2008,Materials and Supplies,TITLE III CARRYOVER,$63.50
48,J.F. Drake State,20035261,"OFFICE DEPOT, INC.",May,21,2008,Materials and Supplies,TITLE III CARRYOVER,$275.92
48,J.F. Drake State,20035262,SAM'S CLUB/WALMART,May,21,2008,Materials and Supplies,,$39.63
48,J.F. Drake State,20035263,THE HON CO,May,21,2008,Materials and Supplies,,"$8,006.40"
48,J.F. Drake State,20035264,WYNDHAM SUGAR BAY RESORTS,May,21,2008,Out-of-State Travel,TITLE III CARRYOVER,$685.60
48,J.F. Drake State,10027837,WAYNE BUCKNOR,May,15,2008,Institutional Use,UNRESTRICTED,$200.00
48,J.F. Drake State,10027838,CM&F GROUP,May,15,2008,Materials and Supplies,READY TO WORK,$275.00
48,J.F. Drake State,10027839,JOAN LEATHERWOOD,May,15,2008,In-State Travel,READY TO WORK,$218.45
48,J.F. Drake State,10027839,JOAN LEATHERWOOD,May,15,2008,Employee Taxable Per Diem,READY TO WORK,$11.25
48,J.F. Drake State,20035252,NECHA BURTON,May,15,2008,In-State Travel,TITLE III CARRYOVER,$254.03
48,J.F. Drake State,20035253,KIDWELL SYSTEMS INC,May,15,2008,Materials and Supplies,TITLE III CARRYOVER,$868.29
48,J.F. Drake State,10027810,AIRGAS SOUTH,May,14,2008,Materials and Supplies,UNRESTRICTED,$186.27
48,J.F. Drake State,10027811,ALA BUSINESS FURNISHINGS,May,14,2008,Materials and Supplies,PLANT FUNDS,$250.00
48,J.F. Drake State,10027812,BROOKS LOCK & KEY,May,14,2008,Materials and Supplies,UNRESTRICTED,$54.00
48,J.F. Drake State,10027813,CROWN TROPHY,May,14,2008,Institutional Use,UNRESTRICTED,$180.00
48,J.F. Drake State,10027814,VISION BEAUTY DIST,May,14,2008,Purchases for Resale,UNRESTRICTED,"$1,220.36"
48,J.F. Drake State,10027815,"DYNAMIC SECURITY, INC.",May,14,2008,Other Contractual Services,UNRESTRICTED,"$1,491.84"
48,J.F. Drake State,10027816,ELECTROLUX,May,14,2008,Materials and Supplies,UNRESTRICTED,$699.99
48,J.F. Drake State,10027817,EXAMINERS OF PUBLIC ACCTS,May,14,2008,Accounting and Auditing Servic,UNRESTRICTED,"$3,000.00"
48,J.F. Drake State,10027818,FEDEX,May,14,2008,Freight,UNRESTRICTED,$26.82
48,J.F. Drake State,10027819,GLIDDEN PROFESSIONAL PAI,May,14,2008,Materials and Supplies,PLANT FUNDS,$150.40
48,J.F. Drake State,10027820,IE DYNETICS CO,May,14,2008,Technology - Noncapitalized,UNRESTRICTED,"$93,397.47"
48,J.F. Drake State,10027821,WOW! BUSINESS,May,14,2008,Advertising and Promotions,UNRESTRICTED,"$1,000.00"
48,J.F. Drake State,10027822,LOWE'S,May,14,2008,Other Contractual Services,PLANT FUNDS,"$6,114.88"
48,J.F. Drake State,10027823,ROCKET CITY BROADCASTING,May,14,2008,Advertising and Promotions,UNRESTRICTED,$865.00
48,J.F. Drake State,10027824,SAINT PORTRAIT DESIGNERS,May,14,2008,Materials and Supplies,PLANT FUNDS,"$2,080.00"
48,J.F. Drake State,10027825,SAM'S CLUB/WALMART,May,14,2008,Investment Transaction Expense,UNRESTRICTED,$13.38
48,J.F. Drake State,10027826,SCOTTSBORO DAILY SENTINEL,May,14,2008,Advertising and Promotions,UNRESTRICTED,"$1,056.00"
48,J.F. Drake State,10027827,UPS,May,14,2008,Freight,UNRESTRICTED,$148.71
48,J.F. Drake State,10027828,VERIZON WIRELESS,May,14,2008,Communications,UNRESTRICTED,$727.78
48,J.F. Drake State,10027829,WASTE MANAGEMENT OF NORTH,May,14,2008,Other Contractual Services,UNRESTRICTED,$325.56
48,J.F. Drake State,20035228,AMERICAN KLASSIC DESIGNS,May,14,2008,Materials and Supplies,NAT'L SCIENCE FOUNDATION,$392.50
48,J.F. Drake State,20035229,AMERICAN EXPRESS,May,14,2008,Out-of-State Travel,TITLE III CARRYOVER,$781.50
48,J.F. Drake State,20035230,ATLANTA MARRIOTT MARQUIS,May,14,2008,Out-of-State Travel,,"$5,002.50"
48,J.F. Drake State,20035230,ATLANTA MARRIOTT MARQUIS,May,14,2008,Out-of-State Travel,TITLE III CARRYOVER,"$2,501.25"
48,J.F. Drake State,20035231,"BATTLE, BEN (JR)",May,14,2008,In-State Travel,TITLE III CARRYOVER,$329.95
48,J.F. Drake State,20035232,NICOLE BELL,May,14,2008,In-State Travel,TITLE III CARRYOVER,$225.00
48,J.F. Drake State,20035233,BUSINESS SYSTEMS & CONSUL,May,14,2008,Other Contractual Services,,"$6,080.00"
48,J.F. Drake State,20035233,BUSINESS SYSTEMS & CONSUL,May,14,2008,Materials and Supplies,,"$4,487.00"
48,J.F. Drake State,20035233,BUSINESS SYSTEMS & CONSUL,May,14,2008,Computer Software,,"$27,060.00"
48,J.F. Drake State,20035233,BUSINESS SYSTEMS & CONSUL,May,14,2008,Furniture and Equipment,,"$13,860.00"
48,J.F. Drake State,20035234,"SIMS, COLLIS",May,14,2008,In-State Travel,TITLE III CARRYOVER,$39.85
48,J.F. Drake State,20035235,CONVERGED RESOURCE INTEG,May,14,2008,Service Contracts on Equipment,TITLE III CARRYOVER,$216.70
48,J.F. Drake State,20035236,DEANS OF STUDENT AFFAIRS,May,14,2008,In-State Travel,,$250.00
48,J.F. Drake State,20035238,DRAKE STATE UNRESTRICTED,May,14,2008,In-State Travel,TITLE III CARRYOVER,"$1,156.96"
48,J.F. Drake State,20035239,EMPOWERMENT CONCEPTS INC,May,14,2008,Other Contractual Services,TITLE III CARRYOVER,$750.00
48,J.F. Drake State,20035240,FBLA-PBL,May,14,2008,Out-of-State Travel,,"$1,498.00"
48,J.F. Drake State,20035241,FOLLET SOFTWARE COMPANY,May,14,2008,Other Contractual Services,TITLE III CARRYOVER,$564.00
48,J.F. Drake State,20035242,BRENDA H. FRIEND,May,14,2008,Out-of-State Travel,TITLE III CARRYOVER,$520.70
48,J.F. Drake State,20035243,"HUGHES, PATRICIA",May,14,2008,In-State Travel,TITLE III CARRYOVER,$383.57
48,J.F. Drake State,20035244,JANPAK,May,14,2008,Materials and Supplies,TITLE III CARRYOVER,"$4,995.00"
